{"text_format":"1","workbook":"xlsx","n_sheets":6,"sheets":["必ずお読みください","インボイス登録の無い業者様用","100％請求用(通常はこちらを使用してください）","請求書(出来高で請求がある場合はこちらです）","出来高内訳書(出来高請求書に添付してください）","出来高内訳書(記入例)"],"not_rendered":{"charts":0,"images":0,"macros":1,"external_links":0,"defined_names":7,"comments":5,"pivot_tables":0},"unopened":[],"bounds":{"document_bytes":16777216,"sheet_cells":100000,"rows_first":2000,"rows_last":500,"rows_between":2000,"halvings":0,"cell_chars":16384,"cell_head_chars":4096},"cells_cut":0,"cells_raw":0,"read":"whole","date_system":"1900"}

{"sheet":"必ずお読みください","index":0,"n_rows":30,"n_cols":2,"rows_kept":30,"cut":false,"hidden":false,"merged":[]}
[]
["お取引業者様各位"]
[]
["ご使用方法について何点かお願い事項がございます。"]
["ご確認のほどお願い申しあげます。"]
[]
["・　インボイス登録のない業者様は課税表示のない専用の請求書をご利用ください。"]
[]
["・　インボイス登録業者様で通常請求の場合は『100％請求用』をご利用ください。"]
[]
["・　契約金額に対して一部だけ請求する場合（内金や残金が発生する請求）は"]
["　　『請求書（出来高用）』をご利用ください。"]
["　　※その際通常請求用の『請求書原本消費税10％』の用紙は不要になります。"]
["　　※出来高請求する場合は『出来高内訳書』の添付をお願いします。"]
["　　会社様によって契約が異なるため、3種類の請求書がござますが、上記を参考に"]
["　　どちらか一方の用紙を使い分けてくださいますようお願いします。"]
["　　"]
["・　ご面倒ではございますが、各現場につき一枚の請求書をご記入くださいますようお願いします。"]
["　　※複数現場を一枚の請求書に記載いたしますと、各現場担当者へ振り分けるため、請求処理が"]
["　　　　遅れることがございます。"]
[]
["・　請求書は必ず弊社への郵送をお願いします。"]
["　　※現場事務所や担当者へ直接お渡しになりますと、紛失等の原因になりますので"]
["　　　お支払いが遅れる事がございます。"]
[]
["・　請求書は20日締め、翌々月5日払いになります。　"]
["　　25日までの必着に間に合わない場合は、次の支払になりますのでご注意ください。"]
[]
[null,"ご不明な点がございましたら、総務担当山口までご連絡ください。"]
[null,"問い合わせメールアドレス：　yoruko.y@gmail.com"]

{"sheet":"インボイス登録の無い業者様用","index":1,"n_rows":237,"n_cols":57,"rows_kept":237,"cut":false,"hidden":false,"merged":[[0,29,0,39],[1,31,2,39],[2,1,3,16],[3,30,3,39],[5,14,6,24],[9,26,9,30],[9,31,9,40],[20,2,20,17],[20,19,20,34],[20,36,22,40],[21,2,22,5],[21,6,22,17],[21,19,22,34],[16,2,16,13],[16,15,16,26],[16,28,16,40],[11,1,11,16],[11,28,11,30],[11,31,11,33],[11,34,11,36],[11,37,11,40],[12,1,14,16],[27,25,27,27],[27,28,27,32],[27,33,27,37],[25,38,25,41],[17,2,18,13],[17,15,18,26],[17,28,18,40],[26,1,26,3],[26,4,26,20],[26,21,26,24],[26,25,26,27],[26,28,26,32],[26,33,26,37],[26,38,26,41],[29,1,29,3],[29,4,29,20],[29,21,29,24],[29,25,29,27],[29,28,29,32],[29,33,29,37],[29,38,29,41],[27,38,27,41],[25,1,25,3],[25,4,25,20],[25,21,25,24],[25,25,25,27],[25,28,25,32],[25,33,25,37],[28,1,28,3],[28,4,28,20],[28,21,28,24],[28,25,28,27],[28,28,28,32],[28,33,28,37],[28,38,28,41],[27,1,27,3],[27,4,27,20],[27,21,27,24],[31,38,31,41],[32,38,32,41],[31,1,31,3],[31,4,31,20],[31,21,31,24],[31,25,31,27],[31,28,31,32],[31,33,31,37],[30,1,30,3],[30,4,30,20],[30,21,30,24],[30,25,30,27],[30,28,30,32],[30,33,30,37],[30,38,30,41],[33,38,33,41],[34,38,34,41],[33,1,33,3],[33,4,33,20],[33,21,33,24],[33,25,33,27],[33,28,33,32],[33,33,33,37],[32,1,32,3],[32,4,32,20],[32,21,32,24],[32,25,32,27],[32,28,32,32],[32,33,32,37],[35,38,35,41],[36,38,36,41],[35,1,35,3],[35,4,35,20],[35,21,35,24],[35,25,35,27],[35,28,35,32],[35,33,35,37],[34,1,34,3],[34,4,34,20],[34,21,34,24],[34,25,34,27],[34,28,34,32],[34,33,34,37],[37,38,37,41],[38,38,38,41],[37,1,37,3],[37,4,37,20],[37,21,37,24],[37,25,37,27],[37,28,37,32],[37,33,37,37],[36,1,36,3],[36,4,36,20],[36,21,36,24],[36,25,36,27],[36,28,36,32],[36,33,36,37],[39,38,39,41],[40,38,40,41],[39,1,39,3],[39,4,39,20],[39,21,39,24],[39,25,39,27],[39,28,39,32],[39,33,39,37],[38,1,38,3],[38,4,38,20],[38,21,38,24],[38,25,38,27],[38,28,38,32],[38,33,38,37],[41,38,41,41],[42,38,42,41],[41,1,41,3],[41,4,41,20],[41,21,41,24],[41,25,41,27],[41,28,41,32],[41,33,41,37],[40,1,40,3],[40,4,40,20],[40,21,40,24],[40,25,40,27],[40,28,40,32],[40,33,40,37],[43,38,43,41],[44,38,44,41],[43,1,43,3],[43,4,43,20],[43,21,43,24],[43,25,43,27],[43,28,43,32],[43,33,43,37],[42,1,42,3],[42,4,42,20],[42,21,42,24],[42,25,42,27],[42,28,42,32],[42,33,42,37],[72,1,74,16],[61,31,62,39],[62,1,63,16],[63,30,63,39],[65,14,66,24],[69,26,69,30],[69,31,69,40],[55,1,55,6],[55,7,55,10],[55,11,55,21],[56,1,58,6],[56,7,58,21],[60,29,60,39],[71,1,71,16],[71,28,71,30],[71,31,71,33],[71,34,71,36],[71,37,71,40],[85,38,85,41],[86,38,86,41],[85,1,85,3],[85,4,85,20],[85,21,85,24],[85,25,85,27],[85,28,85,32],[85,33,85,37],[76,28,76,40],[77,2,78,13],[77,15,78,26],[77,28,78,40],[80,2,80,17],[80,19,80,34],[80,36,82,40],[81,2,82,5],[81,6,82,17],[81,19,82,34],[76,2,76,13],[76,15,76,26],[87,38,87,41],[88,38,88,41],[87,1,87,3],[87,4,87,20],[87,21,87,24],[87,25,87,27],[87,28,87,32],[87,33,87,37],[86,1,86,3],[86,4,86,20],[86,21,86,24],[86,25,86,27],[86,28,86,32],[86,33,86,37],[89,38,89,41],[90,38,90,41],[89,1,89,3],[89,4,89,20],[89,21,89,24],[89,25,89,27],[89,28,89,32],[89,33,89,37],[88,1,88,3],[88,4,88,20],[88,21,88,24],[88,25,88,27],[88,28,88,32],[88,33,88,37],[91,38,91,41],[92,38,92,41],[91,1,91,3],[91,4,91,20],[91,21,91,24],[91,25,91,27],[91,28,91,32],[91,33,91,37],[90,1,90,3],[90,4,90,20],[90,21,90,24],[90,25,90,27],[90,28,90,32],[90,33,90,37],[93,38,93,41],[94,38,94,41],[93,1,93,3],[93,4,93,20],[93,21,93,24],[93,25,93,27],[93,28,93,32],[93,33,93,37],[92,1,92,3],[92,4,92,20],[92,21,92,24],[92,25,92,27],[92,28,92,32],[92,33,92,37],[95,38,95,41],[96,38,96,41],[95,1,95,3],[95,4,95,20],[95,21,95,24],[95,25,95,27],[95,28,95,32],[95,33,95,37],[94,1,94,3],[94,4,94,20],[94,21,94,24],[94,25,94,27],[94,28,94,32],[94,33,94,37],[97,38,97,41],[98,38,98,41],[97,1,97,3],[97,4,97,20],[97,21,97,24],[97,25,97,27],[97,28,97,32],[97,33,97,37],[96,1,96,3],[96,4,96,20],[96,21,96,24],[96,25,96,27],[96,28,96,32],[96,33,96,37],[99,38,99,41],[100,38,100,41],[99,1,99,3],[99,4,99,20],[99,21,99,24],[99,25,99,27],[99,28,99,32],[99,33,99,37],[98,1,98,3],[98,4,98,20],[98,21,98,24],[98,25,98,27],[98,28,98,32],[98,33,98,37],[101,38,101,41],[102,38,102,41],[101,1,101,3],[101,4,101,20],[101,21,101,24],[101,25,101,27],[101,28,101,32],[101,33,101,37],[100,1,100,3],[100,4,100,20],[100,21,100,24],[100,25,100,27],[100,28,100,32],[100,33,100,37],[103,38,103,41],[104,38,104,41],[103,1,103,3],[103,4,103,20],[103,21,103,24],[103,25,103,27],[103,28,103,32],[103,33,103,37],[102,1,102,3],[102,4,102,20],[102,21,102,24],[102,25,102,27],[102,28,102,32],[102,33,102,37],[105,38,105,41],[106,38,106,41],[105,1,105,3],[105,4,105,20],[105,21,105,24],[105,25,105,27],[105,28,105,32],[105,33,105,37],[104,1,104,3],[104,4,104,20],[104,21,104,24],[104,25,104,27],[104,28,104,32],[104,33,104,37],[107,1,107,27],[107,28,107,32],[107,33,107,41],[109,1,111,6],[109,7,111,21],[112,1,114,6],[112,7,114,21],[106,1,106,3],[106,4,106,20],[106,21,106,24],[106,25,106,27],[106,28,106,32],[106,33,106,37],[132,1,134,16],[121,31,122,39],[122,1,123,16],[123,30,123,39],[125,14,126,24],[129,26,129,30],[129,31,129,40],[115,1,115,6],[115,7,115,10],[115,11,115,21],[116,1,118,6],[116,7,118,21],[120,29,120,39],[131,1,131,16],[131,28,131,30],[131,31,131,33],[131,34,131,36],[131,37,131,40],[145,38,145,41],[146,38,146,41],[145,1,145,3],[145,4,145,20],[145,21,145,24],[145,25,145,27],[145,28,145,32],[145,33,145,37],[136,28,136,40],[137,2,138,13],[137,15,138,26],[137,28,138,40],[140,2,140,17],[140,19,140,34],[140,36,142,40],[141,2,142,5],[141,6,142,17],[141,19,142,34],[136,2,136,13],[136,15,136,26],[147,38,147,41],[148,38,148,41],[147,1,147,3],[147,4,147,20],[147,21,147,24],[147,25,147,27],[147,28,147,32],[147,33,147,37],[146,1,146,3],[146,4,146,20],[146,21,146,24],[146,25,146,27],[146,28,146,32],[146,33,146,37],[149,38,149,41],[150,38,150,41],[149,1,149,3],[149,4,149,20],[149,21,149,24],[149,25,149,27],[149,28,149,32],[149,33,149,37],[148,1,148,3],[148,4,148,20],[148,21,148,24],[148,25,148,27],[148,28,148,32],[148,33,148,37],[151,38,151,41],[152,38,152,41],[151,1,151,3],[151,4,151,20],[151,21,151,24],[151,25,151,27],[151,28,151,32],[151,33,151,37],[150,1,150,3],[150,4,150,20],[150,21,150,24],[150,25,150,27],[150,28,150,32],[150,33,150,37],[153,38,153,41],[154,38,154,41],[153,1,153,3],[153,4,153,20],[153,21,153,24],[153,25,153,27],[153,28,153,32],[153,33,153,37],[152,1,152,3],[152,4,152,20],[152,21,152,24],[152,25,152,27],[152,28,152,32],[152,33,152,37],[155,38,155,41],[156,38,156,41],[155,1,155,3],[155,4,155,20],[155,21,155,24],[155,25,155,27],[155,28,155,32],[155,33,155,37],[154,1,154,3],[154,4,154,20],[154,21,154,24],[154,25,154,27],[154,28,154,32],[154,33,154,37],[157,38,157,41],[158,38,158,41],[157,1,157,3],[157,4,157,20],[157,21,157,24],[157,25,157,27],[157,28,157,32],[157,33,157,37],[156,1,156,3],[156,4,156,20],[156,21,156,24],[156,25,156,27],[156,28,156,32],[156,33,156,37],[159,38,159,41],[160,38,160,41],[159,1,159,3],[159,4,159,20],[159,21,159,24],[159,25,159,27],[159,28,159,32],[159,33,159,37],[158,1,158,3],[158,4,158,20],[158,21,158,24],[158,25,158,27],[158,28,158,32],[158,33,158,37],[161,38,161,41],[162,38,162,41],[161,1,161,3],[161,4,161,20],[161,21,161,24],[161,25,161,27],[161,28,161,32],[161,33,161,37],[160,1,160,3],[160,4,160,20],[160,21,160,24],[160,25,160,27],[160,28,160,32],[160,33,160,37],[163,38,163,41],[164,38,164,41],[163,1,163,3],[163,4,163,20],[163,21,163,24],[163,25,163,27],[163,28,163,32],[163,33,163,37],[162,1,162,3],[162,4,162,20],[162,21,162,24],[162,25,162,27],[162,28,162,32],[162,33,162,37],[165,38,165,41],[166,38,166,41],[165,1,165,3],[165,4,165,20],[165,21,165,24],[165,25,165,27],[165,28,165,32],[165,33,165,37],[164,1,164,3],[164,4,164,20],[164,21,164,24],[164,25,164,27],[164,28,164,32],[164,33,164,37],[192,1,194,16],[181,31,182,39],[182,1,183,16],[183,30,183,39],[185,14,186,24],[189,26,189,30],[189,31,189,40],[175,1,175,6],[175,7,175,10],[175,11,175,21],[176,1,178,6],[176,7,178,21],[180,29,180,39],[191,1,191,16],[191,28,191,30],[191,31,191,33],[191,34,191,36],[191,37,191,40],[196,28,196,40],[197,2,198,13],[197,15,198,26],[197,28,198,40],[200,2,200,17],[200,19,200,34],[200,36,202,40],[201,2,202,5],[201,6,202,17],[201,19,202,34],[196,2,196,13],[196,15,196,26],[206,1,206,3],[206,4,206,20],[206,21,206,24],[206,25,206,27],[206,28,206,32],[206,33,206,37],[205,38,205,41],[206,38,206,41],[205,1,205,3],[205,4,205,20],[205,21,205,24],[205,25,205,27],[205,28,205,32],[205,33,205,37],[208,1,208,3],[208,4,208,20],[208,21,208,24],[208,25,208,27],[208,28,208,32],[208,33,208,37],[207,38,207,41],[208,38,208,41],[207,1,207,3],[207,4,207,20],[207,21,207,24],[207,25,207,27],[207,28,207,32],[207,33,207,37],[210,1,210,3],[210,4,210,20],[210,21,210,24],[210,25,210,27],[210,28,210,32],[210,33,210,37],[209,38,209,41],[210,38,210,41],[209,1,209,3],[209,4,209,20],[209,21,209,24],[209,25,209,27],[209,28,209,32],[209,33,209,37],[212,1,212,3],[212,4,212,20],[212,21,212,24],[212,25,212,27],[212,28,212,32],[212,33,212,37],[211,38,211,41],[212,38,212,41],[211,1,211,3],[211,4,211,20],[211,21,211,24],[211,25,211,27],[211,28,211,32],[211,33,211,37],[214,1,214,3],[214,4,214,20],[214,21,214,24],[214,25,214,27],[214,28,214,32],[214,33,214,37],[213,38,213,41],[214,38,214,41],[213,1,213,3],[213,4,213,20],[213,21,213,24],[213,25,213,27],[213,28,213,32],[213,33,213,37],[216,1,216,3],[216,4,216,20],[216,21,216,24],[216,25,216,27],[216,28,216,32],[216,33,216,37],[215,38,215,41],[216,38,216,41],[215,1,215,3],[215,4,215,20],[215,21,215,24],[215,25,215,27],[215,28,215,32],[215,33,215,37],[218,1,218,3],[218,4,218,20],[218,21,218,24],[218,25,218,27],[218,28,218,32],[218,33,218,37],[217,38,217,41],[218,38,218,41],[217,1,217,3],[217,4,217,20],[217,21,217,24],[217,25,217,27],[217,28,217,32],[217,33,217,37],[220,1,220,3],[220,4,220,20],[220,21,220,24],[220,25,220,27],[220,28,220,32],[220,33,220,37],[219,38,219,41],[220,38,220,41],[219,1,219,3],[219,4,219,20],[219,21,219,24],[219,25,219,27],[219,28,219,32],[219,33,219,37],[222,1,222,3],[222,4,222,20],[222,21,222,24],[222,25,222,27],[222,28,222,32],[222,33,222,37],[221,38,221,41],[222,38,222,41],[221,1,221,3],[221,4,221,20],[221,21,221,24],[221,25,221,27],[221,28,221,32],[221,33,221,37],[224,1,224,3],[224,4,224,20],[224,21,224,24],[224,25,224,27],[224,28,224,32],[224,33,224,37],[223,38,223,41],[224,38,224,41],[223,1,223,3],[223,4,223,20],[223,21,223,24],[223,25,223,27],[223,28,223,32],[223,33,223,37],[226,1,226,3],[226,4,226,20],[226,21,226,24],[226,25,226,27],[226,28,226,32],[226,33,226,37],[225,38,225,41],[226,38,226,41],[225,1,225,3],[225,4,225,20],[225,21,225,24],[225,25,225,27],[225,28,225,32],[225,33,225,37],[235,1,235,6],[235,7,235,10],[235,11,235,21],[236,1,238,6],[236,7,238,21],[227,1,227,27],[227,28,227,32],[227,33,227,41],[229,1,231,6],[229,7,231,21],[232,1,234,6],[232,7,234,21],[47,1,47,27],[47,28,47,32],[47,33,47,41],[49,1,51,6],[49,7,51,21],[52,1,54,6],[52,7,54,21],[46,1,46,3],[46,4,46,20],[46,21,46,24],[46,25,46,27],[46,28,46,32],[46,33,46,37],[45,38,45,41],[46,38,46,41],[45,1,45,3],[45,4,45,20],[45,21,45,24],[45,25,45,27],[45,28,45,32],[45,33,45,37],[44,1,44,3],[44,4,44,20],[44,21,44,24],[44,25,44,27],[44,28,44,32],[44,33,44,37],[167,1,167,27],[167,28,167,32],[167,33,167,41],[169,1,171,6],[169,7,171,21],[172,1,174,6],[172,7,174,21],[166,1,166,3],[166,4,166,20],[166,21,166,24],[166,25,166,27],[166,28,166,32],[166,33,166,37]]}
[null,"〒",null,"359-1111",null,null,null,null,null,null,null,null,null,null,null,null,null,null,null,null,null,null,null,null,null,null,null,"NO."]
[null,"埼玉県所沢市緑町2-1-20合田ビル2階",null,null,null,null,null,null,null,null,null,null,null,null,null,null,null,null,null,null,null,null,null,null,null,null,null,null,null,null,null,"2023-10-20"]
[null,"有限会社　埼玉小島建設　御中",null,null,null,null,null,null,null,null,null,null,null,null,null,null,null,null,null,null,null,null,null,null,null,null,null,"発行年月日"]
[null,null,null,null,null,null,null,null,null,null,null,null,null,null,null,null,null,null,null,null,null,null,null,null,null,null,null,"郵便番号"]
[null,null,null,null,null,null,null,null,null,null,null,null,null,null,null,null,null,null,null,null,null,null,null,null,null,null,null,"ご住所"]
[null,null,null,null,null,null,null,null,null,null,null,null,null,null,"請　　求　　書",null,null,null,null,null,null,null,null,null,null,null,null,"御社名"]
[null,null,null,null,null,null,null,null,null,null,null,null,null,null,null,null,null,null,null,null,null,null,null,null,null,null,null,"電話"]
[null,null,null,null,null,null,null,null,null,null,null,null,null,null,null,null,null,null,null,null,null,null,null,null,null,null,null,"FAX"]
[]
[null,null,null,null,null,null,null,null,null,null,null,null,null,null,null,null,null,null,null,null,null,null,null,null,null,null,"担当者名："]
[]
[null,"請　求　総　合　計"]
[null,{"$f":"AC18+AC78+AC138+AC198","v":0}]
[]
[]
[]
[null,null,null,null,null,null,null,null,null,null,null,null,null,null,null,null,null,null,null,null,null,null,null,null,null,null,null,null,"請　求　額"]
[null,null,null,null,null,null,null,null,null,null,null,null,null,null,null,null,null,null,null,null,null,null,null,null,null,null,null,null,{"$f":"AC48","v":0}]
[]
[]
[null,null,"現 場 名",null,null,null,null,null,null,null,null,null,null,null,null,null,null,null,null,"埼玉小島建設　現場担当者名"]
[]
[]
[]
[]
[null,"月日",null,null,"工事内容・納品名",null,null,null,null,null,null,null,null,null,null,null,null,null,null,null,null,"数量",null,null,null,"単位",null,null,"単価",null,null,null,null,"金額",null,null,null,null,"備考",null,null,null,"1ページ目"]
[null,null,null,null,null,null,null,null,null,null,null,null,null,null,null,null,null,null,null,null,null,null,null,null,null,null,null,null,null,null,null,null,null,{"$f":"V27*AC27","v":0},null,null,null,null,null,null,null,null,"2ページ目"]
[null,null,null,null,null,null,null,null,null,null,null,null,null,null,null,null,null,null,null,null,null,null,null,null,null,null,null,null,null,null,null,null,null,0,null,null,null,null,null,null,null,null,"3ページ目"]
[null,null,null,null,null,null,null,null,null,null,null,null,null,null,null,null,null,null,null,null,null,null,null,null,null,null,null,null,null,null,null,null,null,0,null,null,null,null,null,null,null,null,"4ページ目"]
[null,null,null,null,null,null,null,null,null,null,null,null,null,null,null,null,null,null,null,null,null,null,null,null,null,null,null,null,null,null,null,null,null,0]
[null,null,null,null,null,null,null,null,null,null,null,null,null,null,null,null,null,null,null,null,null,null,null,null,null,null,null,null,null,null,null,null,null,0,null,null,null,null,null,null,null,null,null,null,null,null,null,null,null,null,null,null,null,null,null,null,"普通"]
[null,null,null,null,null,null,null,null,null,null,null,null,null,null,null,null,null,null,null,null,null,null,null,null,null,null,null,null,null,null,null,null,null,0,null,null,null,null,null,null,null,null,null,null,null,null,null,null,null,null,null,null,null,null,null,null,"当座"]
[null,null,null,null,null,null,null,null,null,null,null,null,null,null,null,null,null,null,null,null,null,null,null,null,null,null,null,null,null,null,null,null,null,0]
[null,null,null,null,null,null,null,null,null,null,null,null,null,null,null,null,null,null,null,null,null,null,null,null,null,null,null,null,null,null,null,null,null,0]
[null,null,null,null,null,null,null,null,null,null,null,null,null,null,null,null,null,null,null,null,null,null,null,null,null,null,null,null,null,null,null,null,null,0]
[null,null,null,null,null,null,null,null,null,null,null,null,null,null,null,null,null,null,null,null,null,null,null,null,null,null,null,null,null,null,null,null,null,0]
[null,null,null,null,null,null,null,null,null,null,null,null,null,null,null,null,null,null,null,null,null,null,null,null,null,null,null,null,null,null,null,null,null,0]
[null,null,null,null,null,null,null,null,null,null,null,null,null,null,null,null,null,null,null,null,null,null,null,null,null,null,null,null,null,null,null,null,null,0]
[null,null,null,null,null,null,null,null,null,null,null,null,null,null,null,null,null,null,null,null,null,null,null,null,null,null,null,null,null,null,null,null,null,0]
[null,null,null,null,null,null,null,null,null,null,null,null,null,null,null,null,null,null,null,null,null,null,null,null,null,null,null,null,null,null,null,null,null,0]
[null,null,null,null,null,null,null,null,null,null,null,null,null,null,null,null,null,null,null,null,null,null,null,null,null,null,null,null,null,null,null,null,null,0]
[null,null,null,null,null,null,null,null,null,null,null,null,null,null,null,null,null,null,null,null,null,null,null,null,null,null,null,null,null,null,null,null,null,0]
[null,null,null,null,null,null,null,null,null,null,null,null,null,null,null,null,null,null,null,null,null,null,null,null,null,null,null,null,null,null,null,null,null,0]
[null,null,null,null,null,null,null,null,null,null,null,null,null,null,null,null,null,null,null,null,null,null,null,null,null,null,null,null,null,null,null,null,null,0]
[null,null,null,null,null,null,null,null,null,null,null,null,null,null,null,null,null,null,null,null,null,null,null,null,null,null,null,null,null,null,null,null,null,0]
[null,null,null,null,null,null,null,null,null,null,null,null,null,null,null,null,null,null,null,null,null,null,null,null,null,null,null,null,null,null,null,null,null,0]
[null,null,null,null,null,null,null,null,null,null,null,null,null,null,null,null,null,null,null,null,null,null,null,null,null,null,null,null,null,null,null,null,null,0]
[null,"小計",null,null,null,null,null,null,null,null,null,null,null,null,null,null,null,null,null,null,null,null,null,null,null,null,null,null,{"$f":"SUM(AH26:AL46)","v":0}]
[null,null,"※","毎月20日締切り、25日郵送必着でお願いします。翌々月5日支払いとなります。"]
[null,"銀行名"]
[]
[]
[null,"支店名"]
[]
[]
[null,"口座番号",null,null,null,null,null,"普通"]
[null,"口座名義人"]
[]
[]
[]
[null,"〒",null,"359-1111",null,null,null,null,null,null,null,null,null,null,null,null,null,null,null,null,null,null,null,null,null,null,null,"NO."]
[null,"埼玉県所沢市緑町2-1-20合田ビル2階",null,null,null,null,null,null,null,null,null,null,null,null,null,null,null,null,null,null,null,null,null,null,null,null,null,null,null,null,null,"2023-05-01"]
[null,"有限会社　埼玉小島建設　御中",null,null,null,null,null,null,null,null,null,null,null,null,null,null,null,null,null,null,null,null,null,null,null,null,null,"発行年月日"]
[null,null,null,null,null,null,null,null,null,null,null,null,null,null,null,null,null,null,null,null,null,null,null,null,null,null,null,"郵便番号"]
[null,null,null,null,null,null,null,null,null,null,null,null,null,null,null,null,null,null,null,null,null,null,null,null,null,null,null,"ご住所"]
[null,null,null,null,null,null,null,null,null,null,null,null,null,null,"請　　求　　書",null,null,null,null,null,null,null,null,null,null,null,null,"御社名"]
[null,null,null,null,null,null,null,null,null,null,null,null,null,null,null,null,null,null,null,null,null,null,null,null,null,null,null,"電話"]
[null,null,null,null,null,null,null,null,null,null,null,null,null,null,null,null,null,null,null,null,null,null,null,null,null,null,null,"FAX"]
[]
[null,null,null,null,null,null,null,null,null,null,null,null,null,null,null,null,null,null,null,null,null,null,null,null,null,null,"担当者名："]
[]
[]
[]
[]
[]
[]
[null,null,null,null,null,null,null,null,null,null,null,null,null,null,null,null,null,null,null,null,null,null,null,null,null,null,null,null,"請　求　額"]
[null,null,null,null,null,null,null,null,null,null,null,null,null,null,null,null,null,null,null,null,null,null,null,null,null,null,null,null,{"$f":"AC108","v":0}]
[]
[]
[null,null,"現 場 名",null,null,null,null,null,null,null,null,null,null,null,null,null,null,null,null,"埼玉小島建設　現場担当者名"]
[]
[]
[]
[]
[null,"月日",null,null,"工事内容・納品名",null,null,null,null,null,null,null,null,null,null,null,null,null,null,null,null,"数量",null,null,null,"単位",null,null,"単価",null,null,null,null,"金額",null,null,null,null,"備考",null,null,null,"1ページ目"]
[null,null,null,null,null,null,null,null,null,null,null,null,null,null,null,null,null,null,null,null,null,null,null,null,null,null,null,null,null,null,null,null,null,{"$f":"V87*AC87","v":0},null,null,null,null,null,null,null,null,"2ページ目"]
[null,null,null,null,null,null,null,null,null,null,null,null,null,null,null,null,null,null,null,null,null,null,null,null,null,null,null,null,null,null,null,null,null,0,null,null,null,null,null,null,null,null,"3ページ目"]
[null,null,null,null,null,null,null,null,null,null,null,null,null,null,null,null,null,null,null,null,null,null,null,null,null,null,null,null,null,null,null,null,null,0,null,null,null,null,null,null,null,null,"4ページ目"]
[null,null,null,null,null,null,null,null,null,null,null,null,null,null,null,null,null,null,null,null,null,null,null,null,null,null,null,null,null,null,null,null,null,0]
[null,null,null,null,null,null,null,null,null,null,null,null,null,null,null,null,null,null,null,null,null,null,null,null,null,null,null,null,null,null,null,null,null,0,null,null,null,null,null,null,null,null,null,null,null,null,null,null,null,null,null,null,null,null,null,null,"普通"]
[null,null,null,null,null,null,null,null,null,null,null,null,null,null,null,null,null,null,null,null,null,null,null,null,null,null,null,null,null,null,null,null,null,0,null,null,null,null,null,null,null,null,null,null,null,null,null,null,null,null,null,null,null,null,null,null,"当座"]
[null,null,null,null,null,null,null,null,null,null,null,null,null,null,null,null,null,null,null,null,null,null,null,null,null,null,null,null,null,null,null,null,null,0]
[null,null,null,null,null,null,null,null,null,null,null,null,null,null,null,null,null,null,null,null,null,null,null,null,null,null,null,null,null,null,null,null,null,0]
[null,null,null,null,null,null,null,null,null,null,null,null,null,null,null,null,null,null,null,null,null,null,null,null,null,null,null,null,null,null,null,null,null,0]
[null,null,null,null,null,null,null,null,null,null,null,null,null,null,null,null,null,null,null,null,null,null,null,null,null,null,null,null,null,null,null,null,null,0]
[null,null,null,null,null,null,null,null,null,null,null,null,null,null,null,null,null,null,null,null,null,null,null,null,null,null,null,null,null,null,null,null,null,0]
[null,null,null,null,null,null,null,null,null,null,null,null,null,null,null,null,null,null,null,null,null,null,null,null,null,null,null,null,null,null,null,null,null,0]
[null,null,null,null,null,null,null,null,null,null,null,null,null,null,null,null,null,null,null,null,null,null,null,null,null,null,null,null,null,null,null,null,null,0]
[null,null,null,null,null,null,null,null,null,null,null,null,null,null,null,null,null,null,null,null,null,null,null,null,null,null,null,null,null,null,null,null,null,0]
[null,null,null,null,null,null,null,null,null,null,null,null,null,null,null,null,null,null,null,null,null,null,null,null,null,null,null,null,null,null,null,null,null,0]
[null,null,null,null,null,null,null,null,null,null,null,null,null,null,null,null,null,null,null,null,null,null,null,null,null,null,null,null,null,null,null,null,null,0]
[null,null,null,null,null,null,null,null,null,null,null,null,null,null,null,null,null,null,null,null,null,null,null,null,null,null,null,null,null,null,null,null,null,0]
[null,null,null,null,null,null,null,null,null,null,null,null,null,null,null,null,null,null,null,null,null,null,null,null,null,null,null,null,null,null,null,null,null,0]
[null,null,null,null,null,null,null,null,null,null,null,null,null,null,null,null,null,null,null,null,null,null,null,null,null,null,null,null,null,null,null,null,null,0]
[null,null,null,null,null,null,null,null,null,null,null,null,null,null,null,null,null,null,null,null,null,null,null,null,null,null,null,null,null,null,null,null,null,0]
[null,null,null,null,null,null,null,null,null,null,null,null,null,null,null,null,null,null,null,null,null,null,null,null,null,null,null,null,null,null,null,null,null,0]
[null,"小計",null,null,null,null,null,null,null,null,null,null,null,null,null,null,null,null,null,null,null,null,null,null,null,null,null,null,{"$f":"SUM(AH86:AL106)","v":0}]
[null,null,"※","毎月20日締切り、25日郵送必着でお願いします。翌々月5日支払いとなります。"]
[null,"銀行名"]
[]
[]
[null,"支店名"]
[]
[]
[null,"口座番号",null,null,null,null,null,"普通"]
[null,"口座名義人"]
[]
[]
[]
[null,"〒",null,"359-1111",null,null,null,null,null,null,null,null,null,null,null,null,null,null,null,null,null,null,null,null,null,null,null,"NO."]
[null,"埼玉県所沢市緑町2-1-20合田ビル2階",null,null,null,null,null,null,null,null,null,null,null,null,null,null,null,null,null,null,null,null,null,null,null,null,null,null,null,null,null,"2023-05-01"]
[null,"有限会社　埼玉小島建設　御中",null,null,null,null,null,null,null,null,null,null,null,null,null,null,null,null,null,null,null,null,null,null,null,null,null,"発行年月日"]
[null,null,null,null,null,null,null,null,null,null,null,null,null,null,null,null,null,null,null,null,null,null,null,null,null,null,null,"郵便番号"]
[null,null,null,null,null,null,null,null,null,null,null,null,null,null,null,null,null,null,null,null,null,null,null,null,null,null,null,"ご住所"]
[null,null,null,null,null,null,null,null,null,null,null,null,null,null,"請　　求　　書",null,null,null,null,null,null,null,null,null,null,null,null,"御社名"]
[null,null,null,null,null,null,null,null,null,null,null,null,null,null,null,null,null,null,null,null,null,null,null,null,null,null,null,"電話"]
[null,null,null,null,null,null,null,null,null,null,null,null,null,null,null,null,null,null,null,null,null,null,null,null,null,null,null,"FAX"]
[]
[null,null,null,null,null,null,null,null,null,null,null,null,null,null,null,null,null,null,null,null,null,null,null,null,null,null,"担当者名："]
[]
[]
[]
[]
[]
[]
[null,null,null,null,null,null,null,null,null,null,null,null,null,null,null,null,null,null,null,null,null,null,null,null,null,null,null,null,"請　求　額"]
[null,null,null,null,null,null,null,null,null,null,null,null,null,null,null,null,null,null,null,null,null,null,null,null,null,null,null,null,{"$f":"AC168","v":0}]
[]
[]
[null,null,"現 場 名",null,null,null,null,null,null,null,null,null,null,null,null,null,null,null,null,"埼玉小島建設　現場担当者名"]
[]
[]
[]
[]
[null,"月日",null,null,"工事内容・納品名",null,null,null,null,null,null,null,null,null,null,null,null,null,null,null,null,"数量",null,null,null,"単位",null,null,"単価",null,null,null,null,"金額",null,null,null,null,"備考",null,null,null,"1ページ目"]
[null,null,null,null,null,null,null,null,null,null,null,null,null,null,null,null,null,null,null,null,null,null,null,null,null,null,null,null,null,null,null,null,null,{"$f":"V147*AC147","v":0},null,null,null,null,null,null,null,null,"2ページ目"]
[null,null,null,null,null,null,null,null,null,null,null,null,null,null,null,null,null,null,null,null,null,null,null,null,null,null,null,null,null,null,null,null,null,0,null,null,null,null,null,null,null,null,"3ページ目"]
[null,null,null,null,null,null,null,null,null,null,null,null,null,null,null,null,null,null,null,null,null,null,null,null,null,null,null,null,null,null,null,null,null,0,null,null,null,null,null,null,null,null,"4ページ目"]
[null,null,null,null,null,null,null,null,null,null,null,null,null,null,null,null,null,null,null,null,null,null,null,null,null,null,null,null,null,null,null,null,null,0]
[null,null,null,null,null,null,null,null,null,null,null,null,null,null,null,null,null,null,null,null,null,null,null,null,null,null,null,null,null,null,null,null,null,0,null,null,null,null,null,null,null,null,null,null,null,null,null,null,null,null,null,null,null,null,null,null,"普通"]
[null,null,null,null,null,null,null,null,null,null,null,null,null,null,null,null,null,null,null,null,null,null,null,null,null,null,null,null,null,null,null,null,null,0,null,null,null,null,null,null,null,null,null,null,null,null,null,null,null,null,null,null,null,null,null,null,"当座"]
[null,null,null,null,null,null,null,null,null,null,null,null,null,null,null,null,null,null,null,null,null,null,null,null,null,null,null,null,null,null,null,null,null,0]
[null,null,null,null,null,null,null,null,null,null,null,null,null,null,null,null,null,null,null,null,null,null,null,null,null,null,null,null,null,null,null,null,null,0]
[null,null,null,null,null,null,null,null,null,null,null,null,null,null,null,null,null,null,null,null,null,null,null,null,null,null,null,null,null,null,null,null,null,0]
[null,null,null,null,null,null,null,null,null,null,null,null,null,null,null,null,null,null,null,null,null,null,null,null,null,null,null,null,null,null,null,null,null,0]
[null,null,null,null,null,null,null,null,null,null,null,null,null,null,null,null,null,null,null,null,null,null,null,null,null,null,null,null,null,null,null,null,null,0]
[null,null,null,null,null,null,null,null,null,null,null,null,null,null,null,null,null,null,null,null,null,null,null,null,null,null,null,null,null,null,null,null,null,0]
[null,null,null,null,null,null,null,null,null,null,null,null,null,null,null,null,null,null,null,null,null,null,null,null,null,null,null,null,null,null,null,null,null,0]
[null,null,null,null,null,null,null,null,null,null,null,null,null,null,null,null,null,null,null,null,null,null,null,null,null,null,null,null,null,null,null,null,null,0]
[null,null,null,null,null,null,null,null,null,null,null,null,null,null,null,null,null,null,null,null,null,null,null,null,null,null,null,null,null,null,null,null,null,0]
[null,null,null,null,null,null,null,null,null,null,null,null,null,null,null,null,null,null,null,null,null,null,null,null,null,null,null,null,null,null,null,null,null,0]
[null,null,null,null,null,null,null,null,null,null,null,null,null,null,null,null,null,null,null,null,null,null,null,null,null,null,null,null,null,null,null,null,null,0]
[null,null,null,null,null,null,null,null,null,null,null,null,null,null,null,null,null,null,null,null,null,null,null,null,null,null,null,null,null,null,null,null,null,0]
[null,null,null,null,null,null,null,null,null,null,null,null,null,null,null,null,null,null,null,null,null,null,null,null,null,null,null,null,null,null,null,null,null,0]
[null,null,null,null,null,null,null,null,null,null,null,null,null,null,null,null,null,null,null,null,null,null,null,null,null,null,null,null,null,null,null,null,null,0]
[null,null,null,null,null,null,null,null,null,null,null,null,null,null,null,null,null,null,null,null,null,null,null,null,null,null,null,null,null,null,null,null,null,0]
[null,"小計",null,null,null,null,null,null,null,null,null,null,null,null,null,null,null,null,null,null,null,null,null,null,null,null,null,null,{"$f":"SUM(AH146:AL166)","v":0}]
[null,null,"※","毎月20日締切り、25日郵送必着でお願いします。翌々月5日支払いとなります。"]
[null,"銀行名"]
[]
[]
[null,"支店名"]
[]
[]
[null,"口座番号",null,null,null,null,null,"普通"]
[null,"口座名義人"]
[]
[]
[]
[null,"〒",null,"359-1111",null,null,null,null,null,null,null,null,null,null,null,null,null,null,null,null,null,null,null,null,null,null,null,"NO."]
[null,"埼玉県所沢市緑町2-1-20合田ビル2階",null,null,null,null,null,null,null,null,null,null,null,null,null,null,null,null,null,null,null,null,null,null,null,null,null,null,null,null,null,"2023-05-01"]
[null,"有限会社　埼玉小島建設　御中",null,null,null,null,null,null,null,null,null,null,null,null,null,null,null,null,null,null,null,null,null,null,null,null,null,"発行年月日"]
[null,null,null,null,null,null,null,null,null,null,null,null,null,null,null,null,null,null,null,null,null,null,null,null,null,null,null,"郵便番号"]
[null,null,null,null,null,null,null,null,null,null,null,null,null,null,null,null,null,null,null,null,null,null,null,null,null,null,null,"ご住所"]
[null,null,null,null,null,null,null,null,null,null,null,null,null,null,"請　　求　　書",null,null,null,null,null,null,null,null,null,null,null,null,"御社名"]
[null,null,null,null,null,null,null,null,null,null,null,null,null,null,null,null,null,null,null,null,null,null,null,null,null,null,null,"電話"]
[null,null,null,null,null,null,null,null,null,null,null,null,null,null,null,null,null,null,null,null,null,null,null,null,null,null,null,"FAX"]
[]
[null,null,null,null,null,null,null,null,null,null,null,null,null,null,null,null,null,null,null,null,null,null,null,null,null,null,"担当者名："]
[]
[]
[]
[]
[]
[]
[null,null,null,null,null,null,null,null,null,null,null,null,null,null,null,null,null,null,null,null,null,null,null,null,null,null,null,null,"請　求　額"]
[null,null,null,null,null,null,null,null,null,null,null,null,null,null,null,null,null,null,null,null,null,null,null,null,null,null,null,null,{"$f":"AC228","v":0}]
[]
[]
[null,null,"現 場 名",null,null,null,null,null,null,null,null,null,null,null,null,null,null,null,null,"埼玉小島建設　現場担当者名"]
[]
[]
[]
[]
[null,"月日",null,null,"工事内容・納品名",null,null,null,null,null,null,null,null,null,null,null,null,null,null,null,null,"数量",null,null,null,"単位",null,null,"単価",null,null,null,null,"金額",null,null,null,null,"備考",null,null,null,"1ページ目"]
[null,null,null,null,null,null,null,null,null,null,null,null,null,null,null,null,null,null,null,null,null,null,null,null,null,null,null,null,null,null,null,null,null,{"$f":"V207*AC207","v":0},null,null,null,null,null,null,null,null,"2ページ目"]
[null,null,null,null,null,null,null,null,null,null,null,null,null,null,null,null,null,null,null,null,null,null,null,null,null,null,null,null,null,null,null,null,null,0,null,null,null,null,null,null,null,null,"3ページ目"]
[null,null,null,null,null,null,null,null,null,null,null,null,null,null,null,null,null,null,null,null,null,null,null,null,null,null,null,null,null,null,null,null,null,0,null,null,null,null,null,null,null,null,"4ページ目"]
[null,null,null,null,null,null,null,null,null,null,null,null,null,null,null,null,null,null,null,null,null,null,null,null,null,null,null,null,null,null,null,null,null,0]
[null,null,null,null,null,null,null,null,null,null,null,null,null,null,null,null,null,null,null,null,null,null,null,null,null,null,null,null,null,null,null,null,null,0,null,null,null,null,null,null,null,null,null,null,null,null,null,null,null,null,null,null,null,null,null,null,"普通"]
[null,null,null,null,null,null,null,null,null,null,null,null,null,null,null,null,null,null,null,null,null,null,null,null,null,null,null,null,null,null,null,null,null,0,null,null,null,null,null,null,null,null,null,null,null,null,null,null,null,null,null,null,null,null,null,null,"当座"]
[null,null,null,null,null,null,null,null,null,null,null,null,null,null,null,null,null,null,null,null,null,null,null,null,null,null,null,null,null,null,null,null,null,0]
[null,null,null,null,null,null,null,null,null,null,null,null,null,null,null,null,null,null,null,null,null,null,null,null,null,null,null,null,null,null,null,null,null,0]
[null,null,null,null,null,null,null,null,null,null,null,null,null,null,null,null,null,null,null,null,null,null,null,null,null,null,null,null,null,null,null,null,null,0]
[null,null,null,null,null,null,null,null,null,null,null,null,null,null,null,null,null,null,null,null,null,null,null,null,null,null,null,null,null,null,null,null,null,0]
[null,null,null,null,null,null,null,null,null,null,null,null,null,null,null,null,null,null,null,null,null,null,null,null,null,null,null,null,null,null,null,null,null,0]
[null,null,null,null,null,null,null,null,null,null,null,null,null,null,null,null,null,null,null,null,null,null,null,null,null,null,null,null,null,null,null,null,null,0]
[null,null,null,null,null,null,null,null,null,null,null,null,null,null,null,null,null,null,null,null,null,null,null,null,null,null,null,null,null,null,null,null,null,0]
[null,null,null,null,null,null,null,null,null,null,null,null,null,null,null,null,null,null,null,null,null,null,null,null,null,null,null,null,null,null,null,null,null,0]
[null,null,null,null,null,null,null,null,null,null,null,null,null,null,null,null,null,null,null,null,null,null,null,null,null,null,null,null,null,null,null,null,null,0]
[null,null,null,null,null,null,null,null,null,null,null,null,null,null,null,null,null,null,null,null,null,null,null,null,null,null,null,null,null,null,null,null,null,0]
[null,null,null,null,null,null,null,null,null,null,null,null,null,null,null,null,null,null,null,null,null,null,null,null,null,null,null,null,null,null,null,null,null,0]
[null,null,null,null,null,null,null,null,null,null,null,null,null,null,null,null,null,null,null,null,null,null,null,null,null,null,null,null,null,null,null,null,null,0]
[null,null,null,null,null,null,null,null,null,null,null,null,null,null,null,null,null,null,null,null,null,null,null,null,null,null,null,null,null,null,null,null,null,0]
[null,null,null,null,null,null,null,null,null,null,null,null,null,null,null,null,null,null,null,null,null,null,null,null,null,null,null,null,null,null,null,null,null,0]
[null,null,null,null,null,null,null,null,null,null,null,null,null,null,null,null,null,null,null,null,null,null,null,null,null,null,null,null,null,null,null,null,null,0]
[null,"小計",null,null,null,null,null,null,null,null,null,null,null,null,null,null,null,null,null,null,null,null,null,null,null,null,null,null,{"$f":"SUM(AH206:AL226)","v":0}]
[null,null,"※","毎月20日締切り、25日郵送必着でお願いします。翌々月5日支払いとなります。"]
[null,"銀行名"]
[]
[]
[null,"支店名"]
[]
[]
[null,"口座番号",null,null,null,null,null,"普通"]
[null,"口座名義人"]

{"sheet":"100％請求用(通常はこちらを使用してください）","index":2,"n_rows":1197,"n_cols":57,"rows_kept":1197,"cut":false,"hidden":false,"merged":[[56,1,58,6],[45,21,45,24],[45,25,45,27],[45,28,45,32],[45,33,45,37],[45,39,45,41],[46,1,46,3],[46,4,46,20],[46,21,46,24],[46,25,46,27],[46,28,46,32],[46,33,46,37],[46,39,46,41],[45,1,45,3],[45,4,45,20],[47,1,47,27],[47,28,47,32],[47,33,47,41],[49,1,51,6],[56,7,58,21],[44,21,44,24],[44,25,44,27],[44,28,44,32],[41,39,41,41],[42,1,42,3],[42,4,42,20],[42,21,42,24],[42,25,42,27],[42,28,42,32],[42,33,42,37],[42,39,42,41],[41,1,41,3],[41,4,41,20],[52,1,54,6],[52,7,54,21],[55,1,55,6],[55,7,55,10],[55,11,55,21],[44,33,44,37],[44,39,44,41],[43,1,43,3],[43,4,43,20],[43,21,43,24],[43,25,43,27],[43,28,43,32],[43,33,43,37],[49,7,51,21],[41,21,41,24],[41,25,41,27],[41,28,41,32],[41,33,41,37],[43,39,43,41],[40,33,40,37],[40,39,40,41],[39,1,39,3],[39,4,39,20],[39,21,39,24],[39,25,39,27],[39,28,39,32],[39,33,39,37],[37,21,37,24],[37,25,37,27],[37,28,37,32],[37,33,37,37],[39,39,39,41],[40,1,40,3],[40,4,40,20],[40,21,40,24],[40,25,40,27],[40,28,40,32],[37,39,37,41],[38,1,38,3],[38,4,38,20],[38,21,38,24],[38,25,38,27],[38,28,38,32],[44,1,44,3],[44,4,44,20],[33,21,33,24],[33,25,33,27],[33,28,33,32],[33,33,33,37],[33,39,33,41],[34,1,34,3],[34,4,34,20],[34,21,34,24],[34,25,34,27],[34,28,34,32],[34,33,34,37],[34,39,34,41],[33,1,33,3],[33,4,33,20],[38,33,38,37],[38,39,38,41],[37,1,37,3],[37,4,37,20],[36,33,36,37],[36,39,36,41],[35,1,35,3],[35,4,35,20],[35,21,35,24],[35,25,35,27],[35,28,35,32],[35,33,35,37],[35,39,35,41],[36,1,36,3],[36,4,36,20],[36,21,36,24],[36,25,36,27],[36,28,36,32],[31,1,31,3],[31,4,31,20],[31,21,31,24],[31,25,31,27],[31,28,31,32],[31,33,31,37],[26,21,26,24],[26,25,26,27],[26,28,26,32],[29,21,29,24],[29,25,29,27],[29,28,29,32],[29,33,29,37],[31,39,31,41],[32,1,32,3],[32,4,32,20],[32,21,32,24],[32,25,32,27],[32,28,32,32],[29,39,29,41],[30,1,30,3],[30,4,30,20],[27,25,27,27],[27,28,27,32],[32,33,32,37],[32,39,32,41],[0,29,0,39],[1,31,2,39],[2,1,3,16],[9,31,9,40],[11,28,11,30],[11,31,11,33],[11,34,11,36],[11,37,11,40],[5,14,6,24],[26,33,26,37],[26,39,26,41],[25,1,25,3],[25,4,25,20],[16,2,16,13],[16,15,16,26],[30,21,30,24],[30,25,30,27],[30,28,30,32],[30,33,30,37],[30,39,30,41],[29,1,29,3],[29,4,29,20],[27,33,27,37],[25,21,25,24],[25,25,25,27],[25,28,25,32],[25,33,25,37],[27,39,27,41],[28,1,28,3],[65,14,66,24],[71,12,71,14],[71,15,71,17],[71,18,71,20],[71,21,71,24],[11,1,11,16],[12,1,14,16],[60,29,60,39],[61,31,62,39],[62,1,63,16],[16,28,16,40],[17,2,18,13],[17,15,18,26],[17,28,18,40],[20,2,20,17],[20,19,20,34],[20,36,22,40],[28,4,28,20],[28,21,28,24],[28,25,28,27],[28,28,28,32],[25,39,25,41],[26,1,26,3],[26,4,26,20],[21,2,22,5],[21,6,22,17],[21,19,22,34],[28,33,28,37],[28,39,28,41],[27,1,27,3],[27,4,27,20],[27,21,27,24],[85,1,85,3],[85,4,85,20],[85,21,85,24],[85,25,85,27],[85,28,85,32],[85,33,85,37],[85,39,85,41],[86,1,86,3],[86,4,86,20],[86,21,86,24],[86,25,86,27],[86,28,86,32],[86,33,86,37],[86,39,86,41],[76,2,76,13],[76,15,76,26],[76,28,76,40],[77,2,78,13],[77,15,78,26],[77,28,78,40],[80,2,80,17],[80,19,80,34],[80,36,82,40],[81,2,82,5],[81,6,82,17],[81,19,82,34],[89,1,89,3],[89,4,89,20],[89,21,89,24],[89,25,89,27],[89,28,89,32],[89,33,89,37],[89,39,89,41],[90,1,90,3],[90,4,90,20],[90,21,90,24],[90,25,90,27],[90,28,90,32],[90,33,90,37],[90,39,90,41],[87,1,87,3],[87,4,87,20],[87,21,87,24],[87,25,87,27],[87,28,87,32],[87,33,87,37],[87,39,87,41],[88,1,88,3],[88,4,88,20],[88,21,88,24],[88,25,88,27],[88,28,88,32],[88,33,88,37],[88,39,88,41],[93,1,93,3],[93,4,93,20],[93,21,93,24],[93,25,93,27],[93,28,93,32],[93,33,93,37],[93,39,93,41],[94,1,94,3],[94,4,94,20],[94,21,94,24],[94,25,94,27],[94,28,94,32],[94,33,94,37],[94,39,94,41],[91,1,91,3],[91,4,91,20],[91,21,91,24],[91,25,91,27],[91,28,91,32],[91,33,91,37],[91,39,91,41],[92,1,92,3],[92,4,92,20],[92,21,92,24],[92,25,92,27],[92,28,92,32],[92,33,92,37],[92,39,92,41],[97,1,97,3],[97,4,97,20],[97,21,97,24],[97,25,97,27],[97,28,97,32],[97,33,97,37],[97,39,97,41],[98,1,98,3],[98,4,98,20],[98,21,98,24],[98,25,98,27],[98,28,98,32],[98,33,98,37],[98,39,98,41],[95,1,95,3],[95,4,95,20],[95,21,95,24],[95,25,95,27],[95,28,95,32],[95,33,95,37],[95,39,95,41],[96,1,96,3],[96,4,96,20],[96,21,96,24],[96,25,96,27],[96,28,96,32],[96,33,96,37],[96,39,96,41],[101,1,101,3],[101,4,101,20],[101,21,101,24],[101,25,101,27],[101,28,101,32],[101,33,101,37],[101,39,101,41],[102,1,102,3],[102,4,102,20],[102,21,102,24],[102,25,102,27],[102,28,102,32],[102,33,102,37],[102,39,102,41],[99,1,99,3],[99,4,99,20],[99,21,99,24],[99,25,99,27],[99,28,99,32],[99,33,99,37],[99,39,99,41],[100,1,100,3],[100,4,100,20],[100,21,100,24],[100,25,100,27],[100,28,100,32],[100,33,100,37],[100,39,100,41],[105,1,105,3],[105,4,105,20],[105,21,105,24],[105,25,105,27],[105,28,105,32],[105,33,105,37],[105,39,105,41],[106,1,106,3],[106,4,106,20],[106,21,106,24],[106,25,106,27],[106,28,106,32],[106,33,106,37],[106,39,106,41],[103,1,103,3],[103,4,103,20],[103,21,103,24],[103,25,103,27],[103,28,103,32],[103,33,103,37],[103,39,103,41],[104,1,104,3],[104,4,104,20],[104,21,104,24],[104,25,104,27],[104,28,104,32],[104,33,104,37],[104,39,104,41],[131,12,131,14],[131,15,131,17],[131,18,131,20],[131,21,131,24],[136,2,136,13],[136,15,136,26],[136,28,136,40],[116,1,118,6],[116,7,118,21],[120,29,120,39],[121,31,122,39],[122,1,123,16],[125,14,126,24],[107,1,107,27],[107,28,107,32],[107,33,107,41],[109,1,111,6],[109,7,111,21],[112,1,114,6],[112,7,114,21],[115,1,115,6],[115,7,115,10],[115,11,115,21],[123,30,123,39],[145,1,145,3],[145,4,145,20],[145,21,145,24],[145,25,145,27],[145,28,145,32],[145,33,145,37],[145,39,145,41],[146,1,146,3],[146,4,146,20],[146,21,146,24],[146,25,146,27],[146,28,146,32],[146,33,146,37],[146,39,146,41],[137,2,138,13],[137,15,138,26],[137,28,138,40],[140,2,140,17],[140,19,140,34],[140,36,142,40],[141,2,142,5],[141,6,142,17],[141,19,142,34],[149,1,149,3],[149,4,149,20],[149,21,149,24],[149,25,149,27],[149,28,149,32],[149,33,149,37],[149,39,149,41],[150,1,150,3],[150,4,150,20],[150,21,150,24],[150,25,150,27],[150,28,150,32],[150,33,150,37],[150,39,150,41],[147,1,147,3],[147,4,147,20],[147,21,147,24],[147,25,147,27],[147,28,147,32],[147,33,147,37],[147,39,147,41],[148,1,148,3],[148,4,148,20],[148,21,148,24],[148,25,148,27],[148,28,148,32],[148,33,148,37],[148,39,148,41],[153,1,153,3],[153,4,153,20],[153,21,153,24],[153,25,153,27],[153,28,153,32],[153,33,153,37],[153,39,153,41],[154,1,154,3],[154,4,154,20],[154,21,154,24],[154,25,154,27],[154,28,154,32],[154,33,154,37],[154,39,154,41],[151,1,151,3],[151,4,151,20],[151,21,151,24],[151,25,151,27],[151,28,151,32],[151,33,151,37],[151,39,151,41],[152,1,152,3],[152,4,152,20],[152,21,152,24],[152,25,152,27],[152,28,152,32],[152,33,152,37],[152,39,152,41],[157,1,157,3],[157,4,157,20],[157,21,157,24],[157,25,157,27],[157,28,157,32],[157,33,157,37],[157,39,157,41],[158,1,158,3],[158,4,158,20],[158,21,158,24],[158,25,158,27],[158,28,158,32],[158,33,158,37],[158,39,158,41],[155,1,155,3],[155,4,155,20],[155,21,155,24],[155,25,155,27],[155,28,155,32],[155,33,155,37],[155,39,155,41],[156,1,156,3],[156,4,156,20],[156,21,156,24],[156,25,156,27],[156,28,156,32],[156,33,156,37],[156,39,156,41],[161,1,161,3],[161,4,161,20],[161,21,161,24],[161,25,161,27],[161,28,161,32],[161,33,161,37],[161,39,161,41],[162,1,162,3],[162,4,162,20],[162,21,162,24],[162,25,162,27],[162,28,162,32],[162,33,162,37],[162,39,162,41],[159,1,159,3],[159,4,159,20],[159,21,159,24],[159,25,159,27],[159,28,159,32],[159,33,159,37],[159,39,159,41],[160,1,160,3],[160,4,160,20],[160,21,160,24],[160,25,160,27],[160,28,160,32],[160,33,160,37],[160,39,160,41],[165,1,165,3],[165,4,165,20],[165,21,165,24],[165,25,165,27],[165,28,165,32],[165,33,165,37],[165,39,165,41],[166,1,166,3],[166,4,166,20],[166,21,166,24],[166,25,166,27],[166,28,166,32],[166,33,166,37],[166,39,166,41],[163,1,163,3],[163,4,163,20],[163,21,163,24],[163,25,163,27],[163,28,163,32],[163,33,163,37],[163,39,163,41],[164,1,164,3],[164,4,164,20],[164,21,164,24],[164,25,164,27],[164,28,164,32],[164,33,164,37],[164,39,164,41],[191,12,191,14],[191,15,191,17],[191,18,191,20],[191,21,191,24],[196,2,196,13],[196,15,196,26],[196,28,196,40],[176,1,178,6],[176,7,178,21],[180,29,180,39],[181,31,182,39],[182,1,183,16],[185,14,186,24],[167,1,167,27],[167,28,167,32],[167,33,167,41],[169,1,171,6],[169,7,171,21],[172,1,174,6],[172,7,174,21],[175,1,175,6],[175,7,175,10],[175,11,175,21],[183,30,183,39],[205,1,205,3],[205,4,205,20],[205,21,205,24],[205,25,205,27],[205,28,205,32],[205,33,205,37],[205,39,205,41],[206,1,206,3],[206,4,206,20],[206,21,206,24],[206,25,206,27],[206,28,206,32],[206,33,206,37],[206,39,206,41],[197,2,198,13],[197,15,198,26],[197,28,198,40],[200,2,200,17],[200,19,200,34],[200,36,202,40],[201,2,202,5],[201,6,202,17],[201,19,202,34],[209,1,209,3],[209,4,209,20],[209,21,209,24],[209,25,209,27],[209,28,209,32],[209,33,209,37],[209,39,209,41],[210,1,210,3],[210,4,210,20],[210,21,210,24],[210,25,210,27],[210,28,210,32],[210,33,210,37],[210,39,210,41],[207,1,207,3],[207,4,207,20],[207,21,207,24],[207,25,207,27],[207,28,207,32],[207,33,207,37],[207,39,207,41],[208,1,208,3],[208,4,208,20],[208,21,208,24],[208,25,208,27],[208,28,208,32],[208,33,208,37],[208,39,208,41],[213,1,213,3],[213,4,213,20],[213,21,213,24],[213,25,213,27],[213,28,213,32],[213,33,213,37],[213,39,213,41],[214,1,214,3],[214,4,214,20],[214,21,214,24],[214,25,214,27],[214,28,214,32],[214,33,214,37],[214,39,214,41],[211,1,211,3],[211,4,211,20],[211,21,211,24],[211,25,211,27],[211,28,211,32],[211,33,211,37],[211,39,211,41],[212,1,212,3],[212,4,212,20],[212,21,212,24],[212,25,212,27],[212,28,212,32],[212,33,212,37],[212,39,212,41],[217,1,217,3],[217,4,217,20],[217,21,217,24],[217,25,217,27],[217,28,217,32],[217,33,217,37],[217,39,217,41],[218,1,218,3],[218,4,218,20],[218,21,218,24],[218,25,218,27],[218,28,218,32],[218,33,218,37],[218,39,218,41],[215,1,215,3],[215,4,215,20],[215,21,215,24],[215,25,215,27],[215,28,215,32],[215,33,215,37],[215,39,215,41],[216,1,216,3],[216,4,216,20],[216,21,216,24],[216,25,216,27],[216,28,216,32],[216,33,216,37],[216,39,216,41],[221,1,221,3],[221,4,221,20],[221,21,221,24],[221,25,221,27],[221,28,221,32],[221,33,221,37],[221,39,221,41],[222,1,222,3],[222,4,222,20],[222,21,222,24],[222,25,222,27],[222,28,222,32],[222,33,222,37],[222,39,222,41],[219,1,219,3],[219,4,219,20],[219,21,219,24],[219,25,219,27],[219,28,219,32],[219,33,219,37],[219,39,219,41],[220,1,220,3],[220,4,220,20],[220,21,220,24],[220,25,220,27],[220,28,220,32],[220,33,220,37],[220,39,220,41],[225,1,225,3],[225,4,225,20],[225,21,225,24],[225,25,225,27],[225,28,225,32],[225,33,225,37],[225,39,225,41],[226,1,226,3],[226,4,226,20],[226,21,226,24],[226,25,226,27],[226,28,226,32],[226,33,226,37],[226,39,226,41],[223,1,223,3],[223,4,223,20],[223,21,223,24],[223,25,223,27],[223,28,223,32],[223,33,223,37],[223,39,223,41],[224,1,224,3],[224,4,224,20],[224,21,224,24],[224,25,224,27],[224,28,224,32],[224,33,224,37],[224,39,224,41],[251,12,251,14],[251,15,251,17],[251,18,251,20],[251,21,251,24],[256,2,256,13],[256,15,256,26],[256,28,256,40],[236,1,238,6],[236,7,238,21],[240,29,240,39],[241,31,242,39],[242,1,243,16],[245,14,246,24],[227,1,227,27],[227,28,227,32],[227,33,227,41],[229,1,231,6],[229,7,231,21],[232,1,234,6],[232,7,234,21],[235,1,235,6],[235,7,235,10],[235,11,235,21],[243,30,243,39],[265,1,265,3],[265,4,265,20],[265,21,265,24],[265,25,265,27],[265,28,265,32],[265,33,265,37],[265,39,265,41],[266,1,266,3],[266,4,266,20],[266,21,266,24],[266,25,266,27],[266,28,266,32],[266,33,266,37],[266,39,266,41],[257,2,258,13],[257,15,258,26],[257,28,258,40],[260,2,260,17],[260,19,260,34],[260,36,262,40],[261,2,262,5],[261,6,262,17],[261,19,262,34],[269,1,269,3],[269,4,269,20],[269,21,269,24],[269,25,269,27],[269,28,269,32],[269,33,269,37],[269,39,269,41],[270,1,270,3],[270,4,270,20],[270,21,270,24],[270,25,270,27],[270,28,270,32],[270,33,270,37],[270,39,270,41],[267,1,267,3],[267,4,267,20],[267,21,267,24],[267,25,267,27],[267,28,267,32],[267,33,267,37],[267,39,267,41],[268,1,268,3],[268,4,268,20],[268,21,268,24],[268,25,268,27],[268,28,268,32],[268,33,268,37],[268,39,268,41],[273,1,273,3],[273,4,273,20],[273,21,273,24],[273,25,273,27],[273,28,273,32],[273,33,273,37],[273,39,273,41],[274,1,274,3],[274,4,274,20],[274,21,274,24],[274,25,274,27],[274,28,274,32],[274,33,274,37],[274,39,274,41],[271,1,271,3],[271,4,271,20],[271,21,271,24],[271,25,271,27],[271,28,271,32],[271,33,271,37],[271,39,271,41],[272,1,272,3],[272,4,272,20],[272,21,272,24],[272,25,272,27],[272,28,272,32],[272,33,272,37],[272,39,272,41],[277,1,277,3],[277,4,277,20],[277,21,277,24],[277,25,277,27],[277,28,277,32],[277,33,277,37],[277,39,277,41],[278,1,278,3],[278,4,278,20],[278,21,278,24],[278,25,278,27],[278,28,278,32],[278,33,278,37],[278,39,278,41],[275,1,275,3],[275,4,275,20],[275,21,275,24],[275,25,275,27],[275,28,275,32],[275,33,275,37],[275,39,275,41],[276,1,276,3],[276,4,276,20],[276,21,276,24],[276,25,276,27],[276,28,276,32],[276,33,276,37],[276,39,276,41],[281,1,281,3],[281,4,281,20],[281,21,281,24],[281,25,281,27],[281,28,281,32],[281,33,281,37],[281,39,281,41],[282,1,282,3],[282,4,282,20],[282,21,282,24],[282,25,282,27],[282,28,282,32],[282,33,282,37],[282,39,282,41],[279,1,279,3],[279,4,279,20],[279,21,279,24],[279,25,279,27],[279,28,279,32],[279,33,279,37],[279,39,279,41],[280,1,280,3],[280,4,280,20],[280,21,280,24],[280,25,280,27],[280,28,280,32],[280,33,280,37],[280,39,280,41],[285,1,285,3],[285,4,285,20],[285,21,285,24],[285,25,285,27],[285,28,285,32],[285,33,285,37],[285,39,285,41],[286,1,286,3],[286,4,286,20],[286,21,286,24],[286,25,286,27],[286,28,286,32],[286,33,286,37],[286,39,286,41],[283,1,283,3],[283,4,283,20],[283,21,283,24],[283,25,283,27],[283,28,283,32],[283,33,283,37],[283,39,283,41],[284,1,284,3],[284,4,284,20],[284,21,284,24],[284,25,284,27],[284,28,284,32],[284,33,284,37],[284,39,284,41],[311,12,311,14],[311,15,311,17],[311,18,311,20],[311,21,311,24],[316,2,316,13],[316,15,316,26],[316,28,316,40],[296,1,298,6],[296,7,298,21],[300,29,300,39],[301,31,302,39],[302,1,303,16],[305,14,306,24],[287,1,287,27],[287,28,287,32],[287,33,287,41],[289,1,291,6],[289,7,291,21],[292,1,294,6],[292,7,294,21],[295,1,295,6],[295,7,295,10],[295,11,295,21],[303,30,303,39],[325,1,325,3],[325,4,325,20],[325,21,325,24],[325,25,325,27],[325,28,325,32],[325,33,325,37],[325,39,325,41],[326,1,326,3],[326,4,326,20],[326,21,326,24],[326,25,326,27],[326,28,326,32],[326,33,326,37],[326,39,326,41],[317,2,318,13],[317,15,318,26],[317,28,318,40],[320,2,320,17],[320,19,320,34],[320,36,322,40],[321,2,322,5],[321,6,322,17],[321,19,322,34],[329,1,329,3],[329,4,329,20],[329,21,329,24],[329,25,329,27],[329,28,329,32],[329,33,329,37],[329,39,329,41],[330,1,330,3],[330,4,330,20],[330,21,330,24],[330,25,330,27],[330,28,330,32],[330,33,330,37],[330,39,330,41],[327,1,327,3],[327,4,327,20],[327,21,327,24],[327,25,327,27],[327,28,327,32],[327,33,327,37],[327,39,327,41],[328,1,328,3],[328,4,328,20],[328,21,328,24],[328,25,328,27],[328,28,328,32],[328,33,328,37],[328,39,328,41],[333,1,333,3]],"merged_total":3782,"flags":["merged_cut"]}
[null,"〒",null,"359-1111",null,null,null,null,null,null,null,null,null,null,null,null,null,null,null,null,null,null,null,null,null,null,null,"NO."]
[null,"埼玉県所沢市緑町2-1-20合田ビル2階",null,null,null,null,null,null,null,null,null,null,null,null,null,null,null,null,null,null,null,null,null,null,null,null,null,null,null,null,null,"2023-10-20"]
[null,"有限会社　埼玉小島建設　御中",null,null,null,null,null,null,null,null,null,null,null,null,null,null,null,null,null,null,null,null,null,null,null,null,null,"発行年月日"]
[null,null,null,null,null,null,null,null,null,null,null,null,null,null,null,null,null,null,null,null,null,null,null,null,null,null,null,"登録番号"]
[null,null,null,null,null,null,null,null,null,null,null,null,null,null,null,null,null,null,null,null,null,null,null,null,null,null,null,"郵便番号"]
[null,null,null,null,null,null,null,null,null,null,null,null,null,null,"請　　求　　書",null,null,null,null,null,null,null,null,null,null,null,null,"ご住所"]
[null,null,null,null,null,null,null,null,null,null,null,null,null,null,null,null,null,null,null,null,null,null,null,null,null,null,null,"御社名"]
[null,null,null,null,null,null,null,null,null,null,null,null,null,null,null,null,null,null,null,null,null,null,null,null,null,null,null,"電話"]
[null,null,null,null,null,null,null,null,null,null,null,null,null,null,null,null,null,null,null,null,null,null,null,null,null,null,null,"FAX"]
[null,null,null,null,null,null,null,null,null,null,null,null,null,null,null,null,null,null,null,null,null,null,null,null,null,null,"担当者名："]
[]
[null,"請　求　総　合　計"]
[null,{"$f":"SUM(AC18,AC78,AC138,AC198,AC258,AC318,AC378,AC438,AC498,AC558,AC618,AC678,AC738,AC798,AC858,AC918,AC978,AC1038,AC1098,AC1158,'請求書(出来高で請求がある場合はこちらです）'!H30:R35,'請求書(出来高で請求がある場合はこちらです）'!$H$113:$R$118)","v":0}]
[]
[]
[]
[null,null,"税 別 合 計",null,null,null,null,null,null,null,null,null,null,null,null,"消 費 税　（10％）",null,null,null,null,null,null,null,null,null,null,null,null,"税 込 合 計"]
[null,null,{"$f":"SUM(AH27:AL48)","v":0},null,null,null,null,null,null,null,null,null,null,null,null,{"$f":"AC48*0.1","v":0},null,null,null,null,null,null,null,null,null,null,null,null,{"$f":"C18+P18","v":0}]
[]
[]
[null,null,"現 場 名",null,null,null,null,null,null,null,null,null,null,null,null,null,null,null,null,"埼玉小島建設　現場担当者名"]
[]
[]
[]
[]
[null,"月日",null,null,"工事内容・納品名",null,null,null,null,null,null,null,null,null,null,null,null,null,null,null,null,"数量",null,null,null,"単位",null,null,"単価",null,null,null,null,"金額",null,null,null,null,"課税","備考",null,null,"1ページ目"]
[null,null,null,null,null,null,null,null,null,null,null,null,null,null,null,null,null,null,null,null,null,null,null,null,null,null,null,null,null,null,null,null,null,{"$f":"V27*AC27","v":0},null,null,null,null,"課税",null,null,null,"2ページ目"]
[null,null,null,null,null,null,null,null,null,null,null,null,null,null,null,null,null,null,null,null,null,null,null,null,null,null,null,null,null,null,null,null,null,0,null,null,null,null,"課税",null,null,null,"3ページ目"]
[null,null,null,null,null,null,null,null,null,null,null,null,null,null,null,null,null,null,null,null,null,null,null,null,null,null,null,null,null,null,null,null,null,0,null,null,null,null,"課税",null,null,null,"4ページ目"]
[null,null,null,null,null,null,null,null,null,null,null,null,null,null,null,null,null,null,null,null,null,null,null,null,null,null,null,null,null,null,null,null,null,0,null,null,null,null,"課税",null,null,null,"5ページ目"]
[null,null,null,null,null,null,null,null,null,null,null,null,null,null,null,null,null,null,null,null,null,null,null,null,null,null,null,null,null,null,null,null,null,0,null,null,null,null,"課税",null,null,null,"6ページ目",null,null,null,null,null,null,null,null,null,null,null,null,null,"普通"]
[null,null,null,null,null,null,null,null,null,null,null,null,null,null,null,null,null,null,null,null,null,null,null,null,null,null,null,null,null,null,null,null,null,0,null,null,null,null,"課税",null,null,null,"7ページ目",null,null,null,null,null,null,null,null,null,null,null,null,null,"当座"]
[null,null,null,null,null,null,null,null,null,null,null,null,null,null,null,null,null,null,null,null,null,null,null,null,null,null,null,null,null,null,null,null,null,0,null,null,null,null,"課税",null,null,null,"8ページ目"]
[null,null,null,null,null,null,null,null,null,null,null,null,null,null,null,null,null,null,null,null,null,null,null,null,null,null,null,null,null,null,null,null,null,0,null,null,null,null,"課税",null,null,null,"9ページ目"]
[null,null,null,null,null,null,null,null,null,null,null,null,null,null,null,null,null,null,null,null,null,null,null,null,null,null,null,null,null,null,null,null,null,0,null,null,null,null,"課税",null,null,null,"10ページ目"]
[null,null,null,null,null,null,null,null,null,null,null,null,null,null,null,null,null,null,null,null,null,null,null,null,null,null,null,null,null,null,null,null,null,0,null,null,null,null,"課税",null,null,null,"11ページ目"]
[null,null,null,null,null,null,null,null,null,null,null,null,null,null,null,null,null,null,null,null,null,null,null,null,null,null,null,null,null,null,null,null,null,0,null,null,null,null,"課税",null,null,null,"12ページ目"]
[null,null,null,null,null,null,null,null,null,null,null,null,null,null,null,null,null,null,null,null,null,null,null,null,null,null,null,null,null,null,null,null,null,0,null,null,null,null,"課税",null,null,null,"13ページ目"]
[null,null,null,null,null,null,null,null,null,null,null,null,null,null,null,null,null,null,null,null,null,null,null,null,null,null,null,null,null,null,null,null,null,0,null,null,null,null,"課税",null,null,null,"14ページ目"]
[null,null,null,null,null,null,null,null,null,null,null,null,null,null,null,null,null,null,null,null,null,null,null,null,null,null,null,null,null,null,null,null,null,0,null,null,null,null,"課税",null,null,null,"15ページ目"]
[null,null,null,null,null,null,null,null,null,null,null,null,null,null,null,null,null,null,null,null,null,null,null,null,null,null,null,null,null,null,null,null,null,0,null,null,null,null,"課税",null,null,null,"16ページ目"]
[null,null,null,null,null,null,null,null,null,null,null,null,null,null,null,null,null,null,null,null,null,null,null,null,null,null,null,null,null,null,null,null,null,0,null,null,null,null,"課税",null,null,null,"17ページ目"]
[null,null,null,null,null,null,null,null,null,null,null,null,null,null,null,null,null,null,null,null,null,null,null,null,null,null,null,null,null,null,null,null,null,0,null,null,null,null,"課税",null,null,null,"18ページ目"]
[null,null,null,null,null,null,null,null,null,null,null,null,null,null,null,null,null,null,null,null,null,null,null,null,null,null,null,null,null,null,null,null,null,0,null,null,null,null,"課税",null,null,null,"19ページ目"]
[null,null,null,null,null,null,null,null,null,null,null,null,null,null,null,null,null,null,null,null,null,null,null,null,null,null,null,null,null,null,null,null,null,0,null,null,null,null,"課税",null,null,null,"20ページ目"]
[null,null,null,null,null,null,null,null,null,null,null,null,null,null,null,null,null,null,null,null,null,null,null,null,null,null,null,null,null,null,null,null,null,0,null,null,null,null,"課税"]
[null,null,null,null,null,null,null,null,null,null,null,null,null,null,null,null,null,null,null,null,null,null,null,null,null,null,null,null,null,null,null,null,null,0,null,null,null,null,"課税"]
[null,"消費税対象額",null,null,null,null,null,null,null,null,null,null,null,null,null,null,null,null,null,null,null,null,null,null,null,null,null,null,{"$f":"SUMIF(AM27:AM47,\"課税\",AH27:AL47)","v":0}]
[null,null,"※","毎月20日締切り、25日郵送必着でお願いします。翌々月5日支払いとなります。"]
[null,"銀行名"]
[]
[]
[null,"支店名"]
[]
[]
[null,"口座番号",null,null,null,null,null,"普通"]
[null,"口座名義人"]
[]
[]
[]
[null,"〒",null,"359-1111",null,null,null,null,null,null,null,null,null,null,null,null,null,null,null,null,null,null,null,null,null,null,null,"NO."]
[null,"埼玉県所沢市緑町2-1-20合田ビル2階",null,null,null,null,null,null,null,null,null,null,null,null,null,null,null,null,null,null,null,null,null,null,null,null,null,null,null,null,null,{"$f":"$AF$2","v":"2023-10-20"}]
[null,"有限会社　埼玉小島建設　御中",null,null,null,null,null,null,null,null,null,null,null,null,null,null,null,null,null,null,null,null,null,null,null,null,null,"発行年月日"]
[null,null,null,null,null,null,null,null,null,null,null,null,null,null,null,null,null,null,null,null,null,null,null,null,null,null,null,"登録番号",null,null,{"$f":"$AE$4","v":0}]
[null,null,null,null,null,null,null,null,null,null,null,null,null,null,null,null,null,null,null,null,null,null,null,null,null,null,null,"郵便番号"]
[null,null,null,null,null,null,null,null,null,null,null,null,null,null,"請　　求　　書",null,null,null,null,null,null,null,null,null,null,null,null,"ご住所"]
[null,null,null,null,null,null,null,null,null,null,null,null,null,null,null,null,null,null,null,null,null,null,null,null,null,null,null,"御社名"]
[null,null,null,null,null,null,null,null,null,null,null,null,null,null,null,null,null,null,null,null,null,null,null,null,null,null,null,"電話"]
[null,null,null,null,null,null,null,null,null,null,null,null,null,null,null,null,null,null,null,null,null,null,null,null,null,null,null,"FAX"]
[null,null,null,null,null,null,null,null,null,null,null,null,null,null,null,null,null,null,null,null,null,null,null,null,null,null,"担当者名："]
[]
[]
[]
[]
[]
[]
[null,null,"税 別 合 計",null,null,null,null,null,null,null,null,null,null,null,null,"消 費 税　（10％）",null,null,null,null,null,null,null,null,null,null,null,null,"税 込 合 計"]
[null,null,{"$f":"SUM(AH87:AL108)","v":0},null,null,null,null,null,null,null,null,null,null,null,null,{"$f":"AC108*0.1","v":0},null,null,null,null,null,null,null,null,null,null,null,null,{"$f":"C78+P78","v":0}]
[]
[]
[null,null,"現 場 名",null,null,null,null,null,null,null,null,null,null,null,null,null,null,null,null,"埼玉小島建設　現場担当者名"]
[]
[]
[]
[]
[null,"月日",null,null,"工事内容・納品名",null,null,null,null,null,null,null,null,null,null,null,null,null,null,null,null,"数量",null,null,null,"単位",null,null,"単価",null,null,null,null,"金額",null,null,null,null,"課税","備考",null,null,"1ページ目"]
[null,null,null,null,null,null,null,null,null,null,null,null,null,null,null,null,null,null,null,null,null,null,null,null,null,null,null,null,null,null,null,null,null,{"$f":"V87*AC87","v":0},null,null,null,null,"課税",null,null,null,"2ページ目"]
[null,null,null,null,null,null,null,null,null,null,null,null,null,null,null,null,null,null,null,null,null,null,null,null,null,null,null,null,null,null,null,null,null,0,null,null,null,null,"課税",null,null,null,"3ページ目"]
[null,null,null,null,null,null,null,null,null,null,null,null,null,null,null,null,null,null,null,null,null,null,null,null,null,null,null,null,null,null,null,null,null,0,null,null,null,null,"課税",null,null,null,"4ページ目"]
[null,null,null,null,null,null,null,null,null,null,null,null,null,null,null,null,null,null,null,null,null,null,null,null,null,null,null,null,null,null,null,null,null,0,null,null,null,null,"課税",null,null,null,"5ページ目"]
[null,null,null,null,null,null,null,null,null,null,null,null,null,null,null,null,null,null,null,null,null,null,null,null,null,null,null,null,null,null,null,null,null,0,null,null,null,null,"課税",null,null,null,"6ページ目",null,null,null,null,null,null,null,null,null,null,null,null,null,"普通"]
[null,null,null,null,null,null,null,null,null,null,null,null,null,null,null,null,null,null,null,null,null,null,null,null,null,null,null,null,null,null,null,null,null,0,null,null,null,null,"課税",null,null,null,"7ページ目",null,null,null,null,null,null,null,null,null,null,null,null,null,"当座"]
[null,null,null,null,null,null,null,null,null,null,null,null,null,null,null,null,null,null,null,null,null,null,null,null,null,null,null,null,null,null,null,null,null,0,null,null,null,null,"課税",null,null,null,"8ページ目"]
[null,null,null,null,null,null,null,null,null,null,null,null,null,null,null,null,null,null,null,null,null,null,null,null,null,null,null,null,null,null,null,null,null,0,null,null,null,null,"課税",null,null,null,"9ページ目"]
[null,null,null,null,null,null,null,null,null,null,null,null,null,null,null,null,null,null,null,null,null,null,null,null,null,null,null,null,null,null,null,null,null,0,null,null,null,null,"課税",null,null,null,"10ページ目"]
[null,null,null,null,null,null,null,null,null,null,null,null,null,null,null,null,null,null,null,null,null,null,null,null,null,null,null,null,null,null,null,null,null,0,null,null,null,null,"課税",null,null,null,"11ページ目"]
[null,null,null,null,null,null,null,null,null,null,null,null,null,null,null,null,null,null,null,null,null,null,null,null,null,null,null,null,null,null,null,null,null,0,null,null,null,null,"課税",null,null,null,"12ページ目"]
[null,null,null,null,null,null,null,null,null,null,null,null,null,null,null,null,null,null,null,null,null,null,null,null,null,null,null,null,null,null,null,null,null,0,null,null,null,null,"課税",null,null,null,"13ページ目"]
[null,null,null,null,null,null,null,null,null,null,null,null,null,null,null,null,null,null,null,null,null,null,null,null,null,null,null,null,null,null,null,null,null,0,null,null,null,null,"課税",null,null,null,"14ページ目"]
[null,null,null,null,null,null,null,null,null,null,null,null,null,null,null,null,null,null,null,null,null,null,null,null,null,null,null,null,null,null,null,null,null,0,null,null,null,null,"課税",null,null,null,"15ページ目"]
[null,null,null,null,null,null,null,null,null,null,null,null,null,null,null,null,null,null,null,null,null,null,null,null,null,null,null,null,null,null,null,null,null,0,null,null,null,null,"課税",null,null,null,"16ページ目"]
[null,null,null,null,null,null,null,null,null,null,null,null,null,null,null,null,null,null,null,null,null,null,null,null,null,null,null,null,null,null,null,null,null,0,null,null,null,null,"課税",null,null,null,"17ページ目"]
[null,null,null,null,null,null,null,null,null,null,null,null,null,null,null,null,null,null,null,null,null,null,null,null,null,null,null,null,null,null,null,null,null,0,null,null,null,null,"課税",null,null,null,"18ページ目"]
[null,null,null,null,null,null,null,null,null,null,null,null,null,null,null,null,null,null,null,null,null,null,null,null,null,null,null,null,null,null,null,null,null,0,null,null,null,null,"課税",null,null,null,"19ページ目"]
[null,null,null,null,null,null,null,null,null,null,null,null,null,null,null,null,null,null,null,null,null,null,null,null,null,null,null,null,null,null,null,null,null,0,null,null,null,null,"課税",null,null,null,"20ページ目"]
[null,null,null,null,null,null,null,null,null,null,null,null,null,null,null,null,null,null,null,null,null,null,null,null,null,null,null,null,null,null,null,null,null,0,null,null,null,null,"課税"]
[null,null,null,null,null,null,null,null,null,null,null,null,null,null,null,null,null,null,null,null,null,null,null,null,null,null,null,null,null,null,null,null,null,0,null,null,null,null,"課税"]
[null,"消費税対象額",null,null,null,null,null,null,null,null,null,null,null,null,null,null,null,null,null,null,null,null,null,null,null,null,null,null,{"$f":"SUMIF(AM87:AM107,\"課税\",AH87:AL107)","v":0}]
[null,null,"※","毎月20日締切り、25日郵送必着でお願いします。翌々月5日支払いとなります。"]
[null,"銀行名"]
[]
[]
[null,"支店名"]
[]
[]
[null,"口座番号",null,null,null,null,null,"普通"]
[null,"口座名義人"]
[]
[]
[]
[null,"〒",null,"359-1111",null,null,null,null,null,null,null,null,null,null,null,null,null,null,null,null,null,null,null,null,null,null,null,"NO."]
[null,"埼玉県所沢市緑町2-1-20合田ビル2階",null,null,null,null,null,null,null,null,null,null,null,null,null,null,null,null,null,null,null,null,null,null,null,null,null,null,null,null,null,{"$f":"$AF$2","v":"2023-10-20"}]
[null,"有限会社　埼玉小島建設　御中",null,null,null,null,null,null,null,null,null,null,null,null,null,null,null,null,null,null,null,null,null,null,null,null,null,"発行年月日"]
[null,null,null,null,null,null,null,null,null,null,null,null,null,null,null,null,null,null,null,null,null,null,null,null,null,null,null,"登録番号",null,null,{"$f":"$AE$4","v":0}]
[null,null,null,null,null,null,null,null,null,null,null,null,null,null,null,null,null,null,null,null,null,null,null,null,null,null,null,"郵便番号"]
[null,null,null,null,null,null,null,null,null,null,null,null,null,null,"請　　求　　書",null,null,null,null,null,null,null,null,null,null,null,null,"ご住所"]
[null,null,null,null,null,null,null,null,null,null,null,null,null,null,null,null,null,null,null,null,null,null,null,null,null,null,null,"御社名"]
[null,null,null,null,null,null,null,null,null,null,null,null,null,null,null,null,null,null,null,null,null,null,null,null,null,null,null,"電話"]
[null,null,null,null,null,null,null,null,null,null,null,null,null,null,null,null,null,null,null,null,null,null,null,null,null,null,null,"FAX"]
[null,null,null,null,null,null,null,null,null,null,null,null,null,null,null,null,null,null,null,null,null,null,null,null,null,null,"担当者名："]
[]
[]
[]
[]
[]
[]
[null,null,"税 別 合 計",null,null,null,null,null,null,null,null,null,null,null,null,"消 費 税　（10％）",null,null,null,null,null,null,null,null,null,null,null,null,"税 込 合 計"]
[null,null,{"$f":"SUM(AH147:AL168)","v":0},null,null,null,null,null,null,null,null,null,null,null,null,{"$f":"AC168*0.1","v":0},null,null,null,null,null,null,null,null,null,null,null,null,{"$f":"C138+P138","v":0}]
[]
[]
[null,null,"現 場 名",null,null,null,null,null,null,null,null,null,null,null,null,null,null,null,null,"埼玉小島建設　現場担当者名"]
[]
[]
[]
[]
[null,"月日",null,null,"工事内容・納品名",null,null,null,null,null,null,null,null,null,null,null,null,null,null,null,null,"数量",null,null,null,"単位",null,null,"単価",null,null,null,null,"金額",null,null,null,null,"課税","備考",null,null,"1ページ目"]
[null,null,null,null,null,null,null,null,null,null,null,null,null,null,null,null,null,null,null,null,null,null,null,null,null,null,null,null,null,null,null,null,null,{"$f":"V147*AC147","v":0},null,null,null,null,"課税",null,null,null,"2ページ目"]
[null,null,null,null,null,null,null,null,null,null,null,null,null,null,null,null,null,null,null,null,null,null,null,null,null,null,null,null,null,null,null,null,null,0,null,null,null,null,"課税",null,null,null,"3ページ目"]
[null,null,null,null,null,null,null,null,null,null,null,null,null,null,null,null,null,null,null,null,null,null,null,null,null,null,null,null,null,null,null,null,null,0,null,null,null,null,"課税",null,null,null,"4ページ目"]
[null,null,null,null,null,null,null,null,null,null,null,null,null,null,null,null,null,null,null,null,null,null,null,null,null,null,null,null,null,null,null,null,null,0,null,null,null,null,"課税",null,null,null,"5ページ目"]
[null,null,null,null,null,null,null,null,null,null,null,null,null,null,null,null,null,null,null,null,null,null,null,null,null,null,null,null,null,null,null,null,null,0,null,null,null,null,"課税",null,null,null,"6ページ目",null,null,null,null,null,null,null,null,null,null,null,null,null,"普通"]
[null,null,null,null,null,null,null,null,null,null,null,null,null,null,null,null,null,null,null,null,null,null,null,null,null,null,null,null,null,null,null,null,null,0,null,null,null,null,"課税",null,null,null,"7ページ目",null,null,null,null,null,null,null,null,null,null,null,null,null,"当座"]
[null,null,null,null,null,null,null,null,null,null,null,null,null,null,null,null,null,null,null,null,null,null,null,null,null,null,null,null,null,null,null,null,null,0,null,null,null,null,"課税",null,null,null,"8ページ目"]
[null,null,null,null,null,null,null,null,null,null,null,null,null,null,null,null,null,null,null,null,null,null,null,null,null,null,null,null,null,null,null,null,null,0,null,null,null,null,"課税",null,null,null,"9ページ目"]
[null,null,null,null,null,null,null,null,null,null,null,null,null,null,null,null,null,null,null,null,null,null,null,null,null,null,null,null,null,null,null,null,null,0,null,null,null,null,"課税",null,null,null,"10ページ目"]
[null,null,null,null,null,null,null,null,null,null,null,null,null,null,null,null,null,null,null,null,null,null,null,null,null,null,null,null,null,null,null,null,null,0,null,null,null,null,"課税",null,null,null,"11ページ目"]
[null,null,null,null,null,null,null,null,null,null,null,null,null,null,null,null,null,null,null,null,null,null,null,null,null,null,null,null,null,null,null,null,null,0,null,null,null,null,"課税",null,null,null,"12ページ目"]
[null,null,null,null,null,null,null,null,null,null,null,null,null,null,null,null,null,null,null,null,null,null,null,null,null,null,null,null,null,null,null,null,null,0,null,null,null,null,"課税",null,null,null,"13ページ目"]
[null,null,null,null,null,null,null,null,null,null,null,null,null,null,null,null,null,null,null,null,null,null,null,null,null,null,null,null,null,null,null,null,null,0,null,null,null,null,"課税",null,null,null,"14ページ目"]
[null,null,null,null,null,null,null,null,null,null,null,null,null,null,null,null,null,null,null,null,null,null,null,null,null,null,null,null,null,null,null,null,null,0,null,null,null,null,"課税",null,null,null,"15ページ目"]
[null,null,null,null,null,null,null,null,null,null,null,null,null,null,null,null,null,null,null,null,null,null,null,null,null,null,null,null,null,null,null,null,null,0,null,null,null,null,"課税",null,null,null,"16ページ目"]
[null,null,null,null,null,null,null,null,null,null,null,null,null,null,null,null,null,null,null,null,null,null,null,null,null,null,null,null,null,null,null,null,null,0,null,null,null,null,"課税",null,null,null,"17ページ目"]
[null,null,null,null,null,null,null,null,null,null,null,null,null,null,null,null,null,null,null,null,null,null,null,null,null,null,null,null,null,null,null,null,null,0,null,null,null,null,"課税",null,null,null,"18ページ目"]
[null,null,null,null,null,null,null,null,null,null,null,null,null,null,null,null,null,null,null,null,null,null,null,null,null,null,null,null,null,null,null,null,null,0,null,null,null,null,"課税",null,null,null,"19ページ目"]
[null,null,null,null,null,null,null,null,null,null,null,null,null,null,null,null,null,null,null,null,null,null,null,null,null,null,null,null,null,null,null,null,null,0,null,null,null,null,"課税",null,null,null,"20ページ目"]
[null,null,null,null,null,null,null,null,null,null,null,null,null,null,null,null,null,null,null,null,null,null,null,null,null,null,null,null,null,null,null,null,null,0,null,null,null,null,"課税"]
[null,null,null,null,null,null,null,null,null,null,null,null,null,null,null,null,null,null,null,null,null,null,null,null,null,null,null,null,null,null,null,null,null,0,null,null,null,null,"課税"]
[null,"消費税対象額",null,null,null,null,null,null,null,null,null,null,null,null,null,null,null,null,null,null,null,null,null,null,null,null,null,null,{"$f":"SUMIF(AM147:AM167,\"課税\",AH147:AL167)","v":0}]
[null,null,"※","毎月20日締切り、25日郵送必着でお願いします。翌々月5日支払いとなります。"]
[null,"銀行名"]
[]
[]
[null,"支店名"]
[]
[]
[null,"口座番号",null,null,null,null,null,"普通"]
[null,"口座名義人"]
[]
[]
[]
[null,"〒",null,"359-1111",null,null,null,null,null,null,null,null,null,null,null,null,null,null,null,null,null,null,null,null,null,null,null,"NO."]
[null,"埼玉県所沢市緑町2-1-20合田ビル2階",null,null,null,null,null,null,null,null,null,null,null,null,null,null,null,null,null,null,null,null,null,null,null,null,null,null,null,null,null,{"$f":"$AF$2","v":"2023-10-20"}]
[null,"有限会社　埼玉小島建設　御中",null,null,null,null,null,null,null,null,null,null,null,null,null,null,null,null,null,null,null,null,null,null,null,null,null,"発行年月日"]
[null,null,null,null,null,null,null,null,null,null,null,null,null,null,null,null,null,null,null,null,null,null,null,null,null,null,null,"登録番号",null,null,{"$f":"$AE$4","v":0}]
[null,null,null,null,null,null,null,null,null,null,null,null,null,null,null,null,null,null,null,null,null,null,null,null,null,null,null,"郵便番号"]
[null,null,null,null,null,null,null,null,null,null,null,null,null,null,"請　　求　　書",null,null,null,null,null,null,null,null,null,null,null,null,"ご住所"]
[null,null,null,null,null,null,null,null,null,null,null,null,null,null,null,null,null,null,null,null,null,null,null,null,null,null,null,"御社名"]
[null,null,null,null,null,null,null,null,null,null,null,null,null,null,null,null,null,null,null,null,null,null,null,null,null,null,null,"電話"]
[null,null,null,null,null,null,null,null,null,null,null,null,null,null,null,null,null,null,null,null,null,null,null,null,null,null,null,"FAX"]
[null,null,null,null,null,null,null,null,null,null,null,null,null,null,null,null,null,null,null,null,null,null,null,null,null,null,"担当者名："]
[]
[]
[]
[]
[]
[]
[null,null,"税 別 合 計",null,null,null,null,null,null,null,null,null,null,null,null,"消 費 税　（10％）",null,null,null,null,null,null,null,null,null,null,null,null,"税 込 合 計"]
[null,null,{"$f":"SUM(AH207:AL228)","v":0},null,null,null,null,null,null,null,null,null,null,null,null,{"$f":"AC228*0.1","v":0},null,null,null,null,null,null,null,null,null,null,null,null,{"$f":"C198+P198","v":0}]
[]
[]
[null,null,"現 場 名",null,null,null,null,null,null,null,null,null,null,null,null,null,null,null,null,"埼玉小島建設　現場担当者名"]
[]
[]
[]
[]
[null,"月日",null,null,"工事内容・納品名",null,null,null,null,null,null,null,null,null,null,null,null,null,null,null,null,"数量",null,null,null,"単位",null,null,"単価",null,null,null,null,"金額",null,null,null,null,"課税","備考",null,null,"1ページ目"]
[null,null,null,null,null,null,null,null,null,null,null,null,null,null,null,null,null,null,null,null,null,null,null,null,null,null,null,null,null,null,null,null,null,{"$f":"V207*AC207","v":0},null,null,null,null,"課税",null,null,null,"2ページ目"]
[null,null,null,null,null,null,null,null,null,null,null,null,null,null,null,null,null,null,null,null,null,null,null,null,null,null,null,null,null,null,null,null,null,0,null,null,null,null,"課税",null,null,null,"3ページ目"]
[null,null,null,null,null,null,null,null,null,null,null,null,null,null,null,null,null,null,null,null,null,null,null,null,null,null,null,null,null,null,null,null,null,0,null,null,null,null,"課税",null,null,null,"4ページ目"]
[null,null,null,null,null,null,null,null,null,null,null,null,null,null,null,null,null,null,null,null,null,null,null,null,null,null,null,null,null,null,null,null,null,0,null,null,null,null,"課税",null,null,null,"5ページ目"]
[null,null,null,null,null,null,null,null,null,null,null,null,null,null,null,null,null,null,null,null,null,null,null,null,null,null,null,null,null,null,null,null,null,0,null,null,null,null,"課税",null,null,null,"6ページ目",null,null,null,null,null,null,null,null,null,null,null,null,null,"普通"]
[null,null,null,null,null,null,null,null,null,null,null,null,null,null,null,null,null,null,null,null,null,null,null,null,null,null,null,null,null,null,null,null,null,0,null,null,null,null,"課税",null,null,null,"7ページ目",null,null,null,null,null,null,null,null,null,null,null,null,null,"当座"]
[null,null,null,null,null,null,null,null,null,null,null,null,null,null,null,null,null,null,null,null,null,null,null,null,null,null,null,null,null,null,null,null,null,0,null,null,null,null,"課税",null,null,null,"8ページ目"]
[null,null,null,null,null,null,null,null,null,null,null,null,null,null,null,null,null,null,null,null,null,null,null,null,null,null,null,null,null,null,null,null,null,0,null,null,null,null,"課税",null,null,null,"9ページ目"]
[null,null,null,null,null,null,null,null,null,null,null,null,null,null,null,null,null,null,null,null,null,null,null,null,null,null,null,null,null,null,null,null,null,0,null,null,null,null,"課税",null,null,null,"10ページ目"]
[null,null,null,null,null,null,null,null,null,null,null,null,null,null,null,null,null,null,null,null,null,null,null,null,null,null,null,null,null,null,null,null,null,0,null,null,null,null,"課税",null,null,null,"11ページ目"]
[null,null,null,null,null,null,null,null,null,null,null,null,null,null,null,null,null,null,null,null,null,null,null,null,null,null,null,null,null,null,null,null,null,0,null,null,null,null,"課税",null,null,null,"12ページ目"]
[null,null,null,null,null,null,null,null,null,null,null,null,null,null,null,null,null,null,null,null,null,null,null,null,null,null,null,null,null,null,null,null,null,0,null,null,null,null,"課税",null,null,null,"13ページ目"]
[null,null,null,null,null,null,null,null,null,null,null,null,null,null,null,null,null,null,null,null,null,null,null,null,null,null,null,null,null,null,null,null,null,0,null,null,null,null,"課税",null,null,null,"14ページ目"]
[null,null,null,null,null,null,null,null,null,null,null,null,null,null,null,null,null,null,null,null,null,null,null,null,null,null,null,null,null,null,null,null,null,0,null,null,null,null,"課税",null,null,null,"15ページ目"]
[null,null,null,null,null,null,null,null,null,null,null,null,null,null,null,null,null,null,null,null,null,null,null,null,null,null,null,null,null,null,null,null,null,0,null,null,null,null,"課税",null,null,null,"16ページ目"]
[null,null,null,null,null,null,null,null,null,null,null,null,null,null,null,null,null,null,null,null,null,null,null,null,null,null,null,null,null,null,null,null,null,0,null,null,null,null,"課税",null,null,null,"17ページ目"]
[null,null,null,null,null,null,null,null,null,null,null,null,null,null,null,null,null,null,null,null,null,null,null,null,null,null,null,null,null,null,null,null,null,0,null,null,null,null,"課税",null,null,null,"18ページ目"]
[null,null,null,null,null,null,null,null,null,null,null,null,null,null,null,null,null,null,null,null,null,null,null,null,null,null,null,null,null,null,null,null,null,0,null,null,null,null,"課税",null,null,null,"19ページ目"]
[null,null,null,null,null,null,null,null,null,null,null,null,null,null,null,null,null,null,null,null,null,null,null,null,null,null,null,null,null,null,null,null,null,0,null,null,null,null,"課税",null,null,null,"20ページ目"]
[null,null,null,null,null,null,null,null,null,null,null,null,null,null,null,null,null,null,null,null,null,null,null,null,null,null,null,null,null,null,null,null,null,0,null,null,null,null,"課税"]
[null,null,null,null,null,null,null,null,null,null,null,null,null,null,null,null,null,null,null,null,null,null,null,null,null,null,null,null,null,null,null,null,null,0,null,null,null,null,"課税"]
[null,"消費税対象額",null,null,null,null,null,null,null,null,null,null,null,null,null,null,null,null,null,null,null,null,null,null,null,null,null,null,{"$f":"SUMIF(AM207:AM227,\"課税\",AH207:AL227)","v":0}]
[null,null,"※","毎月20日締切り、25日郵送必着でお願いします。翌々月5日支払いとなります。"]
[null,"銀行名"]
[]
[]
[null,"支店名"]
[]
[]
[null,"口座番号",null,null,null,null,null,"普通"]
[null,"口座名義人"]
[]
[]
[]
[null,"〒",null,"359-1111",null,null,null,null,null,null,null,null,null,null,null,null,null,null,null,null,null,null,null,null,null,null,null,"NO."]
[null,"埼玉県所沢市緑町2-1-20合田ビル2階",null,null,null,null,null,null,null,null,null,null,null,null,null,null,null,null,null,null,null,null,null,null,null,null,null,null,null,null,null,{"$f":"$AF$2","v":"2023-10-20"}]
[null,"有限会社　埼玉小島建設　御中",null,null,null,null,null,null,null,null,null,null,null,null,null,null,null,null,null,null,null,null,null,null,null,null,null,"発行年月日"]
[null,null,null,null,null,null,null,null,null,null,null,null,null,null,null,null,null,null,null,null,null,null,null,null,null,null,null,"登録番号",null,null,{"$f":"$AE$4","v":0}]
[null,null,null,null,null,null,null,null,null,null,null,null,null,null,null,null,null,null,null,null,null,null,null,null,null,null,null,"郵便番号"]
[null,null,null,null,null,null,null,null,null,null,null,null,null,null,"請　　求　　書",null,null,null,null,null,null,null,null,null,null,null,null,"ご住所"]
[null,null,null,null,null,null,null,null,null,null,null,null,null,null,null,null,null,null,null,null,null,null,null,null,null,null,null,"御社名"]
[null,null,null,null,null,null,null,null,null,null,null,null,null,null,null,null,null,null,null,null,null,null,null,null,null,null,null,"電話"]
[null,null,null,null,null,null,null,null,null,null,null,null,null,null,null,null,null,null,null,null,null,null,null,null,null,null,null,"FAX"]
[null,null,null,null,null,null,null,null,null,null,null,null,null,null,null,null,null,null,null,null,null,null,null,null,null,null,"担当者名："]
[]
[]
[]
[]
[]
[]
[null,null,"税 別 合 計",null,null,null,null,null,null,null,null,null,null,null,null,"消 費 税　（10％）",null,null,null,null,null,null,null,null,null,null,null,null,"税 込 合 計"]
[null,null,{"$f":"SUM(AH267:AL288)","v":0},null,null,null,null,null,null,null,null,null,null,null,null,{"$f":"AC288*0.1","v":0},null,null,null,null,null,null,null,null,null,null,null,null,{"$f":"C258+P258","v":0}]
[]
[]
[null,null,"現 場 名",null,null,null,null,null,null,null,null,null,null,null,null,null,null,null,null,"埼玉小島建設　現場担当者名"]
[]
[]
[]
[]
[null,"月日",null,null,"工事内容・納品名",null,null,null,null,null,null,null,null,null,null,null,null,null,null,null,null,"数量",null,null,null,"単位",null,null,"単価",null,null,null,null,"金額",null,null,null,null,"課税","備考",null,null,"1ページ目"]
[null,null,null,null,null,null,null,null,null,null,null,null,null,null,null,null,null,null,null,null,null,null,null,null,null,null,null,null,null,null,null,null,null,{"$f":"V267*AC267","v":0},null,null,null,null,"課税",null,null,null,"2ページ目"]
[null,null,null,null,null,null,null,null,null,null,null,null,null,null,null,null,null,null,null,null,null,null,null,null,null,null,null,null,null,null,null,null,null,0,null,null,null,null,"課税",null,null,null,"3ページ目"]
[null,null,null,null,null,null,null,null,null,null,null,null,null,null,null,null,null,null,null,null,null,null,null,null,null,null,null,null,null,null,null,null,null,0,null,null,null,null,"課税",null,null,null,"4ページ目"]
[null,null,null,null,null,null,null,null,null,null,null,null,null,null,null,null,null,null,null,null,null,null,null,null,null,null,null,null,null,null,null,null,null,0,null,null,null,null,"課税",null,null,null,"5ページ目"]
[null,null,null,null,null,null,null,null,null,null,null,null,null,null,null,null,null,null,null,null,null,null,null,null,null,null,null,null,null,null,null,null,null,0,null,null,null,null,"課税",null,null,null,"6ページ目",null,null,null,null,null,null,null,null,null,null,null,null,null,"普通"]
[null,null,null,null,null,null,null,null,null,null,null,null,null,null,null,null,null,null,null,null,null,null,null,null,null,null,null,null,null,null,null,null,null,0,null,null,null,null,"課税",null,null,null,"7ページ目",null,null,null,null,null,null,null,null,null,null,null,null,null,"当座"]
[null,null,null,null,null,null,null,null,null,null,null,null,null,null,null,null,null,null,null,null,null,null,null,null,null,null,null,null,null,null,null,null,null,0,null,null,null,null,"課税",null,null,null,"8ページ目"]
[null,null,null,null,null,null,null,null,null,null,null,null,null,null,null,null,null,null,null,null,null,null,null,null,null,null,null,null,null,null,null,null,null,0,null,null,null,null,"課税",null,null,null,"9ページ目"]
[null,null,null,null,null,null,null,null,null,null,null,null,null,null,null,null,null,null,null,null,null,null,null,null,null,null,null,null,null,null,null,null,null,0,null,null,null,null,"課税",null,null,null,"10ページ目"]
[null,null,null,null,null,null,null,null,null,null,null,null,null,null,null,null,null,null,null,null,null,null,null,null,null,null,null,null,null,null,null,null,null,0,null,null,null,null,"課税",null,null,null,"11ページ目"]
[null,null,null,null,null,null,null,null,null,null,null,null,null,null,null,null,null,null,null,null,null,null,null,null,null,null,null,null,null,null,null,null,null,0,null,null,null,null,"課税",null,null,null,"12ページ目"]
[null,null,null,null,null,null,null,null,null,null,null,null,null,null,null,null,null,null,null,null,null,null,null,null,null,null,null,null,null,null,null,null,null,0,null,null,null,null,"課税",null,null,null,"13ページ目"]
[null,null,null,null,null,null,null,null,null,null,null,null,null,null,null,null,null,null,null,null,null,null,null,null,null,null,null,null,null,null,null,null,null,0,null,null,null,null,"課税",null,null,null,"14ページ目"]
[null,null,null,null,null,null,null,null,null,null,null,null,null,null,null,null,null,null,null,null,null,null,null,null,null,null,null,null,null,null,null,null,null,0,null,null,null,null,"課税",null,null,null,"15ページ目"]
[null,null,null,null,null,null,null,null,null,null,null,null,null,null,null,null,null,null,null,null,null,null,null,null,null,null,null,null,null,null,null,null,null,0,null,null,null,null,"課税",null,null,null,"16ページ目"]
[null,null,null,null,null,null,null,null,null,null,null,null,null,null,null,null,null,null,null,null,null,null,null,null,null,null,null,null,null,null,null,null,null,0,null,null,null,null,"課税",null,null,null,"17ページ目"]
[null,null,null,null,null,null,null,null,null,null,null,null,null,null,null,null,null,null,null,null,null,null,null,null,null,null,null,null,null,null,null,null,null,0,null,null,null,null,"課税",null,null,null,"18ページ目"]
[null,null,null,null,null,null,null,null,null,null,null,null,null,null,null,null,null,null,null,null,null,null,null,null,null,null,null,null,null,null,null,null,null,0,null,null,null,null,"課税",null,null,null,"19ページ目"]
[null,null,null,null,null,null,null,null,null,null,null,null,null,null,null,null,null,null,null,null,null,null,null,null,null,null,null,null,null,null,null,null,null,0,null,null,null,null,"課税",null,null,null,"20ページ目"]
[null,null,null,null,null,null,null,null,null,null,null,null,null,null,null,null,null,null,null,null,null,null,null,null,null,null,null,null,null,null,null,null,null,0,null,null,null,null,"課税"]
[null,null,null,null,null,null,null,null,null,null,null,null,null,null,null,null,null,null,null,null,null,null,null,null,null,null,null,null,null,null,null,null,null,0,null,null,null,null,"課税"]
[null,"消費税対象額",null,null,null,null,null,null,null,null,null,null,null,null,null,null,null,null,null,null,null,null,null,null,null,null,null,null,{"$f":"SUMIF(AM267:AM287,\"課税\",AH267:AL287)","v":0}]
[null,null,"※","毎月20日締切り、25日郵送必着でお願いします。翌々月5日支払いとなります。"]
[null,"銀行名"]
[]
[]
[null,"支店名"]
[]
[]
[null,"口座番号",null,null,null,null,null,"普通"]
[null,"口座名義人"]
[]
[]
[]
[null,"〒",null,"359-1111",null,null,null,null,null,null,null,null,null,null,null,null,null,null,null,null,null,null,null,null,null,null,null,"NO."]
[null,"埼玉県所沢市緑町2-1-20合田ビル2階",null,null,null,null,null,null,null,null,null,null,null,null,null,null,null,null,null,null,null,null,null,null,null,null,null,null,null,null,null,{"$f":"$AF$2","v":"2023-10-20"}]
[null,"有限会社　埼玉小島建設　御中",null,null,null,null,null,null,null,null,null,null,null,null,null,null,null,null,null,null,null,null,null,null,null,null,null,"発行年月日"]
[null,null,null,null,null,null,null,null,null,null,null,null,null,null,null,null,null,null,null,null,null,null,null,null,null,null,null,"登録番号",null,null,{"$f":"$AE$4","v":0}]
[null,null,null,null,null,null,null,null,null,null,null,null,null,null,null,null,null,null,null,null,null,null,null,null,null,null,null,"郵便番号"]
[null,null,null,null,null,null,null,null,null,null,null,null,null,null,"請　　求　　書",null,null,null,null,null,null,null,null,null,null,null,null,"ご住所"]
[null,null,null,null,null,null,null,null,null,null,null,null,null,null,null,null,null,null,null,null,null,null,null,null,null,null,null,"御社名"]
[null,null,null,null,null,null,null,null,null,null,null,null,null,null,null,null,null,null,null,null,null,null,null,null,null,null,null,"電話"]
[null,null,null,null,null,null,null,null,null,null,null,null,null,null,null,null,null,null,null,null,null,null,null,null,null,null,null,"FAX"]
[null,null,null,null,null,null,null,null,null,null,null,null,null,null,null,null,null,null,null,null,null,null,null,null,null,null,"担当者名："]
[]
[]
[]
[]
[]
[]
[null,null,"税 別 合 計",null,null,null,null,null,null,null,null,null,null,null,null,"消 費 税　（10％）",null,null,null,null,null,null,null,null,null,null,null,null,"税 込 合 計"]
[null,null,{"$f":"SUM(AH327:AL348)","v":0},null,null,null,null,null,null,null,null,null,null,null,null,{"$f":"AC348*0.1","v":0},null,null,null,null,null,null,null,null,null,null,null,null,{"$f":"C318+P318","v":0}]
[]
[]
[null,null,"現 場 名",null,null,null,null,null,null,null,null,null,null,null,null,null,null,null,null,"埼玉小島建設　現場担当者名"]
[]
[]
[]
[]
[null,"月日",null,null,"工事内容・納品名",null,null,null,null,null,null,null,null,null,null,null,null,null,null,null,null,"数量",null,null,null,"単位",null,null,"単価",null,null,null,null,"金額",null,null,null,null,"課税","備考",null,null,"1ページ目"]
[null,null,null,null,null,null,null,null,null,null,null,null,null,null,null,null,null,null,null,null,null,null,null,null,null,null,null,null,null,null,null,null,null,{"$f":"V327*AC327","v":0},null,null,null,null,"課税",null,null,null,"2ページ目"]
[null,null,null,null,null,null,null,null,null,null,null,null,null,null,null,null,null,null,null,null,null,null,null,null,null,null,null,null,null,null,null,null,null,0,null,null,null,null,"課税",null,null,null,"3ページ目"]
[null,null,null,null,null,null,null,null,null,null,null,null,null,null,null,null,null,null,null,null,null,null,null,null,null,null,null,null,null,null,null,null,null,0,null,null,null,null,"課税",null,null,null,"4ページ目"]
[null,null,null,null,null,null,null,null,null,null,null,null,null,null,null,null,null,null,null,null,null,null,null,null,null,null,null,null,null,null,null,null,null,0,null,null,null,null,"課税",null,null,null,"5ページ目"]
[null,null,null,null,null,null,null,null,null,null,null,null,null,null,null,null,null,null,null,null,null,null,null,null,null,null,null,null,null,null,null,null,null,0,null,null,null,null,"課税",null,null,null,"6ページ目",null,null,null,null,null,null,null,null,null,null,null,null,null,"普通"]
[null,null,null,null,null,null,null,null,null,null,null,null,null,null,null,null,null,null,null,null,null,null,null,null,null,null,null,null,null,null,null,null,null,0,null,null,null,null,"課税",null,null,null,"7ページ目",null,null,null,null,null,null,null,null,null,null,null,null,null,"当座"]
[null,null,null,null,null,null,null,null,null,null,null,null,null,null,null,null,null,null,null,null,null,null,null,null,null,null,null,null,null,null,null,null,null,0,null,null,null,null,"課税",null,null,null,"8ページ目"]
[null,null,null,null,null,null,null,null,null,null,null,null,null,null,null,null,null,null,null,null,null,null,null,null,null,null,null,null,null,null,null,null,null,0,null,null,null,null,"課税",null,null,null,"9ページ目"]
[null,null,null,null,null,null,null,null,null,null,null,null,null,null,null,null,null,null,null,null,null,null,null,null,null,null,null,null,null,null,null,null,null,0,null,null,null,null,"課税",null,null,null,"10ページ目"]
[null,null,null,null,null,null,null,null,null,null,null,null,null,null,null,null,null,null,null,null,null,null,null,null,null,null,null,null,null,null,null,null,null,0,null,null,null,null,"課税",null,null,null,"11ページ目"]
[null,null,null,null,null,null,null,null,null,null,null,null,null,null,null,null,null,null,null,null,null,null,null,null,null,null,null,null,null,null,null,null,null,0,null,null,null,null,"課税",null,null,null,"12ページ目"]
[null,null,null,null,null,null,null,null,null,null,null,null,null,null,null,null,null,null,null,null,null,null,null,null,null,null,null,null,null,null,null,null,null,0,null,null,null,null,"課税",null,null,null,"13ページ目"]
[null,null,null,null,null,null,null,null,null,null,null,null,null,null,null,null,null,null,null,null,null,null,null,null,null,null,null,null,null,null,null,null,null,0,null,null,null,null,"課税",null,null,null,"14ページ目"]
[null,null,null,null,null,null,null,null,null,null,null,null,null,null,null,null,null,null,null,null,null,null,null,null,null,null,null,null,null,null,null,null,null,0,null,null,null,null,"課税",null,null,null,"15ページ目"]
[null,null,null,null,null,null,null,null,null,null,null,null,null,null,null,null,null,null,null,null,null,null,null,null,null,null,null,null,null,null,null,null,null,0,null,null,null,null,"課税",null,null,null,"16ページ目"]
[null,null,null,null,null,null,null,null,null,null,null,null,null,null,null,null,null,null,null,null,null,null,null,null,null,null,null,null,null,null,null,null,null,0,null,null,null,null,"課税",null,null,null,"17ページ目"]
[null,null,null,null,null,null,null,null,null,null,null,null,null,null,null,null,null,null,null,null,null,null,null,null,null,null,null,null,null,null,null,null,null,0,null,null,null,null,"課税",null,null,null,"18ページ目"]
[null,null,null,null,null,null,null,null,null,null,null,null,null,null,null,null,null,null,null,null,null,null,null,null,null,null,null,null,null,null,null,null,null,0,null,null,null,null,"課税",null,null,null,"19ページ目"]
[null,null,null,null,null,null,null,null,null,null,null,null,null,null,null,null,null,null,null,null,null,null,null,null,null,null,null,null,null,null,null,null,null,0,null,null,null,null,"課税",null,null,null,"20ページ目"]
[null,null,null,null,null,null,null,null,null,null,null,null,null,null,null,null,null,null,null,null,null,null,null,null,null,null,null,null,null,null,null,null,null,0,null,null,null,null,"課税"]
[null,null,null,null,null,null,null,null,null,null,null,null,null,null,null,null,null,null,null,null,null,null,null,null,null,null,null,null,null,null,null,null,null,0,null,null,null,null,"課税"]
[null,"消費税対象額",null,null,null,null,null,null,null,null,null,null,null,null,null,null,null,null,null,null,null,null,null,null,null,null,null,null,{"$f":"SUMIF(AM327:AM347,\"課税\",AH327:AL347)","v":0}]
[null,null,"※","毎月20日締切り、25日郵送必着でお願いします。翌々月5日支払いとなります。"]
[null,"銀行名"]
[]
[]
[null,"支店名"]
[]
[]
[null,"口座番号",null,null,null,null,null,"普通"]
[null,"口座名義人"]
[]
[]
[]
[null,"〒",null,"359-1111",null,null,null,null,null,null,null,null,null,null,null,null,null,null,null,null,null,null,null,null,null,null,null,"NO."]
[null,"埼玉県所沢市緑町2-1-20合田ビル2階",null,null,null,null,null,null,null,null,null,null,null,null,null,null,null,null,null,null,null,null,null,null,null,null,null,null,null,null,null,{"$f":"$AF$2","v":"2023-10-20"}]
[null,"有限会社　埼玉小島建設　御中",null,null,null,null,null,null,null,null,null,null,null,null,null,null,null,null,null,null,null,null,null,null,null,null,null,"発行年月日"]
[null,null,null,null,null,null,null,null,null,null,null,null,null,null,null,null,null,null,null,null,null,null,null,null,null,null,null,"登録番号",null,null,{"$f":"$AE$4","v":0}]
[null,null,null,null,null,null,null,null,null,null,null,null,null,null,null,null,null,null,null,null,null,null,null,null,null,null,null,"郵便番号"]
[null,null,null,null,null,null,null,null,null,null,null,null,null,null,"請　　求　　書",null,null,null,null,null,null,null,null,null,null,null,null,"ご住所"]
[null,null,null,null,null,null,null,null,null,null,null,null,null,null,null,null,null,null,null,null,null,null,null,null,null,null,null,"御社名"]
[null,null,null,null,null,null,null,null,null,null,null,null,null,null,null,null,null,null,null,null,null,null,null,null,null,null,null,"電話"]
[null,null,null,null,null,null,null,null,null,null,null,null,null,null,null,null,null,null,null,null,null,null,null,null,null,null,null,"FAX"]
[null,null,null,null,null,null,null,null,null,null,null,null,null,null,null,null,null,null,null,null,null,null,null,null,null,null,"担当者名："]
[]
[]
[]
[]
[]
[]
[null,null,"税 別 合 計",null,null,null,null,null,null,null,null,null,null,null,null,"消 費 税　（10％）",null,null,null,null,null,null,null,null,null,null,null,null,"税 込 合 計"]
[null,null,{"$f":"SUM(AH387:AL408)","v":0},null,null,null,null,null,null,null,null,null,null,null,null,{"$f":"AC408*0.1","v":0},null,null,null,null,null,null,null,null,null,null,null,null,{"$f":"C378+P378","v":0}]
[]
[]
[null,null,"現 場 名",null,null,null,null,null,null,null,null,null,null,null,null,null,null,null,null,"埼玉小島建設　現場担当者名"]
[]
[]
[]
[]
[null,"月日",null,null,"工事内容・納品名",null,null,null,null,null,null,null,null,null,null,null,null,null,null,null,null,"数量",null,null,null,"単位",null,null,"単価",null,null,null,null,"金額",null,null,null,null,"課税","備考",null,null,"1ページ目"]
[null,null,null,null,null,null,null,null,null,null,null,null,null,null,null,null,null,null,null,null,null,null,null,null,null,null,null,null,null,null,null,null,null,{"$f":"V387*AC387","v":0},null,null,null,null,"課税",null,null,null,"2ページ目"]
[null,null,null,null,null,null,null,null,null,null,null,null,null,null,null,null,null,null,null,null,null,null,null,null,null,null,null,null,null,null,null,null,null,0,null,null,null,null,"課税",null,null,null,"3ページ目"]
[null,null,null,null,null,null,null,null,null,null,null,null,null,null,null,null,null,null,null,null,null,null,null,null,null,null,null,null,null,null,null,null,null,0,null,null,null,null,"課税",null,null,null,"4ページ目"]
[null,null,null,null,null,null,null,null,null,null,null,null,null,null,null,null,null,null,null,null,null,null,null,null,null,null,null,null,null,null,null,null,null,0,null,null,null,null,"課税",null,null,null,"5ページ目"]
[null,null,null,null,null,null,null,null,null,null,null,null,null,null,null,null,null,null,null,null,null,null,null,null,null,null,null,null,null,null,null,null,null,0,null,null,null,null,"課税",null,null,null,"6ページ目",null,null,null,null,null,null,null,null,null,null,null,null,null,"普通"]
[null,null,null,null,null,null,null,null,null,null,null,null,null,null,null,null,null,null,null,null,null,null,null,null,null,null,null,null,null,null,null,null,null,0,null,null,null,null,"課税",null,null,null,"7ページ目",null,null,null,null,null,null,null,null,null,null,null,null,null,"当座"]
[null,null,null,null,null,null,null,null,null,null,null,null,null,null,null,null,null,null,null,null,null,null,null,null,null,null,null,null,null,null,null,null,null,0,null,null,null,null,"課税",null,null,null,"8ページ目"]
[null,null,null,null,null,null,null,null,null,null,null,null,null,null,null,null,null,null,null,null,null,null,null,null,null,null,null,null,null,null,null,null,null,0,null,null,null,null,"課税",null,null,null,"9ページ目"]
[null,null,null,null,null,null,null,null,null,null,null,null,null,null,null,null,null,null,null,null,null,null,null,null,null,null,null,null,null,null,null,null,null,0,null,null,null,null,"課税",null,null,null,"10ページ目"]
[null,null,null,null,null,null,null,null,null,null,null,null,null,null,null,null,null,null,null,null,null,null,null,null,null,null,null,null,null,null,null,null,null,0,null,null,null,null,"課税",null,null,null,"11ページ目"]
[null,null,null,null,null,null,null,null,null,null,null,null,null,null,null,null,null,null,null,null,null,null,null,null,null,null,null,null,null,null,null,null,null,0,null,null,null,null,"課税",null,null,null,"12ページ目"]
[null,null,null,null,null,null,null,null,null,null,null,null,null,null,null,null,null,null,null,null,null,null,null,null,null,null,null,null,null,null,null,null,null,0,null,null,null,null,"課税",null,null,null,"13ページ目"]
[null,null,null,null,null,null,null,null,null,null,null,null,null,null,null,null,null,null,null,null,null,null,null,null,null,null,null,null,null,null,null,null,null,0,null,null,null,null,"課税",null,null,null,"14ページ目"]
[null,null,null,null,null,null,null,null,null,null,null,null,null,null,null,null,null,null,null,null,null,null,null,null,null,null,null,null,null,null,null,null,null,0,null,null,null,null,"課税",null,null,null,"15ページ目"]
[null,null,null,null,null,null,null,null,null,null,null,null,null,null,null,null,null,null,null,null,null,null,null,null,null,null,null,null,null,null,null,null,null,0,null,null,null,null,"課税",null,null,null,"16ページ目"]
[null,null,null,null,null,null,null,null,null,null,null,null,null,null,null,null,null,null,null,null,null,null,null,null,null,null,null,null,null,null,null,null,null,0,null,null,null,null,"課税",null,null,null,"17ページ目"]
[null,null,null,null,null,null,null,null,null,null,null,null,null,null,null,null,null,null,null,null,null,null,null,null,null,null,null,null,null,null,null,null,null,0,null,null,null,null,"課税",null,null,null,"18ページ目"]
[null,null,null,null,null,null,null,null,null,null,null,null,null,null,null,null,null,null,null,null,null,null,null,null,null,null,null,null,null,null,null,null,null,0,null,null,null,null,"課税",null,null,null,"19ページ目"]
[null,null,null,null,null,null,null,null,null,null,null,null,null,null,null,null,null,null,null,null,null,null,null,null,null,null,null,null,null,null,null,null,null,0,null,null,null,null,"課税",null,null,null,"20ページ目"]
[null,null,null,null,null,null,null,null,null,null,null,null,null,null,null,null,null,null,null,null,null,null,null,null,null,null,null,null,null,null,null,null,null,0,null,null,null,null,"課税"]
[null,null,null,null,null,null,null,null,null,null,null,null,null,null,null,null,null,null,null,null,null,null,null,null,null,null,null,null,null,null,null,null,null,0,null,null,null,null,"課税"]
[null,"消費税対象額",null,null,null,null,null,null,null,null,null,null,null,null,null,null,null,null,null,null,null,null,null,null,null,null,null,null,{"$f":"SUMIF(AM387:AM407,\"課税\",AH387:AL407)","v":0}]
[null,null,"※","毎月20日締切り、25日郵送必着でお願いします。翌々月5日支払いとなります。"]
[null,"銀行名"]
[]
[]
[null,"支店名"]
[]
[]
[null,"口座番号",null,null,null,null,null,"普通"]
[null,"口座名義人"]
[]
[]
[]
[null,"〒",null,"359-1111",null,null,null,null,null,null,null,null,null,null,null,null,null,null,null,null,null,null,null,null,null,null,null,"NO."]
[null,"埼玉県所沢市緑町2-1-20合田ビル2階",null,null,null,null,null,null,null,null,null,null,null,null,null,null,null,null,null,null,null,null,null,null,null,null,null,null,null,null,null,{"$f":"$AF$2","v":"2023-10-20"}]
[null,"有限会社　埼玉小島建設　御中",null,null,null,null,null,null,null,null,null,null,null,null,null,null,null,null,null,null,null,null,null,null,null,null,null,"発行年月日"]
[null,null,null,null,null,null,null,null,null,null,null,null,null,null,null,null,null,null,null,null,null,null,null,null,null,null,null,"登録番号",null,null,{"$f":"$AE$4","v":0}]
[null,null,null,null,null,null,null,null,null,null,null,null,null,null,null,null,null,null,null,null,null,null,null,null,null,null,null,"郵便番号"]
[null,null,null,null,null,null,null,null,null,null,null,null,null,null,"請　　求　　書",null,null,null,null,null,null,null,null,null,null,null,null,"ご住所"]
[null,null,null,null,null,null,null,null,null,null,null,null,null,null,null,null,null,null,null,null,null,null,null,null,null,null,null,"御社名"]
[null,null,null,null,null,null,null,null,null,null,null,null,null,null,null,null,null,null,null,null,null,null,null,null,null,null,null,"電話"]
[null,null,null,null,null,null,null,null,null,null,null,null,null,null,null,null,null,null,null,null,null,null,null,null,null,null,null,"FAX"]
[null,null,null,null,null,null,null,null,null,null,null,null,null,null,null,null,null,null,null,null,null,null,null,null,null,null,"担当者名："]
[]
[]
[]
[]
[]
[]
[null,null,"税 別 合 計",null,null,null,null,null,null,null,null,null,null,null,null,"消 費 税　（10％）",null,null,null,null,null,null,null,null,null,null,null,null,"税 込 合 計"]
[null,null,{"$f":"SUM(AH447:AL468)","v":0},null,null,null,null,null,null,null,null,null,null,null,null,{"$f":"AC468*0.1","v":0},null,null,null,null,null,null,null,null,null,null,null,null,{"$f":"C438+P438","v":0}]
[]
[]
[null,null,"現 場 名",null,null,null,null,null,null,null,null,null,null,null,null,null,null,null,null,"埼玉小島建設　現場担当者名"]
[]
[]
[]
[]
[null,"月日",null,null,"工事内容・納品名",null,null,null,null,null,null,null,null,null,null,null,null,null,null,null,null,"数量",null,null,null,"単位",null,null,"単価",null,null,null,null,"金額",null,null,null,null,"課税","備考",null,null,"1ページ目"]
[null,null,null,null,null,null,null,null,null,null,null,null,null,null,null,null,null,null,null,null,null,null,null,null,null,null,null,null,null,null,null,null,null,{"$f":"V447*AC447","v":0},null,null,null,null,"課税",null,null,null,"2ページ目"]
[null,null,null,null,null,null,null,null,null,null,null,null,null,null,null,null,null,null,null,null,null,null,null,null,null,null,null,null,null,null,null,null,null,0,null,null,null,null,"課税",null,null,null,"3ページ目"]
[null,null,null,null,null,null,null,null,null,null,null,null,null,null,null,null,null,null,null,null,null,null,null,null,null,null,null,null,null,null,null,null,null,0,null,null,null,null,"課税",null,null,null,"4ページ目"]
[null,null,null,null,null,null,null,null,null,null,null,null,null,null,null,null,null,null,null,null,null,null,null,null,null,null,null,null,null,null,null,null,null,0,null,null,null,null,"課税",null,null,null,"5ページ目"]
[null,null,null,null,null,null,null,null,null,null,null,null,null,null,null,null,null,null,null,null,null,null,null,null,null,null,null,null,null,null,null,null,null,0,null,null,null,null,"課税",null,null,null,"6ページ目",null,null,null,null,null,null,null,null,null,null,null,null,null,"普通"]
[null,null,null,null,null,null,null,null,null,null,null,null,null,null,null,null,null,null,null,null,null,null,null,null,null,null,null,null,null,null,null,null,null,0,null,null,null,null,"課税",null,null,null,"7ページ目",null,null,null,null,null,null,null,null,null,null,null,null,null,"当座"]
[null,null,null,null,null,null,null,null,null,null,null,null,null,null,null,null,null,null,null,null,null,null,null,null,null,null,null,null,null,null,null,null,null,0,null,null,null,null,"課税",null,null,null,"8ページ目"]
[null,null,null,null,null,null,null,null,null,null,null,null,null,null,null,null,null,null,null,null,null,null,null,null,null,null,null,null,null,null,null,null,null,0,null,null,null,null,"課税",null,null,null,"9ページ目"]
[null,null,null,null,null,null,null,null,null,null,null,null,null,null,null,null,null,null,null,null,null,null,null,null,null,null,null,null,null,null,null,null,null,0,null,null,null,null,"課税",null,null,null,"10ページ目"]
[null,null,null,null,null,null,null,null,null,null,null,null,null,null,null,null,null,null,null,null,null,null,null,null,null,null,null,null,null,null,null,null,null,0,null,null,null,null,"課税",null,null,null,"11ページ目"]
[null,null,null,null,null,null,null,null,null,null,null,null,null,null,null,null,null,null,null,null,null,null,null,null,null,null,null,null,null,null,null,null,null,0,null,null,null,null,"課税",null,null,null,"12ページ目"]
[null,null,null,null,null,null,null,null,null,null,null,null,null,null,null,null,null,null,null,null,null,null,null,null,null,null,null,null,null,null,null,null,null,0,null,null,null,null,"課税",null,null,null,"13ページ目"]
[null,null,null,null,null,null,null,null,null,null,null,null,null,null,null,null,null,null,null,null,null,null,null,null,null,null,null,null,null,null,null,null,null,0,null,null,null,null,"課税",null,null,null,"14ページ目"]
[null,null,null,null,null,null,null,null,null,null,null,null,null,null,null,null,null,null,null,null,null,null,null,null,null,null,null,null,null,null,null,null,null,0,null,null,null,null,"課税",null,null,null,"15ページ目"]
[null,null,null,null,null,null,null,null,null,null,null,null,null,null,null,null,null,null,null,null,null,null,null,null,null,null,null,null,null,null,null,null,null,0,null,null,null,null,"課税",null,null,null,"16ページ目"]
[null,null,null,null,null,null,null,null,null,null,null,null,null,null,null,null,null,null,null,null,null,null,null,null,null,null,null,null,null,null,null,null,null,0,null,null,null,null,"課税",null,null,null,"17ページ目"]
[null,null,null,null,null,null,null,null,null,null,null,null,null,null,null,null,null,null,null,null,null,null,null,null,null,null,null,null,null,null,null,null,null,0,null,null,null,null,"課税",null,null,null,"18ページ目"]
[null,null,null,null,null,null,null,null,null,null,null,null,null,null,null,null,null,null,null,null,null,null,null,null,null,null,null,null,null,null,null,null,null,0,null,null,null,null,"課税",null,null,null,"19ページ目"]
[null,null,null,null,null,null,null,null,null,null,null,null,null,null,null,null,null,null,null,null,null,null,null,null,null,null,null,null,null,null,null,null,null,0,null,null,null,null,"課税",null,null,null,"20ページ目"]
[null,null,null,null,null,null,null,null,null,null,null,null,null,null,null,null,null,null,null,null,null,null,null,null,null,null,null,null,null,null,null,null,null,0,null,null,null,null,"課税"]
[null,null,null,null,null,null,null,null,null,null,null,null,null,null,null,null,null,null,null,null,null,null,null,null,null,null,null,null,null,null,null,null,null,0,null,null,null,null,"課税"]
[null,"消費税対象額",null,null,null,null,null,null,null,null,null,null,null,null,null,null,null,null,null,null,null,null,null,null,null,null,null,null,{"$f":"SUMIF(AM447:AM467,\"課税\",AH447:AL467)","v":0}]
[null,null,"※","毎月20日締切り、25日郵送必着でお願いします。翌々月5日支払いとなります。"]
[null,"銀行名"]
[]
[]
[null,"支店名"]
[]
[]
[null,"口座番号",null,null,null,null,null,"普通"]
[null,"口座名義人"]
[]
[]
[]
[null,"〒",null,"359-1111",null,null,null,null,null,null,null,null,null,null,null,null,null,null,null,null,null,null,null,null,null,null,null,"NO."]
[null,"埼玉県所沢市緑町2-1-20合田ビル2階",null,null,null,null,null,null,null,null,null,null,null,null,null,null,null,null,null,null,null,null,null,null,null,null,null,null,null,null,null,{"$f":"$AF$2","v":"2023-10-20"}]
[null,"有限会社　埼玉小島建設　御中",null,null,null,null,null,null,null,null,null,null,null,null,null,null,null,null,null,null,null,null,null,null,null,null,null,"発行年月日"]
[null,null,null,null,null,null,null,null,null,null,null,null,null,null,null,null,null,null,null,null,null,null,null,null,null,null,null,"登録番号",null,null,{"$f":"$AE$4","v":0}]
[null,null,null,null,null,null,null,null,null,null,null,null,null,null,null,null,null,null,null,null,null,null,null,null,null,null,null,"郵便番号"]
[null,null,null,null,null,null,null,null,null,null,null,null,null,null,"請　　求　　書",null,null,null,null,null,null,null,null,null,null,null,null,"ご住所"]
[null,null,null,null,null,null,null,null,null,null,null,null,null,null,null,null,null,null,null,null,null,null,null,null,null,null,null,"御社名"]
[null,null,null,null,null,null,null,null,null,null,null,null,null,null,null,null,null,null,null,null,null,null,null,null,null,null,null,"電話"]
[null,null,null,null,null,null,null,null,null,null,null,null,null,null,null,null,null,null,null,null,null,null,null,null,null,null,null,"FAX"]
[null,null,null,null,null,null,null,null,null,null,null,null,null,null,null,null,null,null,null,null,null,null,null,null,null,null,"担当者名："]
[]
[]
[]
[]
[]
[]
[null,null,"税 別 合 計",null,null,null,null,null,null,null,null,null,null,null,null,"消 費 税　（10％）",null,null,null,null,null,null,null,null,null,null,null,null,"税 込 合 計"]
[null,null,{"$f":"SUM(AH507:AL528)","v":0},null,null,null,null,null,null,null,null,null,null,null,null,{"$f":"AC528*0.1","v":0},null,null,null,null,null,null,null,null,null,null,null,null,{"$f":"C498+P498","v":0}]
[]
[]
[null,null,"現 場 名",null,null,null,null,null,null,null,null,null,null,null,null,null,null,null,null,"埼玉小島建設　現場担当者名"]
[]
[]
[]
[]
[null,"月日",null,null,"工事内容・納品名",null,null,null,null,null,null,null,null,null,null,null,null,null,null,null,null,"数量",null,null,null,"単位",null,null,"単価",null,null,null,null,"金額",null,null,null,null,"課税","備考",null,null,"1ページ目"]
[null,null,null,null,null,null,null,null,null,null,null,null,null,null,null,null,null,null,null,null,null,null,null,null,null,null,null,null,null,null,null,null,null,{"$f":"V507*AC507","v":0},null,null,null,null,"課税",null,null,null,"2ページ目"]
[null,null,null,null,null,null,null,null,null,null,null,null,null,null,null,null,null,null,null,null,null,null,null,null,null,null,null,null,null,null,null,null,null,0,null,null,null,null,"課税",null,null,null,"3ページ目"]
[null,null,null,null,null,null,null,null,null,null,null,null,null,null,null,null,null,null,null,null,null,null,null,null,null,null,null,null,null,null,null,null,null,0,null,null,null,null,"課税",null,null,null,"4ページ目"]
[null,null,null,null,null,null,null,null,null,null,null,null,null,null,null,null,null,null,null,null,null,null,null,null,null,null,null,null,null,null,null,null,null,0,null,null,null,null,"課税",null,null,null,"5ページ目"]
[null,null,null,null,null,null,null,null,null,null,null,null,null,null,null,null,null,null,null,null,null,null,null,null,null,null,null,null,null,null,null,null,null,0,null,null,null,null,"課税",null,null,null,"6ページ目",null,null,null,null,null,null,null,null,null,null,null,null,null,"普通"]
[null,null,null,null,null,null,null,null,null,null,null,null,null,null,null,null,null,null,null,null,null,null,null,null,null,null,null,null,null,null,null,null,null,0,null,null,null,null,"課税",null,null,null,"7ページ目",null,null,null,null,null,null,null,null,null,null,null,null,null,"当座"]
[null,null,null,null,null,null,null,null,null,null,null,null,null,null,null,null,null,null,null,null,null,null,null,null,null,null,null,null,null,null,null,null,null,0,null,null,null,null,"課税",null,null,null,"8ページ目"]
[null,null,null,null,null,null,null,null,null,null,null,null,null,null,null,null,null,null,null,null,null,null,null,null,null,null,null,null,null,null,null,null,null,0,null,null,null,null,"課税",null,null,null,"9ページ目"]
[null,null,null,null,null,null,null,null,null,null,null,null,null,null,null,null,null,null,null,null,null,null,null,null,null,null,null,null,null,null,null,null,null,0,null,null,null,null,"課税",null,null,null,"10ページ目"]
[null,null,null,null,null,null,null,null,null,null,null,null,null,null,null,null,null,null,null,null,null,null,null,null,null,null,null,null,null,null,null,null,null,0,null,null,null,null,"課税",null,null,null,"11ページ目"]
[null,null,null,null,null,null,null,null,null,null,null,null,null,null,null,null,null,null,null,null,null,null,null,null,null,null,null,null,null,null,null,null,null,0,null,null,null,null,"課税",null,null,null,"12ページ目"]
[null,null,null,null,null,null,null,null,null,null,null,null,null,null,null,null,null,null,null,null,null,null,null,null,null,null,null,null,null,null,null,null,null,0,null,null,null,null,"課税",null,null,null,"13ページ目"]
[null,null,null,null,null,null,null,null,null,null,null,null,null,null,null,null,null,null,null,null,null,null,null,null,null,null,null,null,null,null,null,null,null,0,null,null,null,null,"課税",null,null,null,"14ページ目"]
[null,null,null,null,null,null,null,null,null,null,null,null,null,null,null,null,null,null,null,null,null,null,null,null,null,null,null,null,null,null,null,null,null,0,null,null,null,null,"課税",null,null,null,"15ページ目"]
[null,null,null,null,null,null,null,null,null,null,null,null,null,null,null,null,null,null,null,null,null,null,null,null,null,null,null,null,null,null,null,null,null,0,null,null,null,null,"課税",null,null,null,"16ページ目"]
[null,null,null,null,null,null,null,null,null,null,null,null,null,null,null,null,null,null,null,null,null,null,null,null,null,null,null,null,null,null,null,null,null,0,null,null,null,null,"課税",null,null,null,"17ページ目"]
[null,null,null,null,null,null,null,null,null,null,null,null,null,null,null,null,null,null,null,null,null,null,null,null,null,null,null,null,null,null,null,null,null,0,null,null,null,null,"課税",null,null,null,"18ページ目"]
[null,null,null,null,null,null,null,null,null,null,null,null,null,null,null,null,null,null,null,null,null,null,null,null,null,null,null,null,null,null,null,null,null,0,null,null,null,null,"課税",null,null,null,"19ページ目"]
[null,null,null,null,null,null,null,null,null,null,null,null,null,null,null,null,null,null,null,null,null,null,null,null,null,null,null,null,null,null,null,null,null,0,null,null,null,null,"課税",null,null,null,"20ページ目"]
[null,null,null,null,null,null,null,null,null,null,null,null,null,null,null,null,null,null,null,null,null,null,null,null,null,null,null,null,null,null,null,null,null,0,null,null,null,null,"課税"]
[null,null,null,null,null,null,null,null,null,null,null,null,null,null,null,null,null,null,null,null,null,null,null,null,null,null,null,null,null,null,null,null,null,0,null,null,null,null,"課税"]
[null,"消費税対象額",null,null,null,null,null,null,null,null,null,null,null,null,null,null,null,null,null,null,null,null,null,null,null,null,null,null,{"$f":"SUMIF(AM507:AM527,\"課税\",AH507:AL527)","v":0}]
[null,null,"※","毎月20日締切り、25日郵送必着でお願いします。翌々月5日支払いとなります。"]
[null,"銀行名"]
[]
[]
[null,"支店名"]
[]
[]
[null,"口座番号",null,null,null,null,null,"普通"]
[null,"口座名義人"]
[]
[]
[]
[null,"〒",null,"359-1111",null,null,null,null,null,null,null,null,null,null,null,null,null,null,null,null,null,null,null,null,null,null,null,"NO."]
[null,"埼玉県所沢市緑町2-1-20合田ビル2階",null,null,null,null,null,null,null,null,null,null,null,null,null,null,null,null,null,null,null,null,null,null,null,null,null,null,null,null,null,{"$f":"$AF$2","v":"2023-10-20"}]
[null,"有限会社　埼玉小島建設　御中",null,null,null,null,null,null,null,null,null,null,null,null,null,null,null,null,null,null,null,null,null,null,null,null,null,"発行年月日"]
[null,null,null,null,null,null,null,null,null,null,null,null,null,null,null,null,null,null,null,null,null,null,null,null,null,null,null,"登録番号",null,null,{"$f":"$AE$4","v":0}]
[null,null,null,null,null,null,null,null,null,null,null,null,null,null,null,null,null,null,null,null,null,null,null,null,null,null,null,"郵便番号"]
[null,null,null,null,null,null,null,null,null,null,null,null,null,null,"請　　求　　書",null,null,null,null,null,null,null,null,null,null,null,null,"ご住所"]
[null,null,null,null,null,null,null,null,null,null,null,null,null,null,null,null,null,null,null,null,null,null,null,null,null,null,null,"御社名"]
[null,null,null,null,null,null,null,null,null,null,null,null,null,null,null,null,null,null,null,null,null,null,null,null,null,null,null,"電話"]
[null,null,null,null,null,null,null,null,null,null,null,null,null,null,null,null,null,null,null,null,null,null,null,null,null,null,null,"FAX"]
[null,null,null,null,null,null,null,null,null,null,null,null,null,null,null,null,null,null,null,null,null,null,null,null,null,null,"担当者名："]
[]
[]
[]
[]
[]
[]
[null,null,"税 別 合 計",null,null,null,null,null,null,null,null,null,null,null,null,"消 費 税　（10％）",null,null,null,null,null,null,null,null,null,null,null,null,"税 込 合 計"]
[null,null,{"$f":"SUM(AH567:AL588)","v":0},null,null,null,null,null,null,null,null,null,null,null,null,{"$f":"AC588*0.1","v":0},null,null,null,null,null,null,null,null,null,null,null,null,{"$f":"C558+P558","v":0}]
[]
[]
[null,null,"現 場 名",null,null,null,null,null,null,null,null,null,null,null,null,null,null,null,null,"埼玉小島建設　現場担当者名"]
[]
[]
[]
[]
[null,"月日",null,null,"工事内容・納品名",null,null,null,null,null,null,null,null,null,null,null,null,null,null,null,null,"数量",null,null,null,"単位",null,null,"単価",null,null,null,null,"金額",null,null,null,null,"課税","備考",null,null,"1ページ目"]
[null,null,null,null,null,null,null,null,null,null,null,null,null,null,null,null,null,null,null,null,null,null,null,null,null,null,null,null,null,null,null,null,null,{"$f":"V567*AC567","v":0},null,null,null,null,"課税",null,null,null,"2ページ目"]
[null,null,null,null,null,null,null,null,null,null,null,null,null,null,null,null,null,null,null,null,null,null,null,null,null,null,null,null,null,null,null,null,null,0,null,null,null,null,"課税",null,null,null,"3ページ目"]
[null,null,null,null,null,null,null,null,null,null,null,null,null,null,null,null,null,null,null,null,null,null,null,null,null,null,null,null,null,null,null,null,null,0,null,null,null,null,"課税",null,null,null,"4ページ目"]
[null,null,null,null,null,null,null,null,null,null,null,null,null,null,null,null,null,null,null,null,null,null,null,null,null,null,null,null,null,null,null,null,null,0,null,null,null,null,"課税",null,null,null,"5ページ目"]
[null,null,null,null,null,null,null,null,null,null,null,null,null,null,null,null,null,null,null,null,null,null,null,null,null,null,null,null,null,null,null,null,null,0,null,null,null,null,"課税",null,null,null,"6ページ目",null,null,null,null,null,null,null,null,null,null,null,null,null,"普通"]
[null,null,null,null,null,null,null,null,null,null,null,null,null,null,null,null,null,null,null,null,null,null,null,null,null,null,null,null,null,null,null,null,null,0,null,null,null,null,"課税",null,null,null,"7ページ目",null,null,null,null,null,null,null,null,null,null,null,null,null,"当座"]
[null,null,null,null,null,null,null,null,null,null,null,null,null,null,null,null,null,null,null,null,null,null,null,null,null,null,null,null,null,null,null,null,null,0,null,null,null,null,"課税",null,null,null,"8ページ目"]
[null,null,null,null,null,null,null,null,null,null,null,null,null,null,null,null,null,null,null,null,null,null,null,null,null,null,null,null,null,null,null,null,null,0,null,null,null,null,"課税",null,null,null,"9ページ目"]
[null,null,null,null,null,null,null,null,null,null,null,null,null,null,null,null,null,null,null,null,null,null,null,null,null,null,null,null,null,null,null,null,null,0,null,null,null,null,"課税",null,null,null,"10ページ目"]
[null,null,null,null,null,null,null,null,null,null,null,null,null,null,null,null,null,null,null,null,null,null,null,null,null,null,null,null,null,null,null,null,null,0,null,null,null,null,"課税",null,null,null,"11ページ目"]
[null,null,null,null,null,null,null,null,null,null,null,null,null,null,null,null,null,null,null,null,null,null,null,null,null,null,null,null,null,null,null,null,null,0,null,null,null,null,"課税",null,null,null,"12ページ目"]
[null,null,null,null,null,null,null,null,null,null,null,null,null,null,null,null,null,null,null,null,null,null,null,null,null,null,null,null,null,null,null,null,null,0,null,null,null,null,"課税",null,null,null,"13ページ目"]
[null,null,null,null,null,null,null,null,null,null,null,null,null,null,null,null,null,null,null,null,null,null,null,null,null,null,null,null,null,null,null,null,null,0,null,null,null,null,"課税",null,null,null,"14ページ目"]
[null,null,null,null,null,null,null,null,null,null,null,null,null,null,null,null,null,null,null,null,null,null,null,null,null,null,null,null,null,null,null,null,null,0,null,null,null,null,"課税",null,null,null,"15ページ目"]
[null,null,null,null,null,null,null,null,null,null,null,null,null,null,null,null,null,null,null,null,null,null,null,null,null,null,null,null,null,null,null,null,null,0,null,null,null,null,"課税",null,null,null,"16ページ目"]
[null,null,null,null,null,null,null,null,null,null,null,null,null,null,null,null,null,null,null,null,null,null,null,null,null,null,null,null,null,null,null,null,null,0,null,null,null,null,"課税",null,null,null,"17ページ目"]
[null,null,null,null,null,null,null,null,null,null,null,null,null,null,null,null,null,null,null,null,null,null,null,null,null,null,null,null,null,null,null,null,null,0,null,null,null,null,"課税",null,null,null,"18ページ目"]
[null,null,null,null,null,null,null,null,null,null,null,null,null,null,null,null,null,null,null,null,null,null,null,null,null,null,null,null,null,null,null,null,null,0,null,null,null,null,"課税",null,null,null,"19ページ目"]
[null,null,null,null,null,null,null,null,null,null,null,null,null,null,null,null,null,null,null,null,null,null,null,null,null,null,null,null,null,null,null,null,null,0,null,null,null,null,"課税",null,null,null,"20ページ目"]
[null,null,null,null,null,null,null,null,null,null,null,null,null,null,null,null,null,null,null,null,null,null,null,null,null,null,null,null,null,null,null,null,null,0,null,null,null,null,"課税"]
[null,null,null,null,null,null,null,null,null,null,null,null,null,null,null,null,null,null,null,null,null,null,null,null,null,null,null,null,null,null,null,null,null,0,null,null,null,null,"課税"]
[null,"消費税対象額",null,null,null,null,null,null,null,null,null,null,null,null,null,null,null,null,null,null,null,null,null,null,null,null,null,null,{"$f":"SUMIF(AM567:AM587,\"課税\",AH567:AL587)","v":0}]
[null,null,"※","毎月20日締切り、25日郵送必着でお願いします。翌々月5日支払いとなります。"]
[null,"銀行名"]
[]
[]
[null,"支店名"]
[]
[]
[null,"口座番号",null,null,null,null,null,"普通"]
[null,"口座名義人"]
[]
[]
[]
[null,"〒",null,"359-1111",null,null,null,null,null,null,null,null,null,null,null,null,null,null,null,null,null,null,null,null,null,null,null,"NO."]
[null,"埼玉県所沢市緑町2-1-20合田ビル2階",null,null,null,null,null,null,null,null,null,null,null,null,null,null,null,null,null,null,null,null,null,null,null,null,null,null,null,null,null,{"$f":"$AF$2","v":"2023-10-20"}]
[null,"有限会社　埼玉小島建設　御中",null,null,null,null,null,null,null,null,null,null,null,null,null,null,null,null,null,null,null,null,null,null,null,null,null,"発行年月日"]
[null,null,null,null,null,null,null,null,null,null,null,null,null,null,null,null,null,null,null,null,null,null,null,null,null,null,null,"登録番号",null,null,{"$f":"$AE$4","v":0}]
[null,null,null,null,null,null,null,null,null,null,null,null,null,null,null,null,null,null,null,null,null,null,null,null,null,null,null,"郵便番号"]
[null,null,null,null,null,null,null,null,null,null,null,null,null,null,"請　　求　　書",null,null,null,null,null,null,null,null,null,null,null,null,"ご住所"]
[null,null,null,null,null,null,null,null,null,null,null,null,null,null,null,null,null,null,null,null,null,null,null,null,null,null,null,"御社名"]
[null,null,null,null,null,null,null,null,null,null,null,null,null,null,null,null,null,null,null,null,null,null,null,null,null,null,null,"電話"]
[null,null,null,null,null,null,null,null,null,null,null,null,null,null,null,null,null,null,null,null,null,null,null,null,null,null,null,"FAX"]
[null,null,null,null,null,null,null,null,null,null,null,null,null,null,null,null,null,null,null,null,null,null,null,null,null,null,"担当者名："]
[]
[]
[]
[]
[]
[]
[null,null,"税 別 合 計",null,null,null,null,null,null,null,null,null,null,null,null,"消 費 税　（10％）",null,null,null,null,null,null,null,null,null,null,null,null,"税 込 合 計"]
[null,null,{"$f":"SUM(AH627:AL648)","v":0},null,null,null,null,null,null,null,null,null,null,null,null,{"$f":"AC648*0.1","v":0},null,null,null,null,null,null,null,null,null,null,null,null,{"$f":"C618+P618","v":0}]
[]
[]
[null,null,"現 場 名",null,null,null,null,null,null,null,null,null,null,null,null,null,null,null,null,"埼玉小島建設　現場担当者名"]
[]
[]
[]
[]
[null,"月日",null,null,"工事内容・納品名",null,null,null,null,null,null,null,null,null,null,null,null,null,null,null,null,"数量",null,null,null,"単位",null,null,"単価",null,null,null,null,"金額",null,null,null,null,"課税","備考",null,null,"1ページ目"]
[null,null,null,null,null,null,null,null,null,null,null,null,null,null,null,null,null,null,null,null,null,null,null,null,null,null,null,null,null,null,null,null,null,{"$f":"V627*AC627","v":0},null,null,null,null,"課税",null,null,null,"2ページ目"]
[null,null,null,null,null,null,null,null,null,null,null,null,null,null,null,null,null,null,null,null,null,null,null,null,null,null,null,null,null,null,null,null,null,0,null,null,null,null,"課税",null,null,null,"3ページ目"]
[null,null,null,null,null,null,null,null,null,null,null,null,null,null,null,null,null,null,null,null,null,null,null,null,null,null,null,null,null,null,null,null,null,0,null,null,null,null,"課税",null,null,null,"4ページ目"]
[null,null,null,null,null,null,null,null,null,null,null,null,null,null,null,null,null,null,null,null,null,null,null,null,null,null,null,null,null,null,null,null,null,0,null,null,null,null,"課税",null,null,null,"5ページ目"]
[null,null,null,null,null,null,null,null,null,null,null,null,null,null,null,null,null,null,null,null,null,null,null,null,null,null,null,null,null,null,null,null,null,0,null,null,null,null,"課税",null,null,null,"6ページ目",null,null,null,null,null,null,null,null,null,null,null,null,null,"普通"]
[null,null,null,null,null,null,null,null,null,null,null,null,null,null,null,null,null,null,null,null,null,null,null,null,null,null,null,null,null,null,null,null,null,0,null,null,null,null,"課税",null,null,null,"7ページ目",null,null,null,null,null,null,null,null,null,null,null,null,null,"当座"]
[null,null,null,null,null,null,null,null,null,null,null,null,null,null,null,null,null,null,null,null,null,null,null,null,null,null,null,null,null,null,null,null,null,0,null,null,null,null,"課税",null,null,null,"8ページ目"]
[null,null,null,null,null,null,null,null,null,null,null,null,null,null,null,null,null,null,null,null,null,null,null,null,null,null,null,null,null,null,null,null,null,0,null,null,null,null,"課税",null,null,null,"9ページ目"]
[null,null,null,null,null,null,null,null,null,null,null,null,null,null,null,null,null,null,null,null,null,null,null,null,null,null,null,null,null,null,null,null,null,0,null,null,null,null,"課税",null,null,null,"10ページ目"]
[null,null,null,null,null,null,null,null,null,null,null,null,null,null,null,null,null,null,null,null,null,null,null,null,null,null,null,null,null,null,null,null,null,0,null,null,null,null,"課税",null,null,null,"11ページ目"]
[null,null,null,null,null,null,null,null,null,null,null,null,null,null,null,null,null,null,null,null,null,null,null,null,null,null,null,null,null,null,null,null,null,0,null,null,null,null,"課税",null,null,null,"12ページ目"]
[null,null,null,null,null,null,null,null,null,null,null,null,null,null,null,null,null,null,null,null,null,null,null,null,null,null,null,null,null,null,null,null,null,0,null,null,null,null,"課税",null,null,null,"13ページ目"]
[null,null,null,null,null,null,null,null,null,null,null,null,null,null,null,null,null,null,null,null,null,null,null,null,null,null,null,null,null,null,null,null,null,0,null,null,null,null,"課税",null,null,null,"14ページ目"]
[null,null,null,null,null,null,null,null,null,null,null,null,null,null,null,null,null,null,null,null,null,null,null,null,null,null,null,null,null,null,null,null,null,0,null,null,null,null,"課税",null,null,null,"15ページ目"]
[null,null,null,null,null,null,null,null,null,null,null,null,null,null,null,null,null,null,null,null,null,null,null,null,null,null,null,null,null,null,null,null,null,0,null,null,null,null,"課税",null,null,null,"16ページ目"]
[null,null,null,null,null,null,null,null,null,null,null,null,null,null,null,null,null,null,null,null,null,null,null,null,null,null,null,null,null,null,null,null,null,0,null,null,null,null,"課税",null,null,null,"17ページ目"]
[null,null,null,null,null,null,null,null,null,null,null,null,null,null,null,null,null,null,null,null,null,null,null,null,null,null,null,null,null,null,null,null,null,0,null,null,null,null,"課税",null,null,null,"18ページ目"]
[null,null,null,null,null,null,null,null,null,null,null,null,null,null,null,null,null,null,null,null,null,null,null,null,null,null,null,null,null,null,null,null,null,0,null,null,null,null,"課税",null,null,null,"19ページ目"]
[null,null,null,null,null,null,null,null,null,null,null,null,null,null,null,null,null,null,null,null,null,null,null,null,null,null,null,null,null,null,null,null,null,0,null,null,null,null,"課税",null,null,null,"20ページ目"]
[null,null,null,null,null,null,null,null,null,null,null,null,null,null,null,null,null,null,null,null,null,null,null,null,null,null,null,null,null,null,null,null,null,0,null,null,null,null,"課税"]
[null,null,null,null,null,null,null,null,null,null,null,null,null,null,null,null,null,null,null,null,null,null,null,null,null,null,null,null,null,null,null,null,null,0,null,null,null,null,"課税"]
[null,"消費税対象額",null,null,null,null,null,null,null,null,null,null,null,null,null,null,null,null,null,null,null,null,null,null,null,null,null,null,{"$f":"SUMIF(AM627:AM647,\"課税\",AH627:AL647)","v":0}]
[null,null,"※","毎月20日締切り、25日郵送必着でお願いします。翌々月5日支払いとなります。"]
[null,"銀行名"]
[]
[]
[null,"支店名"]
[]
[]
[null,"口座番号",null,null,null,null,null,"普通"]
[null,"口座名義人"]
[]
[]
[]
[null,"〒",null,"359-1111",null,null,null,null,null,null,null,null,null,null,null,null,null,null,null,null,null,null,null,null,null,null,null,"NO."]
[null,"埼玉県所沢市緑町2-1-20合田ビル2階",null,null,null,null,null,null,null,null,null,null,null,null,null,null,null,null,null,null,null,null,null,null,null,null,null,null,null,null,null,{"$f":"$AF$2","v":"2023-10-20"}]
[null,"有限会社　埼玉小島建設　御中",null,null,null,null,null,null,null,null,null,null,null,null,null,null,null,null,null,null,null,null,null,null,null,null,null,"発行年月日"]
[null,null,null,null,null,null,null,null,null,null,null,null,null,null,null,null,null,null,null,null,null,null,null,null,null,null,null,"登録番号",null,null,{"$f":"$AE$4","v":0}]
[null,null,null,null,null,null,null,null,null,null,null,null,null,null,null,null,null,null,null,null,null,null,null,null,null,null,null,"郵便番号"]
[null,null,null,null,null,null,null,null,null,null,null,null,null,null,"請　　求　　書",null,null,null,null,null,null,null,null,null,null,null,null,"ご住所"]
[null,null,null,null,null,null,null,null,null,null,null,null,null,null,null,null,null,null,null,null,null,null,null,null,null,null,null,"御社名"]
[null,null,null,null,null,null,null,null,null,null,null,null,null,null,null,null,null,null,null,null,null,null,null,null,null,null,null,"電話"]
[null,null,null,null,null,null,null,null,null,null,null,null,null,null,null,null,null,null,null,null,null,null,null,null,null,null,null,"FAX"]
[null,null,null,null,null,null,null,null,null,null,null,null,null,null,null,null,null,null,null,null,null,null,null,null,null,null,"担当者名："]
[]
[]
[]
[]
[]
[]
[null,null,"税 別 合 計",null,null,null,null,null,null,null,null,null,null,null,null,"消 費 税　（10％）",null,null,null,null,null,null,null,null,null,null,null,null,"税 込 合 計"]
[null,null,{"$f":"SUM(AH687:AL708)","v":0},null,null,null,null,null,null,null,null,null,null,null,null,{"$f":"AC708*0.1","v":0},null,null,null,null,null,null,null,null,null,null,null,null,{"$f":"C678+P678","v":0}]
[]
[]
[null,null,"現 場 名",null,null,null,null,null,null,null,null,null,null,null,null,null,null,null,null,"埼玉小島建設　現場担当者名"]
[]
[]
[]
[]
[null,"月日",null,null,"工事内容・納品名",null,null,null,null,null,null,null,null,null,null,null,null,null,null,null,null,"数量",null,null,null,"単位",null,null,"単価",null,null,null,null,"金額",null,null,null,null,"課税","備考",null,null,"1ページ目"]
[null,null,null,null,null,null,null,null,null,null,null,null,null,null,null,null,null,null,null,null,null,null,null,null,null,null,null,null,null,null,null,null,null,{"$f":"V687*AC687","v":0},null,null,null,null,"課税",null,null,null,"2ページ目"]
[null,null,null,null,null,null,null,null,null,null,null,null,null,null,null,null,null,null,null,null,null,null,null,null,null,null,null,null,null,null,null,null,null,0,null,null,null,null,"課税",null,null,null,"3ページ目"]
[null,null,null,null,null,null,null,null,null,null,null,null,null,null,null,null,null,null,null,null,null,null,null,null,null,null,null,null,null,null,null,null,null,0,null,null,null,null,"課税",null,null,null,"4ページ目"]
[null,null,null,null,null,null,null,null,null,null,null,null,null,null,null,null,null,null,null,null,null,null,null,null,null,null,null,null,null,null,null,null,null,0,null,null,null,null,"課税",null,null,null,"5ページ目"]
[null,null,null,null,null,null,null,null,null,null,null,null,null,null,null,null,null,null,null,null,null,null,null,null,null,null,null,null,null,null,null,null,null,0,null,null,null,null,"課税",null,null,null,"6ページ目",null,null,null,null,null,null,null,null,null,null,null,null,null,"普通"]
[null,null,null,null,null,null,null,null,null,null,null,null,null,null,null,null,null,null,null,null,null,null,null,null,null,null,null,null,null,null,null,null,null,0,null,null,null,null,"課税",null,null,null,"7ページ目",null,null,null,null,null,null,null,null,null,null,null,null,null,"当座"]
[null,null,null,null,null,null,null,null,null,null,null,null,null,null,null,null,null,null,null,null,null,null,null,null,null,null,null,null,null,null,null,null,null,0,null,null,null,null,"課税",null,null,null,"8ページ目"]
[null,null,null,null,null,null,null,null,null,null,null,null,null,null,null,null,null,null,null,null,null,null,null,null,null,null,null,null,null,null,null,null,null,0,null,null,null,null,"課税",null,null,null,"9ページ目"]
[null,null,null,null,null,null,null,null,null,null,null,null,null,null,null,null,null,null,null,null,null,null,null,null,null,null,null,null,null,null,null,null,null,0,null,null,null,null,"課税",null,null,null,"10ページ目"]
[null,null,null,null,null,null,null,null,null,null,null,null,null,null,null,null,null,null,null,null,null,null,null,null,null,null,null,null,null,null,null,null,null,0,null,null,null,null,"課税",null,null,null,"11ページ目"]
[null,null,null,null,null,null,null,null,null,null,null,null,null,null,null,null,null,null,null,null,null,null,null,null,null,null,null,null,null,null,null,null,null,0,null,null,null,null,"課税",null,null,null,"12ページ目"]
[null,null,null,null,null,null,null,null,null,null,null,null,null,null,null,null,null,null,null,null,null,null,null,null,null,null,null,null,null,null,null,null,null,0,null,null,null,null,"課税",null,null,null,"13ページ目"]
[null,null,null,null,null,null,null,null,null,null,null,null,null,null,null,null,null,null,null,null,null,null,null,null,null,null,null,null,null,null,null,null,null,0,null,null,null,null,"課税",null,null,null,"14ページ目"]
[null,null,null,null,null,null,null,null,null,null,null,null,null,null,null,null,null,null,null,null,null,null,null,null,null,null,null,null,null,null,null,null,null,0,null,null,null,null,"課税",null,null,null,"15ページ目"]
[null,null,null,null,null,null,null,null,null,null,null,null,null,null,null,null,null,null,null,null,null,null,null,null,null,null,null,null,null,null,null,null,null,0,null,null,null,null,"課税",null,null,null,"16ページ目"]
[null,null,null,null,null,null,null,null,null,null,null,null,null,null,null,null,null,null,null,null,null,null,null,null,null,null,null,null,null,null,null,null,null,0,null,null,null,null,"課税",null,null,null,"17ページ目"]
[null,null,null,null,null,null,null,null,null,null,null,null,null,null,null,null,null,null,null,null,null,null,null,null,null,null,null,null,null,null,null,null,null,0,null,null,null,null,"課税",null,null,null,"18ページ目"]
[null,null,null,null,null,null,null,null,null,null,null,null,null,null,null,null,null,null,null,null,null,null,null,null,null,null,null,null,null,null,null,null,null,0,null,null,null,null,"課税",null,null,null,"19ページ目"]
[null,null,null,null,null,null,null,null,null,null,null,null,null,null,null,null,null,null,null,null,null,null,null,null,null,null,null,null,null,null,null,null,null,0,null,null,null,null,"課税",null,null,null,"20ページ目"]
[null,null,null,null,null,null,null,null,null,null,null,null,null,null,null,null,null,null,null,null,null,null,null,null,null,null,null,null,null,null,null,null,null,0,null,null,null,null,"課税"]
[null,null,null,null,null,null,null,null,null,null,null,null,null,null,null,null,null,null,null,null,null,null,null,null,null,null,null,null,null,null,null,null,null,0,null,null,null,null,"課税"]
[null,"消費税対象額",null,null,null,null,null,null,null,null,null,null,null,null,null,null,null,null,null,null,null,null,null,null,null,null,null,null,{"$f":"SUMIF(AM687:AM707,\"課税\",AH687:AL707)","v":0}]
[null,null,"※","毎月20日締切り、25日郵送必着でお願いします。翌々月5日支払いとなります。"]
[null,"銀行名"]
[]
[]
[null,"支店名"]
[]
[]
[null,"口座番号",null,null,null,null,null,"普通"]
[null,"口座名義人"]
[]
[]
[]
[null,"〒",null,"359-1111",null,null,null,null,null,null,null,null,null,null,null,null,null,null,null,null,null,null,null,null,null,null,null,"NO."]
[null,"埼玉県所沢市緑町2-1-20合田ビル2階",null,null,null,null,null,null,null,null,null,null,null,null,null,null,null,null,null,null,null,null,null,null,null,null,null,null,null,null,null,{"$f":"$AF$2","v":"2023-10-20"}]
[null,"有限会社　埼玉小島建設　御中",null,null,null,null,null,null,null,null,null,null,null,null,null,null,null,null,null,null,null,null,null,null,null,null,null,"発行年月日"]
[null,null,null,null,null,null,null,null,null,null,null,null,null,null,null,null,null,null,null,null,null,null,null,null,null,null,null,"登録番号",null,null,{"$f":"$AE$4","v":0}]
[null,null,null,null,null,null,null,null,null,null,null,null,null,null,null,null,null,null,null,null,null,null,null,null,null,null,null,"郵便番号"]
[null,null,null,null,null,null,null,null,null,null,null,null,null,null,"請　　求　　書",null,null,null,null,null,null,null,null,null,null,null,null,"ご住所"]
[null,null,null,null,null,null,null,null,null,null,null,null,null,null,null,null,null,null,null,null,null,null,null,null,null,null,null,"御社名"]
[null,null,null,null,null,null,null,null,null,null,null,null,null,null,null,null,null,null,null,null,null,null,null,null,null,null,null,"電話"]
[null,null,null,null,null,null,null,null,null,null,null,null,null,null,null,null,null,null,null,null,null,null,null,null,null,null,null,"FAX"]
[null,null,null,null,null,null,null,null,null,null,null,null,null,null,null,null,null,null,null,null,null,null,null,null,null,null,"担当者名："]
[]
[]
[]
[]
[]
[]
[null,null,"税 別 合 計",null,null,null,null,null,null,null,null,null,null,null,null,"消 費 税　（10％）",null,null,null,null,null,null,null,null,null,null,null,null,"税 込 合 計"]
[null,null,{"$f":"SUM(AH747:AL768)","v":0},null,null,null,null,null,null,null,null,null,null,null,null,{"$f":"AC768*0.1","v":0},null,null,null,null,null,null,null,null,null,null,null,null,{"$f":"C738+P738","v":0}]
[]
[]
[null,null,"現 場 名",null,null,null,null,null,null,null,null,null,null,null,null,null,null,null,null,"埼玉小島建設　現場担当者名"]
[]
[]
[]
[]
[null,"月日",null,null,"工事内容・納品名",null,null,null,null,null,null,null,null,null,null,null,null,null,null,null,null,"数量",null,null,null,"単位",null,null,"単価",null,null,null,null,"金額",null,null,null,null,"課税","備考",null,null,"1ページ目"]
[null,null,null,null,null,null,null,null,null,null,null,null,null,null,null,null,null,null,null,null,null,null,null,null,null,null,null,null,null,null,null,null,null,{"$f":"V747*AC747","v":0},null,null,null,null,"課税",null,null,null,"2ページ目"]
[null,null,null,null,null,null,null,null,null,null,null,null,null,null,null,null,null,null,null,null,null,null,null,null,null,null,null,null,null,null,null,null,null,0,null,null,null,null,"課税",null,null,null,"3ページ目"]
[null,null,null,null,null,null,null,null,null,null,null,null,null,null,null,null,null,null,null,null,null,null,null,null,null,null,null,null,null,null,null,null,null,0,null,null,null,null,"課税",null,null,null,"4ページ目"]
[null,null,null,null,null,null,null,null,null,null,null,null,null,null,null,null,null,null,null,null,null,null,null,null,null,null,null,null,null,null,null,null,null,0,null,null,null,null,"課税",null,null,null,"5ページ目"]
[null,null,null,null,null,null,null,null,null,null,null,null,null,null,null,null,null,null,null,null,null,null,null,null,null,null,null,null,null,null,null,null,null,0,null,null,null,null,"課税",null,null,null,"6ページ目",null,null,null,null,null,null,null,null,null,null,null,null,null,"普通"]
[null,null,null,null,null,null,null,null,null,null,null,null,null,null,null,null,null,null,null,null,null,null,null,null,null,null,null,null,null,null,null,null,null,0,null,null,null,null,"課税",null,null,null,"7ページ目",null,null,null,null,null,null,null,null,null,null,null,null,null,"当座"]
[null,null,null,null,null,null,null,null,null,null,null,null,null,null,null,null,null,null,null,null,null,null,null,null,null,null,null,null,null,null,null,null,null,0,null,null,null,null,"課税",null,null,null,"8ページ目"]
[null,null,null,null,null,null,null,null,null,null,null,null,null,null,null,null,null,null,null,null,null,null,null,null,null,null,null,null,null,null,null,null,null,0,null,null,null,null,"課税",null,null,null,"9ページ目"]
[null,null,null,null,null,null,null,null,null,null,null,null,null,null,null,null,null,null,null,null,null,null,null,null,null,null,null,null,null,null,null,null,null,0,null,null,null,null,"課税",null,null,null,"10ページ目"]
[null,null,null,null,null,null,null,null,null,null,null,null,null,null,null,null,null,null,null,null,null,null,null,null,null,null,null,null,null,null,null,null,null,0,null,null,null,null,"課税",null,null,null,"11ページ目"]
[null,null,null,null,null,null,null,null,null,null,null,null,null,null,null,null,null,null,null,null,null,null,null,null,null,null,null,null,null,null,null,null,null,0,null,null,null,null,"課税",null,null,null,"12ページ目"]
[null,null,null,null,null,null,null,null,null,null,null,null,null,null,null,null,null,null,null,null,null,null,null,null,null,null,null,null,null,null,null,null,null,0,null,null,null,null,"課税",null,null,null,"13ページ目"]
[null,null,null,null,null,null,null,null,null,null,null,null,null,null,null,null,null,null,null,null,null,null,null,null,null,null,null,null,null,null,null,null,null,0,null,null,null,null,"課税",null,null,null,"14ページ目"]
[null,null,null,null,null,null,null,null,null,null,null,null,null,null,null,null,null,null,null,null,null,null,null,null,null,null,null,null,null,null,null,null,null,0,null,null,null,null,"課税",null,null,null,"15ページ目"]
[null,null,null,null,null,null,null,null,null,null,null,null,null,null,null,null,null,null,null,null,null,null,null,null,null,null,null,null,null,null,null,null,null,0,null,null,null,null,"課税",null,null,null,"16ページ目"]
[null,null,null,null,null,null,null,null,null,null,null,null,null,null,null,null,null,null,null,null,null,null,null,null,null,null,null,null,null,null,null,null,null,0,null,null,null,null,"課税",null,null,null,"17ページ目"]
[null,null,null,null,null,null,null,null,null,null,null,null,null,null,null,null,null,null,null,null,null,null,null,null,null,null,null,null,null,null,null,null,null,0,null,null,null,null,"課税",null,null,null,"18ページ目"]
[null,null,null,null,null,null,null,null,null,null,null,null,null,null,null,null,null,null,null,null,null,null,null,null,null,null,null,null,null,null,null,null,null,0,null,null,null,null,"課税",null,null,null,"19ページ目"]
[null,null,null,null,null,null,null,null,null,null,null,null,null,null,null,null,null,null,null,null,null,null,null,null,null,null,null,null,null,null,null,null,null,0,null,null,null,null,"課税",null,null,null,"20ページ目"]
[null,null,null,null,null,null,null,null,null,null,null,null,null,null,null,null,null,null,null,null,null,null,null,null,null,null,null,null,null,null,null,null,null,0,null,null,null,null,"課税"]
[null,null,null,null,null,null,null,null,null,null,null,null,null,null,null,null,null,null,null,null,null,null,null,null,null,null,null,null,null,null,null,null,null,0,null,null,null,null,"課税"]
[null,"消費税対象額",null,null,null,null,null,null,null,null,null,null,null,null,null,null,null,null,null,null,null,null,null,null,null,null,null,null,{"$f":"SUMIF(AM747:AM767,\"課税\",AH747:AL767)","v":0}]
[null,null,"※","毎月20日締切り、25日郵送必着でお願いします。翌々月5日支払いとなります。"]
[null,"銀行名"]
[]
[]
[null,"支店名"]
[]
[]
[null,"口座番号",null,null,null,null,null,"普通"]
[null,"口座名義人"]
[]
[]
[]
[null,"〒",null,"359-1111",null,null,null,null,null,null,null,null,null,null,null,null,null,null,null,null,null,null,null,null,null,null,null,"NO."]
[null,"埼玉県所沢市緑町2-1-20合田ビル2階",null,null,null,null,null,null,null,null,null,null,null,null,null,null,null,null,null,null,null,null,null,null,null,null,null,null,null,null,null,{"$f":"$AF$2","v":"2023-10-20"}]
[null,"有限会社　埼玉小島建設　御中",null,null,null,null,null,null,null,null,null,null,null,null,null,null,null,null,null,null,null,null,null,null,null,null,null,"発行年月日"]
[null,null,null,null,null,null,null,null,null,null,null,null,null,null,null,null,null,null,null,null,null,null,null,null,null,null,null,"登録番号",null,null,{"$f":"$AE$4","v":0}]
[null,null,null,null,null,null,null,null,null,null,null,null,null,null,null,null,null,null,null,null,null,null,null,null,null,null,null,"郵便番号"]
[null,null,null,null,null,null,null,null,null,null,null,null,null,null,"請　　求　　書",null,null,null,null,null,null,null,null,null,null,null,null,"ご住所"]
[null,null,null,null,null,null,null,null,null,null,null,null,null,null,null,null,null,null,null,null,null,null,null,null,null,null,null,"御社名"]
[null,null,null,null,null,null,null,null,null,null,null,null,null,null,null,null,null,null,null,null,null,null,null,null,null,null,null,"電話"]
[null,null,null,null,null,null,null,null,null,null,null,null,null,null,null,null,null,null,null,null,null,null,null,null,null,null,null,"FAX"]
[null,null,null,null,null,null,null,null,null,null,null,null,null,null,null,null,null,null,null,null,null,null,null,null,null,null,"担当者名："]
[]
[]
[]
[]
[]
[]
[null,null,"税 別 合 計",null,null,null,null,null,null,null,null,null,null,null,null,"消 費 税　（10％）",null,null,null,null,null,null,null,null,null,null,null,null,"税 込 合 計"]
[null,null,{"$f":"SUM(AH807:AL828)","v":0},null,null,null,null,null,null,null,null,null,null,null,null,{"$f":"AC828*0.1","v":0},null,null,null,null,null,null,null,null,null,null,null,null,{"$f":"C798+P798","v":0}]
[]
[]
[null,null,"現 場 名",null,null,null,null,null,null,null,null,null,null,null,null,null,null,null,null,"埼玉小島建設　現場担当者名"]
[]
[]
[]
[]
[null,"月日",null,null,"工事内容・納品名",null,null,null,null,null,null,null,null,null,null,null,null,null,null,null,null,"数量",null,null,null,"単位",null,null,"単価",null,null,null,null,"金額",null,null,null,null,"課税","備考",null,null,"1ページ目"]
[null,null,null,null,null,null,null,null,null,null,null,null,null,null,null,null,null,null,null,null,null,null,null,null,null,null,null,null,null,null,null,null,null,{"$f":"V807*AC807","v":0},null,null,null,null,"課税",null,null,null,"2ページ目"]
[null,null,null,null,null,null,null,null,null,null,null,null,null,null,null,null,null,null,null,null,null,null,null,null,null,null,null,null,null,null,null,null,null,{"$f":"V808*AC808","v":0},null,null,null,null,"課税",null,null,null,"3ページ目"]
[null,null,null,null,null,null,null,null,null,null,null,null,null,null,null,null,null,null,null,null,null,null,null,null,null,null,null,null,null,null,null,null,null,0,null,null,null,null,"課税",null,null,null,"4ページ目"]
[null,null,null,null,null,null,null,null,null,null,null,null,null,null,null,null,null,null,null,null,null,null,null,null,null,null,null,null,null,null,null,null,null,0,null,null,null,null,"課税",null,null,null,"5ページ目"]
[null,null,null,null,null,null,null,null,null,null,null,null,null,null,null,null,null,null,null,null,null,null,null,null,null,null,null,null,null,null,null,null,null,0,null,null,null,null,"課税",null,null,null,"6ページ目",null,null,null,null,null,null,null,null,null,null,null,null,null,"普通"]
[null,null,null,null,null,null,null,null,null,null,null,null,null,null,null,null,null,null,null,null,null,null,null,null,null,null,null,null,null,null,null,null,null,0,null,null,null,null,"課税",null,null,null,"7ページ目",null,null,null,null,null,null,null,null,null,null,null,null,null,"当座"]
[null,null,null,null,null,null,null,null,null,null,null,null,null,null,null,null,null,null,null,null,null,null,null,null,null,null,null,null,null,null,null,null,null,0,null,null,null,null,"課税",null,null,null,"8ページ目"]
[null,null,null,null,null,null,null,null,null,null,null,null,null,null,null,null,null,null,null,null,null,null,null,null,null,null,null,null,null,null,null,null,null,0,null,null,null,null,"課税",null,null,null,"9ページ目"]
[null,null,null,null,null,null,null,null,null,null,null,null,null,null,null,null,null,null,null,null,null,null,null,null,null,null,null,null,null,null,null,null,null,0,null,null,null,null,"課税",null,null,null,"10ページ目"]
[null,null,null,null,null,null,null,null,null,null,null,null,null,null,null,null,null,null,null,null,null,null,null,null,null,null,null,null,null,null,null,null,null,0,null,null,null,null,"課税",null,null,null,"11ページ目"]
[null,null,null,null,null,null,null,null,null,null,null,null,null,null,null,null,null,null,null,null,null,null,null,null,null,null,null,null,null,null,null,null,null,0,null,null,null,null,"課税",null,null,null,"12ページ目"]
[null,null,null,null,null,null,null,null,null,null,null,null,null,null,null,null,null,null,null,null,null,null,null,null,null,null,null,null,null,null,null,null,null,0,null,null,null,null,"課税",null,null,null,"13ページ目"]
[null,null,null,null,null,null,null,null,null,null,null,null,null,null,null,null,null,null,null,null,null,null,null,null,null,null,null,null,null,null,null,null,null,0,null,null,null,null,"課税",null,null,null,"14ページ目"]
[null,null,null,null,null,null,null,null,null,null,null,null,null,null,null,null,null,null,null,null,null,null,null,null,null,null,null,null,null,null,null,null,null,0,null,null,null,null,"課税",null,null,null,"15ページ目"]
[null,null,null,null,null,null,null,null,null,null,null,null,null,null,null,null,null,null,null,null,null,null,null,null,null,null,null,null,null,null,null,null,null,0,null,null,null,null,"課税",null,null,null,"16ページ目"]
[null,null,null,null,null,null,null,null,null,null,null,null,null,null,null,null,null,null,null,null,null,null,null,null,null,null,null,null,null,null,null,null,null,0,null,null,null,null,"課税",null,null,null,"17ページ目"]
[null,null,null,null,null,null,null,null,null,null,null,null,null,null,null,null,null,null,null,null,null,null,null,null,null,null,null,null,null,null,null,null,null,0,null,null,null,null,"課税",null,null,null,"18ページ目"]
[null,null,null,null,null,null,null,null,null,null,null,null,null,null,null,null,null,null,null,null,null,null,null,null,null,null,null,null,null,null,null,null,null,0,null,null,null,null,"課税",null,null,null,"19ページ目"]
[null,null,null,null,null,null,null,null,null,null,null,null,null,null,null,null,null,null,null,null,null,null,null,null,null,null,null,null,null,null,null,null,null,0,null,null,null,null,"課税",null,null,null,"20ページ目"]
[null,null,null,null,null,null,null,null,null,null,null,null,null,null,null,null,null,null,null,null,null,null,null,null,null,null,null,null,null,null,null,null,null,0,null,null,null,null,"課税"]
[null,null,null,null,null,null,null,null,null,null,null,null,null,null,null,null,null,null,null,null,null,null,null,null,null,null,null,null,null,null,null,null,null,0,null,null,null,null,"課税"]
[null,"消費税対象額",null,null,null,null,null,null,null,null,null,null,null,null,null,null,null,null,null,null,null,null,null,null,null,null,null,null,{"$f":"SUMIF(AM807:AM827,\"課税\",AH807:AL827)","v":0}]
[null,null,"※","毎月20日締切り、25日郵送必着でお願いします。翌々月5日支払いとなります。"]
[null,"銀行名"]
[]
[]
[null,"支店名"]
[]
[]
[null,"口座番号",null,null,null,null,null,"普通"]
[null,"口座名義人"]
[]
[]
[]
[null,"〒",null,"359-1111",null,null,null,null,null,null,null,null,null,null,null,null,null,null,null,null,null,null,null,null,null,null,null,"NO."]
[null,"埼玉県所沢市緑町2-1-20合田ビル2階",null,null,null,null,null,null,null,null,null,null,null,null,null,null,null,null,null,null,null,null,null,null,null,null,null,null,null,null,null,{"$f":"$AF$2","v":"2023-10-20"}]
[null,"有限会社　埼玉小島建設　御中",null,null,null,null,null,null,null,null,null,null,null,null,null,null,null,null,null,null,null,null,null,null,null,null,null,"発行年月日"]
[null,null,null,null,null,null,null,null,null,null,null,null,null,null,null,null,null,null,null,null,null,null,null,null,null,null,null,"登録番号",null,null,{"$f":"$AE$4","v":0}]
[null,null,null,null,null,null,null,null,null,null,null,null,null,null,null,null,null,null,null,null,null,null,null,null,null,null,null,"郵便番号"]
[null,null,null,null,null,null,null,null,null,null,null,null,null,null,"請　　求　　書",null,null,null,null,null,null,null,null,null,null,null,null,"ご住所"]
[null,null,null,null,null,null,null,null,null,null,null,null,null,null,null,null,null,null,null,null,null,null,null,null,null,null,null,"御社名"]
[null,null,null,null,null,null,null,null,null,null,null,null,null,null,null,null,null,null,null,null,null,null,null,null,null,null,null,"電話"]
[null,null,null,null,null,null,null,null,null,null,null,null,null,null,null,null,null,null,null,null,null,null,null,null,null,null,null,"FAX"]
[null,null,null,null,null,null,null,null,null,null,null,null,null,null,null,null,null,null,null,null,null,null,null,null,null,null,"担当者名："]
[]
[]
[]
[]
[]
[]
[null,null,"税 別 合 計",null,null,null,null,null,null,null,null,null,null,null,null,"消 費 税　（10％）",null,null,null,null,null,null,null,null,null,null,null,null,"税 込 合 計"]
[null,null,{"$f":"SUM(AH867:AL888)","v":0},null,null,null,null,null,null,null,null,null,null,null,null,{"$f":"AC888*0.1","v":0},null,null,null,null,null,null,null,null,null,null,null,null,{"$f":"C858+P858","v":0}]
[]
[]
[null,null,"現 場 名",null,null,null,null,null,null,null,null,null,null,null,null,null,null,null,null,"埼玉小島建設　現場担当者名"]
[]
[]
[]
[]
[null,"月日",null,null,"工事内容・納品名",null,null,null,null,null,null,null,null,null,null,null,null,null,null,null,null,"数量",null,null,null,"単位",null,null,"単価",null,null,null,null,"金額",null,null,null,null,"課税","備考",null,null,"1ページ目"]
[null,null,null,null,null,null,null,null,null,null,null,null,null,null,null,null,null,null,null,null,null,null,null,null,null,null,null,null,null,null,null,null,null,{"$f":"V867*AC867","v":0},null,null,null,null,"課税",null,null,null,"2ページ目"]
[null,null,null,null,null,null,null,null,null,null,null,null,null,null,null,null,null,null,null,null,null,null,null,null,null,null,null,null,null,null,null,null,null,0,null,null,null,null,"課税",null,null,null,"3ページ目"]
[null,null,null,null,null,null,null,null,null,null,null,null,null,null,null,null,null,null,null,null,null,null,null,null,null,null,null,null,null,null,null,null,null,0,null,null,null,null,"課税",null,null,null,"4ページ目"]
[null,null,null,null,null,null,null,null,null,null,null,null,null,null,null,null,null,null,null,null,null,null,null,null,null,null,null,null,null,null,null,null,null,0,null,null,null,null,"課税",null,null,null,"5ページ目"]
[null,null,null,null,null,null,null,null,null,null,null,null,null,null,null,null,null,null,null,null,null,null,null,null,null,null,null,null,null,null,null,null,null,0,null,null,null,null,"課税",null,null,null,"6ページ目",null,null,null,null,null,null,null,null,null,null,null,null,null,"普通"]
[null,null,null,null,null,null,null,null,null,null,null,null,null,null,null,null,null,null,null,null,null,null,null,null,null,null,null,null,null,null,null,null,null,0,null,null,null,null,"課税",null,null,null,"7ページ目",null,null,null,null,null,null,null,null,null,null,null,null,null,"当座"]
[null,null,null,null,null,null,null,null,null,null,null,null,null,null,null,null,null,null,null,null,null,null,null,null,null,null,null,null,null,null,null,null,null,0,null,null,null,null,"課税",null,null,null,"8ページ目"]
[null,null,null,null,null,null,null,null,null,null,null,null,null,null,null,null,null,null,null,null,null,null,null,null,null,null,null,null,null,null,null,null,null,0,null,null,null,null,"課税",null,null,null,"9ページ目"]
[null,null,null,null,null,null,null,null,null,null,null,null,null,null,null,null,null,null,null,null,null,null,null,null,null,null,null,null,null,null,null,null,null,0,null,null,null,null,"課税",null,null,null,"10ページ目"]
[null,null,null,null,null,null,null,null,null,null,null,null,null,null,null,null,null,null,null,null,null,null,null,null,null,null,null,null,null,null,null,null,null,0,null,null,null,null,"課税",null,null,null,"11ページ目"]
[null,null,null,null,null,null,null,null,null,null,null,null,null,null,null,null,null,null,null,null,null,null,null,null,null,null,null,null,null,null,null,null,null,0,null,null,null,null,"課税",null,null,null,"12ページ目"]
[null,null,null,null,null,null,null,null,null,null,null,null,null,null,null,null,null,null,null,null,null,null,null,null,null,null,null,null,null,null,null,null,null,0,null,null,null,null,"課税",null,null,null,"13ページ目"]
[null,null,null,null,null,null,null,null,null,null,null,null,null,null,null,null,null,null,null,null,null,null,null,null,null,null,null,null,null,null,null,null,null,0,null,null,null,null,"課税",null,null,null,"14ページ目"]
[null,null,null,null,null,null,null,null,null,null,null,null,null,null,null,null,null,null,null,null,null,null,null,null,null,null,null,null,null,null,null,null,null,0,null,null,null,null,"課税",null,null,null,"15ページ目"]
[null,null,null,null,null,null,null,null,null,null,null,null,null,null,null,null,null,null,null,null,null,null,null,null,null,null,null,null,null,null,null,null,null,0,null,null,null,null,"課税",null,null,null,"16ページ目"]
[null,null,null,null,null,null,null,null,null,null,null,null,null,null,null,null,null,null,null,null,null,null,null,null,null,null,null,null,null,null,null,null,null,0,null,null,null,null,"課税",null,null,null,"17ページ目"]
[null,null,null,null,null,null,null,null,null,null,null,null,null,null,null,null,null,null,null,null,null,null,null,null,null,null,null,null,null,null,null,null,null,0,null,null,null,null,"課税",null,null,null,"18ページ目"]
[null,null,null,null,null,null,null,null,null,null,null,null,null,null,null,null,null,null,null,null,null,null,null,null,null,null,null,null,null,null,null,null,null,0,null,null,null,null,"課税",null,null,null,"19ページ目"]
[null,null,null,null,null,null,null,null,null,null,null,null,null,null,null,null,null,null,null,null,null,null,null,null,null,null,null,null,null,null,null,null,null,0,null,null,null,null,"課税",null,null,null,"20ページ目"]
[null,null,null,null,null,null,null,null,null,null,null,null,null,null,null,null,null,null,null,null,null,null,null,null,null,null,null,null,null,null,null,null,null,0,null,null,null,null,"課税"]
[null,null,null,null,null,null,null,null,null,null,null,null,null,null,null,null,null,null,null,null,null,null,null,null,null,null,null,null,null,null,null,null,null,0,null,null,null,null,"課税"]
[null,"消費税対象額",null,null,null,null,null,null,null,null,null,null,null,null,null,null,null,null,null,null,null,null,null,null,null,null,null,null,{"$f":"SUMIF(AM867:AM887,\"課税\",AH867:AL887)","v":0}]
[null,null,"※","毎月20日締切り、25日郵送必着でお願いします。翌々月5日支払いとなります。"]
[null,"銀行名"]
[]
[]
[null,"支店名"]
[]
[]
[null,"口座番号",null,null,null,null,null,"普通"]
[null,"口座名義人"]
[]
[]
[]
[null,"〒",null,"359-1111",null,null,null,null,null,null,null,null,null,null,null,null,null,null,null,null,null,null,null,null,null,null,null,"NO."]
[null,"埼玉県所沢市緑町2-1-20合田ビル2階",null,null,null,null,null,null,null,null,null,null,null,null,null,null,null,null,null,null,null,null,null,null,null,null,null,null,null,null,null,{"$f":"$AF$2","v":"2023-10-20"}]
[null,"有限会社　埼玉小島建設　御中",null,null,null,null,null,null,null,null,null,null,null,null,null,null,null,null,null,null,null,null,null,null,null,null,null,"発行年月日"]
[null,null,null,null,null,null,null,null,null,null,null,null,null,null,null,null,null,null,null,null,null,null,null,null,null,null,null,"登録番号",null,null,{"$f":"$AE$4","v":0}]
[null,null,null,null,null,null,null,null,null,null,null,null,null,null,null,null,null,null,null,null,null,null,null,null,null,null,null,"郵便番号"]
[null,null,null,null,null,null,null,null,null,null,null,null,null,null,"請　　求　　書",null,null,null,null,null,null,null,null,null,null,null,null,"ご住所"]
[null,null,null,null,null,null,null,null,null,null,null,null,null,null,null,null,null,null,null,null,null,null,null,null,null,null,null,"御社名"]
[null,null,null,null,null,null,null,null,null,null,null,null,null,null,null,null,null,null,null,null,null,null,null,null,null,null,null,"電話"]
[null,null,null,null,null,null,null,null,null,null,null,null,null,null,null,null,null,null,null,null,null,null,null,null,null,null,null,"FAX"]
[null,null,null,null,null,null,null,null,null,null,null,null,null,null,null,null,null,null,null,null,null,null,null,null,null,null,"担当者名："]
[]
[]
[]
[]
[]
[]
[null,null,"税 別 合 計",null,null,null,null,null,null,null,null,null,null,null,null,"消 費 税　（10％）",null,null,null,null,null,null,null,null,null,null,null,null,"税 込 合 計"]
[null,null,{"$f":"SUM(AH927:AL948)","v":0},null,null,null,null,null,null,null,null,null,null,null,null,{"$f":"AC948*0.1","v":0},null,null,null,null,null,null,null,null,null,null,null,null,{"$f":"C918+P918","v":0}]
[]
[]
[null,null,"現 場 名",null,null,null,null,null,null,null,null,null,null,null,null,null,null,null,null,"埼玉小島建設　現場担当者名"]
[]
[]
[]
[]
[null,"月日",null,null,"工事内容・納品名",null,null,null,null,null,null,null,null,null,null,null,null,null,null,null,null,"数量",null,null,null,"単位",null,null,"単価",null,null,null,null,"金額",null,null,null,null,"課税","備考",null,null,"1ページ目"]
[null,null,null,null,null,null,null,null,null,null,null,null,null,null,null,null,null,null,null,null,null,null,null,null,null,null,null,null,null,null,null,null,null,{"$f":"V927*AC927","v":0},null,null,null,null,"課税",null,null,null,"2ページ目"]
[null,null,null,null,null,null,null,null,null,null,null,null,null,null,null,null,null,null,null,null,null,null,null,null,null,null,null,null,null,null,null,null,null,0,null,null,null,null,"課税",null,null,null,"3ページ目"]
[null,null,null,null,null,null,null,null,null,null,null,null,null,null,null,null,null,null,null,null,null,null,null,null,null,null,null,null,null,null,null,null,null,0,null,null,null,null,"課税",null,null,null,"4ページ目"]
[null,null,null,null,null,null,null,null,null,null,null,null,null,null,null,null,null,null,null,null,null,null,null,null,null,null,null,null,null,null,null,null,null,0,null,null,null,null,"課税",null,null,null,"5ページ目"]
[null,null,null,null,null,null,null,null,null,null,null,null,null,null,null,null,null,null,null,null,null,null,null,null,null,null,null,null,null,null,null,null,null,0,null,null,null,null,"課税",null,null,null,"6ページ目",null,null,null,null,null,null,null,null,null,null,null,null,null,"普通"]
[null,null,null,null,null,null,null,null,null,null,null,null,null,null,null,null,null,null,null,null,null,null,null,null,null,null,null,null,null,null,null,null,null,0,null,null,null,null,"課税",null,null,null,"7ページ目",null,null,null,null,null,null,null,null,null,null,null,null,null,"当座"]
[null,null,null,null,null,null,null,null,null,null,null,null,null,null,null,null,null,null,null,null,null,null,null,null,null,null,null,null,null,null,null,null,null,0,null,null,null,null,"課税",null,null,null,"8ページ目"]
[null,null,null,null,null,null,null,null,null,null,null,null,null,null,null,null,null,null,null,null,null,null,null,null,null,null,null,null,null,null,null,null,null,0,null,null,null,null,"課税",null,null,null,"9ページ目"]
[null,null,null,null,null,null,null,null,null,null,null,null,null,null,null,null,null,null,null,null,null,null,null,null,null,null,null,null,null,null,null,null,null,0,null,null,null,null,"課税",null,null,null,"10ページ目"]
[null,null,null,null,null,null,null,null,null,null,null,null,null,null,null,null,null,null,null,null,null,null,null,null,null,null,null,null,null,null,null,null,null,0,null,null,null,null,"課税",null,null,null,"11ページ目"]
[null,null,null,null,null,null,null,null,null,null,null,null,null,null,null,null,null,null,null,null,null,null,null,null,null,null,null,null,null,null,null,null,null,0,null,null,null,null,"課税",null,null,null,"12ページ目"]
[null,null,null,null,null,null,null,null,null,null,null,null,null,null,null,null,null,null,null,null,null,null,null,null,null,null,null,null,null,null,null,null,null,0,null,null,null,null,"課税",null,null,null,"13ページ目"]
[null,null,null,null,null,null,null,null,null,null,null,null,null,null,null,null,null,null,null,null,null,null,null,null,null,null,null,null,null,null,null,null,null,0,null,null,null,null,"課税",null,null,null,"14ページ目"]
[null,null,null,null,null,null,null,null,null,null,null,null,null,null,null,null,null,null,null,null,null,null,null,null,null,null,null,null,null,null,null,null,null,0,null,null,null,null,"課税",null,null,null,"15ページ目"]
[null,null,null,null,null,null,null,null,null,null,null,null,null,null,null,null,null,null,null,null,null,null,null,null,null,null,null,null,null,null,null,null,null,0,null,null,null,null,"課税",null,null,null,"16ページ目"]
[null,null,null,null,null,null,null,null,null,null,null,null,null,null,null,null,null,null,null,null,null,null,null,null,null,null,null,null,null,null,null,null,null,0,null,null,null,null,"課税",null,null,null,"17ページ目"]
[null,null,null,null,null,null,null,null,null,null,null,null,null,null,null,null,null,null,null,null,null,null,null,null,null,null,null,null,null,null,null,null,null,0,null,null,null,null,"課税",null,null,null,"18ページ目"]
[null,null,null,null,null,null,null,null,null,null,null,null,null,null,null,null,null,null,null,null,null,null,null,null,null,null,null,null,null,null,null,null,null,0,null,null,null,null,"課税",null,null,null,"19ページ目"]
[null,null,null,null,null,null,null,null,null,null,null,null,null,null,null,null,null,null,null,null,null,null,null,null,null,null,null,null,null,null,null,null,null,0,null,null,null,null,"課税",null,null,null,"20ページ目"]
[null,null,null,null,null,null,null,null,null,null,null,null,null,null,null,null,null,null,null,null,null,null,null,null,null,null,null,null,null,null,null,null,null,0,null,null,null,null,"課税"]
[null,null,null,null,null,null,null,null,null,null,null,null,null,null,null,null,null,null,null,null,null,null,null,null,null,null,null,null,null,null,null,null,null,0,null,null,null,null,"課税"]
[null,"消費税対象額",null,null,null,null,null,null,null,null,null,null,null,null,null,null,null,null,null,null,null,null,null,null,null,null,null,null,{"$f":"SUMIF(AM927:AM947,\"課税\",AH927:AL947)","v":0}]
[null,null,"※","毎月20日締切り、25日郵送必着でお願いします。翌々月5日支払いとなります。"]
[null,"銀行名"]
[]
[]
[null,"支店名"]
[]
[]
[null,"口座番号",null,null,null,null,null,"普通"]
[null,"口座名義人"]
[]
[]
[]
[null,"〒",null,"359-1111",null,null,null,null,null,null,null,null,null,null,null,null,null,null,null,null,null,null,null,null,null,null,null,"NO."]
[null,"埼玉県所沢市緑町2-1-20合田ビル2階",null,null,null,null,null,null,null,null,null,null,null,null,null,null,null,null,null,null,null,null,null,null,null,null,null,null,null,null,null,{"$f":"$AF$2","v":"2023-10-20"}]
[null,"有限会社　埼玉小島建設　御中",null,null,null,null,null,null,null,null,null,null,null,null,null,null,null,null,null,null,null,null,null,null,null,null,null,"発行年月日"]
[null,null,null,null,null,null,null,null,null,null,null,null,null,null,null,null,null,null,null,null,null,null,null,null,null,null,null,"登録番号",null,null,{"$f":"$AE$4","v":0}]
[null,null,null,null,null,null,null,null,null,null,null,null,null,null,null,null,null,null,null,null,null,null,null,null,null,null,null,"郵便番号"]
[null,null,null,null,null,null,null,null,null,null,null,null,null,null,"請　　求　　書",null,null,null,null,null,null,null,null,null,null,null,null,"ご住所"]
[null,null,null,null,null,null,null,null,null,null,null,null,null,null,null,null,null,null,null,null,null,null,null,null,null,null,null,"御社名"]
[null,null,null,null,null,null,null,null,null,null,null,null,null,null,null,null,null,null,null,null,null,null,null,null,null,null,null,"電話"]
[null,null,null,null,null,null,null,null,null,null,null,null,null,null,null,null,null,null,null,null,null,null,null,null,null,null,null,"FAX"]
[null,null,null,null,null,null,null,null,null,null,null,null,null,null,null,null,null,null,null,null,null,null,null,null,null,null,"担当者名："]
[]
[]
[]
[]
[]
[]
[null,null,"税 別 合 計",null,null,null,null,null,null,null,null,null,null,null,null,"消 費 税　（10％）",null,null,null,null,null,null,null,null,null,null,null,null,"税 込 合 計"]
[null,null,{"$f":"SUM(AH987:AL1008)","v":0},null,null,null,null,null,null,null,null,null,null,null,null,{"$f":"AC1008*0.1","v":0},null,null,null,null,null,null,null,null,null,null,null,null,{"$f":"C978+P978","v":0}]
[]
[]
[null,null,"現 場 名",null,null,null,null,null,null,null,null,null,null,null,null,null,null,null,null,"埼玉小島建設　現場担当者名"]
[]
[]
[]
[]
[null,"月日",null,null,"工事内容・納品名",null,null,null,null,null,null,null,null,null,null,null,null,null,null,null,null,"数量",null,null,null,"単位",null,null,"単価",null,null,null,null,"金額",null,null,null,null,"課税","備考",null,null,"1ページ目"]
[null,null,null,null,null,null,null,null,null,null,null,null,null,null,null,null,null,null,null,null,null,null,null,null,null,null,null,null,null,null,null,null,null,{"$f":"V987*AC987","v":0},null,null,null,null,"課税",null,null,null,"2ページ目"]
[null,null,null,null,null,null,null,null,null,null,null,null,null,null,null,null,null,null,null,null,null,null,null,null,null,null,null,null,null,null,null,null,null,0,null,null,null,null,"課税",null,null,null,"3ページ目"]
[null,null,null,null,null,null,null,null,null,null,null,null,null,null,null,null,null,null,null,null,null,null,null,null,null,null,null,null,null,null,null,null,null,0,null,null,null,null,"課税",null,null,null,"4ページ目"]
[null,null,null,null,null,null,null,null,null,null,null,null,null,null,null,null,null,null,null,null,null,null,null,null,null,null,null,null,null,null,null,null,null,0,null,null,null,null,"課税",null,null,null,"5ページ目"]
[null,null,null,null,null,null,null,null,null,null,null,null,null,null,null,null,null,null,null,null,null,null,null,null,null,null,null,null,null,null,null,null,null,0,null,null,null,null,"課税",null,null,null,"6ページ目",null,null,null,null,null,null,null,null,null,null,null,null,null,"普通"]
[null,null,null,null,null,null,null,null,null,null,null,null,null,null,null,null,null,null,null,null,null,null,null,null,null,null,null,null,null,null,null,null,null,0,null,null,null,null,"課税",null,null,null,"7ページ目",null,null,null,null,null,null,null,null,null,null,null,null,null,"当座"]
[null,null,null,null,null,null,null,null,null,null,null,null,null,null,null,null,null,null,null,null,null,null,null,null,null,null,null,null,null,null,null,null,null,0,null,null,null,null,"課税",null,null,null,"8ページ目"]
[null,null,null,null,null,null,null,null,null,null,null,null,null,null,null,null,null,null,null,null,null,null,null,null,null,null,null,null,null,null,null,null,null,0,null,null,null,null,"課税",null,null,null,"9ページ目"]
[null,null,null,null,null,null,null,null,null,null,null,null,null,null,null,null,null,null,null,null,null,null,null,null,null,null,null,null,null,null,null,null,null,0,null,null,null,null,"課税",null,null,null,"10ページ目"]
[null,null,null,null,null,null,null,null,null,null,null,null,null,null,null,null,null,null,null,null,null,null,null,null,null,null,null,null,null,null,null,null,null,0,null,null,null,null,"課税",null,null,null,"11ページ目"]
[null,null,null,null,null,null,null,null,null,null,null,null,null,null,null,null,null,null,null,null,null,null,null,null,null,null,null,null,null,null,null,null,null,0,null,null,null,null,"課税",null,null,null,"12ページ目"]
[null,null,null,null,null,null,null,null,null,null,null,null,null,null,null,null,null,null,null,null,null,null,null,null,null,null,null,null,null,null,null,null,null,0,null,null,null,null,"課税",null,null,null,"13ページ目"]
[null,null,null,null,null,null,null,null,null,null,null,null,null,null,null,null,null,null,null,null,null,null,null,null,null,null,null,null,null,null,null,null,null,0,null,null,null,null,"課税",null,null,null,"14ページ目"]
[null,null,null,null,null,null,null,null,null,null,null,null,null,null,null,null,null,null,null,null,null,null,null,null,null,null,null,null,null,null,null,null,null,0,null,null,null,null,"課税",null,null,null,"15ページ目"]
[null,null,null,null,null,null,null,null,null,null,null,null,null,null,null,null,null,null,null,null,null,null,null,null,null,null,null,null,null,null,null,null,null,0,null,null,null,null,"課税",null,null,null,"16ページ目"]
[null,null,null,null,null,null,null,null,null,null,null,null,null,null,null,null,null,null,null,null,null,null,null,null,null,null,null,null,null,null,null,null,null,0,null,null,null,null,"課税",null,null,null,"17ページ目"]
[null,null,null,null,null,null,null,null,null,null,null,null,null,null,null,null,null,null,null,null,null,null,null,null,null,null,null,null,null,null,null,null,null,0,null,null,null,null,"課税",null,null,null,"18ページ目"]
[null,null,null,null,null,null,null,null,null,null,null,null,null,null,null,null,null,null,null,null,null,null,null,null,null,null,null,null,null,null,null,null,null,0,null,null,null,null,"課税",null,null,null,"19ページ目"]
[null,null,null,null,null,null,null,null,null,null,null,null,null,null,null,null,null,null,null,null,null,null,null,null,null,null,null,null,null,null,null,null,null,0,null,null,null,null,"課税",null,null,null,"20ページ目"]
[null,null,null,null,null,null,null,null,null,null,null,null,null,null,null,null,null,null,null,null,null,null,null,null,null,null,null,null,null,null,null,null,null,0,null,null,null,null,"課税"]
[null,null,null,null,null,null,null,null,null,null,null,null,null,null,null,null,null,null,null,null,null,null,null,null,null,null,null,null,null,null,null,null,null,0,null,null,null,null,"課税"]
[null,"消費税対象額",null,null,null,null,null,null,null,null,null,null,null,null,null,null,null,null,null,null,null,null,null,null,null,null,null,null,{"$f":"SUMIF(AM987:AM1007,\"課税\",AH987:AL1007)","v":0}]
[null,null,"※","毎月20日締切り、25日郵送必着でお願いします。翌々月5日支払いとなります。"]
[null,"銀行名"]
[]
[]
[null,"支店名"]
[]
[]
[null,"口座番号",null,null,null,null,null,"普通"]
[null,"口座名義人"]
[]
[]
[]
[null,"〒",null,"359-1111",null,null,null,null,null,null,null,null,null,null,null,null,null,null,null,null,null,null,null,null,null,null,null,"NO."]
[null,"埼玉県所沢市緑町2-1-20合田ビル2階",null,null,null,null,null,null,null,null,null,null,null,null,null,null,null,null,null,null,null,null,null,null,null,null,null,null,null,null,null,{"$f":"$AF$2","v":"2023-10-20"}]
[null,"有限会社　埼玉小島建設　御中",null,null,null,null,null,null,null,null,null,null,null,null,null,null,null,null,null,null,null,null,null,null,null,null,null,"発行年月日"]
[null,null,null,null,null,null,null,null,null,null,null,null,null,null,null,null,null,null,null,null,null,null,null,null,null,null,null,"登録番号",null,null,{"$f":"$AE$4","v":0}]
[null,null,null,null,null,null,null,null,null,null,null,null,null,null,null,null,null,null,null,null,null,null,null,null,null,null,null,"郵便番号"]
[null,null,null,null,null,null,null,null,null,null,null,null,null,null,"請　　求　　書",null,null,null,null,null,null,null,null,null,null,null,null,"ご住所"]
[null,null,null,null,null,null,null,null,null,null,null,null,null,null,null,null,null,null,null,null,null,null,null,null,null,null,null,"御社名"]
[null,null,null,null,null,null,null,null,null,null,null,null,null,null,null,null,null,null,null,null,null,null,null,null,null,null,null,"電話"]
[null,null,null,null,null,null,null,null,null,null,null,null,null,null,null,null,null,null,null,null,null,null,null,null,null,null,null,"FAX"]
[null,null,null,null,null,null,null,null,null,null,null,null,null,null,null,null,null,null,null,null,null,null,null,null,null,null,"担当者名："]
[]
[]
[]
[]
[]
[]
[null,null,"税 別 合 計",null,null,null,null,null,null,null,null,null,null,null,null,"消 費 税　（10％）",null,null,null,null,null,null,null,null,null,null,null,null,"税 込 合 計"]
[null,null,{"$f":"SUM(AH1047:AL1068)","v":0},null,null,null,null,null,null,null,null,null,null,null,null,{"$f":"AC1068*0.1","v":0},null,null,null,null,null,null,null,null,null,null,null,null,{"$f":"C1038+P1038","v":0}]
[]
[]
[null,null,"現 場 名",null,null,null,null,null,null,null,null,null,null,null,null,null,null,null,null,"埼玉小島建設　現場担当者名"]
[]
[]
[]
[]
[null,"月日",null,null,"工事内容・納品名",null,null,null,null,null,null,null,null,null,null,null,null,null,null,null,null,"数量",null,null,null,"単位",null,null,"単価",null,null,null,null,"金額",null,null,null,null,"課税","備考",null,null,"1ページ目"]
[null,null,null,null,null,null,null,null,null,null,null,null,null,null,null,null,null,null,null,null,null,null,null,null,null,null,null,null,null,null,null,null,null,{"$f":"V1047*AC1047","v":0},null,null,null,null,"課税",null,null,null,"2ページ目"]
[null,null,null,null,null,null,null,null,null,null,null,null,null,null,null,null,null,null,null,null,null,null,null,null,null,null,null,null,null,null,null,null,null,0,null,null,null,null,"課税",null,null,null,"3ページ目"]
[null,null,null,null,null,null,null,null,null,null,null,null,null,null,null,null,null,null,null,null,null,null,null,null,null,null,null,null,null,null,null,null,null,0,null,null,null,null,"課税",null,null,null,"4ページ目"]
[null,null,null,null,null,null,null,null,null,null,null,null,null,null,null,null,null,null,null,null,null,null,null,null,null,null,null,null,null,null,null,null,null,0,null,null,null,null,"課税",null,null,null,"5ページ目"]
[null,null,null,null,null,null,null,null,null,null,null,null,null,null,null,null,null,null,null,null,null,null,null,null,null,null,null,null,null,null,null,null,null,0,null,null,null,null,"課税",null,null,null,"6ページ目",null,null,null,null,null,null,null,null,null,null,null,null,null,"普通"]
[null,null,null,null,null,null,null,null,null,null,null,null,null,null,null,null,null,null,null,null,null,null,null,null,null,null,null,null,null,null,null,null,null,0,null,null,null,null,"課税",null,null,null,"7ページ目",null,null,null,null,null,null,null,null,null,null,null,null,null,"当座"]
[null,null,null,null,null,null,null,null,null,null,null,null,null,null,null,null,null,null,null,null,null,null,null,null,null,null,null,null,null,null,null,null,null,0,null,null,null,null,"課税",null,null,null,"8ページ目"]
[null,null,null,null,null,null,null,null,null,null,null,null,null,null,null,null,null,null,null,null,null,null,null,null,null,null,null,null,null,null,null,null,null,0,null,null,null,null,"課税",null,null,null,"9ページ目"]
[null,null,null,null,null,null,null,null,null,null,null,null,null,null,null,null,null,null,null,null,null,null,null,null,null,null,null,null,null,null,null,null,null,0,null,null,null,null,"課税",null,null,null,"10ページ目"]
[null,null,null,null,null,null,null,null,null,null,null,null,null,null,null,null,null,null,null,null,null,null,null,null,null,null,null,null,null,null,null,null,null,0,null,null,null,null,"課税",null,null,null,"11ページ目"]
[null,null,null,null,null,null,null,null,null,null,null,null,null,null,null,null,null,null,null,null,null,null,null,null,null,null,null,null,null,null,null,null,null,0,null,null,null,null,"課税",null,null,null,"12ページ目"]
[null,null,null,null,null,null,null,null,null,null,null,null,null,null,null,null,null,null,null,null,null,null,null,null,null,null,null,null,null,null,null,null,null,0,null,null,null,null,"課税",null,null,null,"13ページ目"]
[null,null,null,null,null,null,null,null,null,null,null,null,null,null,null,null,null,null,null,null,null,null,null,null,null,null,null,null,null,null,null,null,null,0,null,null,null,null,"課税",null,null,null,"14ページ目"]
[null,null,null,null,null,null,null,null,null,null,null,null,null,null,null,null,null,null,null,null,null,null,null,null,null,null,null,null,null,null,null,null,null,0,null,null,null,null,"課税",null,null,null,"15ページ目"]
[null,null,null,null,null,null,null,null,null,null,null,null,null,null,null,null,null,null,null,null,null,null,null,null,null,null,null,null,null,null,null,null,null,0,null,null,null,null,"課税",null,null,null,"16ページ目"]
[null,null,null,null,null,null,null,null,null,null,null,null,null,null,null,null,null,null,null,null,null,null,null,null,null,null,null,null,null,null,null,null,null,0,null,null,null,null,"課税",null,null,null,"17ページ目"]
[null,null,null,null,null,null,null,null,null,null,null,null,null,null,null,null,null,null,null,null,null,null,null,null,null,null,null,null,null,null,null,null,null,0,null,null,null,null,"課税",null,null,null,"18ページ目"]
[null,null,null,null,null,null,null,null,null,null,null,null,null,null,null,null,null,null,null,null,null,null,null,null,null,null,null,null,null,null,null,null,null,0,null,null,null,null,"課税",null,null,null,"19ページ目"]
[null,null,null,null,null,null,null,null,null,null,null,null,null,null,null,null,null,null,null,null,null,null,null,null,null,null,null,null,null,null,null,null,null,0,null,null,null,null,"課税",null,null,null,"20ページ目"]
[null,null,null,null,null,null,null,null,null,null,null,null,null,null,null,null,null,null,null,null,null,null,null,null,null,null,null,null,null,null,null,null,null,0,null,null,null,null,"課税"]
[null,null,null,null,null,null,null,null,null,null,null,null,null,null,null,null,null,null,null,null,null,null,null,null,null,null,null,null,null,null,null,null,null,0,null,null,null,null,"課税"]
[null,"消費税対象額",null,null,null,null,null,null,null,null,null,null,null,null,null,null,null,null,null,null,null,null,null,null,null,null,null,null,{"$f":"SUMIF(AM1047:AM1067,\"課税\",AH1047:AL1067)","v":0}]
[null,null,"※","毎月20日締切り、25日郵送必着でお願いします。翌々月5日支払いとなります。"]
[null,"銀行名"]
[]
[]
[null,"支店名"]
[]
[]
[null,"口座番号",null,null,null,null,null,"普通"]
[null,"口座名義人"]
[]
[]
[]
[null,"〒",null,"359-1111",null,null,null,null,null,null,null,null,null,null,null,null,null,null,null,null,null,null,null,null,null,null,null,"NO."]
[null,"埼玉県所沢市緑町2-1-20合田ビル2階",null,null,null,null,null,null,null,null,null,null,null,null,null,null,null,null,null,null,null,null,null,null,null,null,null,null,null,null,null,{"$f":"$AF$2","v":"2023-10-20"}]
[null,"有限会社　埼玉小島建設　御中",null,null,null,null,null,null,null,null,null,null,null,null,null,null,null,null,null,null,null,null,null,null,null,null,null,"発行年月日"]
[null,null,null,null,null,null,null,null,null,null,null,null,null,null,null,null,null,null,null,null,null,null,null,null,null,null,null,"登録番号",null,null,{"$f":"$AE$4","v":0}]
[null,null,null,null,null,null,null,null,null,null,null,null,null,null,null,null,null,null,null,null,null,null,null,null,null,null,null,"郵便番号"]
[null,null,null,null,null,null,null,null,null,null,null,null,null,null,"請　　求　　書",null,null,null,null,null,null,null,null,null,null,null,null,"ご住所"]
[null,null,null,null,null,null,null,null,null,null,null,null,null,null,null,null,null,null,null,null,null,null,null,null,null,null,null,"御社名"]
[null,null,null,null,null,null,null,null,null,null,null,null,null,null,null,null,null,null,null,null,null,null,null,null,null,null,null,"電話"]
[null,null,null,null,null,null,null,null,null,null,null,null,null,null,null,null,null,null,null,null,null,null,null,null,null,null,null,"FAX"]
[null,null,null,null,null,null,null,null,null,null,null,null,null,null,null,null,null,null,null,null,null,null,null,null,null,null,"担当者名："]
[]
[]
[]
[]
[]
[]
[null,null,"税 別 合 計",null,null,null,null,null,null,null,null,null,null,null,null,"消 費 税　（10％）",null,null,null,null,null,null,null,null,null,null,null,null,"税 込 合 計"]
[null,null,{"$f":"SUM(AH1107:AL1128)","v":0},null,null,null,null,null,null,null,null,null,null,null,null,{"$f":"AC1128*0.1","v":0},null,null,null,null,null,null,null,null,null,null,null,null,{"$f":"C1098+P1098","v":0}]
[]
[]
[null,null,"現 場 名",null,null,null,null,null,null,null,null,null,null,null,null,null,null,null,null,"埼玉小島建設　現場担当者名"]
[]
[]
[]
[]
[null,"月日",null,null,"工事内容・納品名",null,null,null,null,null,null,null,null,null,null,null,null,null,null,null,null,"数量",null,null,null,"単位",null,null,"単価",null,null,null,null,"金額",null,null,null,null,"課税","備考",null,null,"1ページ目"]
[null,null,null,null,null,null,null,null,null,null,null,null,null,null,null,null,null,null,null,null,null,null,null,null,null,null,null,null,null,null,null,null,null,{"$f":"V1107*AC1107","v":0},null,null,null,null,"課税",null,null,null,"2ページ目"]
[null,null,null,null,null,null,null,null,null,null,null,null,null,null,null,null,null,null,null,null,null,null,null,null,null,null,null,null,null,null,null,null,null,0,null,null,null,null,"課税",null,null,null,"3ページ目"]
[null,null,null,null,null,null,null,null,null,null,null,null,null,null,null,null,null,null,null,null,null,null,null,null,null,null,null,null,null,null,null,null,null,0,null,null,null,null,"課税",null,null,null,"4ページ目"]
[null,null,null,null,null,null,null,null,null,null,null,null,null,null,null,null,null,null,null,null,null,null,null,null,null,null,null,null,null,null,null,null,null,0,null,null,null,null,"課税",null,null,null,"5ページ目"]
[null,null,null,null,null,null,null,null,null,null,null,null,null,null,null,null,null,null,null,null,null,null,null,null,null,null,null,null,null,null,null,null,null,0,null,null,null,null,"課税",null,null,null,"6ページ目",null,null,null,null,null,null,null,null,null,null,null,null,null,"普通"]
[null,null,null,null,null,null,null,null,null,null,null,null,null,null,null,null,null,null,null,null,null,null,null,null,null,null,null,null,null,null,null,null,null,0,null,null,null,null,"課税",null,null,null,"7ページ目",null,null,null,null,null,null,null,null,null,null,null,null,null,"当座"]
[null,null,null,null,null,null,null,null,null,null,null,null,null,null,null,null,null,null,null,null,null,null,null,null,null,null,null,null,null,null,null,null,null,0,null,null,null,null,"課税",null,null,null,"8ページ目"]
[null,null,null,null,null,null,null,null,null,null,null,null,null,null,null,null,null,null,null,null,null,null,null,null,null,null,null,null,null,null,null,null,null,0,null,null,null,null,"課税",null,null,null,"9ページ目"]
[null,null,null,null,null,null,null,null,null,null,null,null,null,null,null,null,null,null,null,null,null,null,null,null,null,null,null,null,null,null,null,null,null,0,null,null,null,null,"課税",null,null,null,"10ページ目"]
[null,null,null,null,null,null,null,null,null,null,null,null,null,null,null,null,null,null,null,null,null,null,null,null,null,null,null,null,null,null,null,null,null,0,null,null,null,null,"課税",null,null,null,"11ページ目"]
[null,null,null,null,null,null,null,null,null,null,null,null,null,null,null,null,null,null,null,null,null,null,null,null,null,null,null,null,null,null,null,null,null,0,null,null,null,null,"課税",null,null,null,"12ページ目"]
[null,null,null,null,null,null,null,null,null,null,null,null,null,null,null,null,null,null,null,null,null,null,null,null,null,null,null,null,null,null,null,null,null,0,null,null,null,null,"課税",null,null,null,"13ページ目"]
[null,null,null,null,null,null,null,null,null,null,null,null,null,null,null,null,null,null,null,null,null,null,null,null,null,null,null,null,null,null,null,null,null,0,null,null,null,null,"課税",null,null,null,"14ページ目"]
[null,null,null,null,null,null,null,null,null,null,null,null,null,null,null,null,null,null,null,null,null,null,null,null,null,null,null,null,null,null,null,null,null,0,null,null,null,null,"課税",null,null,null,"15ページ目"]
[null,null,null,null,null,null,null,null,null,null,null,null,null,null,null,null,null,null,null,null,null,null,null,null,null,null,null,null,null,null,null,null,null,0,null,null,null,null,"課税",null,null,null,"16ページ目"]
[null,null,null,null,null,null,null,null,null,null,null,null,null,null,null,null,null,null,null,null,null,null,null,null,null,null,null,null,null,null,null,null,null,0,null,null,null,null,"課税",null,null,null,"17ページ目"]
[null,null,null,null,null,null,null,null,null,null,null,null,null,null,null,null,null,null,null,null,null,null,null,null,null,null,null,null,null,null,null,null,null,0,null,null,null,null,"課税",null,null,null,"18ページ目"]
[null,null,null,null,null,null,null,null,null,null,null,null,null,null,null,null,null,null,null,null,null,null,null,null,null,null,null,null,null,null,null,null,null,0,null,null,null,null,"課税",null,null,null,"19ページ目"]
[null,null,null,null,null,null,null,null,null,null,null,null,null,null,null,null,null,null,null,null,null,null,null,null,null,null,null,null,null,null,null,null,null,0,null,null,null,null,"課税",null,null,null,"20ページ目"]
[null,null,null,null,null,null,null,null,null,null,null,null,null,null,null,null,null,null,null,null,null,null,null,null,null,null,null,null,null,null,null,null,null,0,null,null,null,null,"課税"]
[null,null,null,null,null,null,null,null,null,null,null,null,null,null,null,null,null,null,null,null,null,null,null,null,null,null,null,null,null,null,null,null,null,0,null,null,null,null,"課税"]
[null,"消費税対象額",null,null,null,null,null,null,null,null,null,null,null,null,null,null,null,null,null,null,null,null,null,null,null,null,null,null,{"$f":"SUMIF(AM1107:AM1127,\"課税\",AH1107:AL1127)","v":0}]
[null,null,"※","毎月20日締切り、25日郵送必着でお願いします。翌々月5日支払いとなります。"]
[null,"銀行名"]
[]
[]
[null,"支店名"]
[]
[]
[null,"口座番号",null,null,null,null,null,"普通"]
[null,"口座名義人"]
[]
[]
[]
[null,"〒",null,"359-1111",null,null,null,null,null,null,null,null,null,null,null,null,null,null,null,null,null,null,null,null,null,null,null,"NO."]
[null,"埼玉県所沢市緑町2-1-20合田ビル2階",null,null,null,null,null,null,null,null,null,null,null,null,null,null,null,null,null,null,null,null,null,null,null,null,null,null,null,null,null,{"$f":"$AF$2","v":"2023-10-20"}]
[null,"有限会社　埼玉小島建設　御中",null,null,null,null,null,null,null,null,null,null,null,null,null,null,null,null,null,null,null,null,null,null,null,null,null,"発行年月日"]
[null,null,null,null,null,null,null,null,null,null,null,null,null,null,null,null,null,null,null,null,null,null,null,null,null,null,null,"登録番号",null,null,{"$f":"$AE$4","v":0}]
[null,null,null,null,null,null,null,null,null,null,null,null,null,null,null,null,null,null,null,null,null,null,null,null,null,null,null,"郵便番号"]
[null,null,null,null,null,null,null,null,null,null,null,null,null,null,"請　　求　　書",null,null,null,null,null,null,null,null,null,null,null,null,"ご住所"]
[null,null,null,null,null,null,null,null,null,null,null,null,null,null,null,null,null,null,null,null,null,null,null,null,null,null,null,"御社名"]
[null,null,null,null,null,null,null,null,null,null,null,null,null,null,null,null,null,null,null,null,null,null,null,null,null,null,null,"電話"]
[null,null,null,null,null,null,null,null,null,null,null,null,null,null,null,null,null,null,null,null,null,null,null,null,null,null,null,"FAX"]
[null,null,null,null,null,null,null,null,null,null,null,null,null,null,null,null,null,null,null,null,null,null,null,null,null,null,"担当者名："]
[]
[]
[]
[]
[]
[]
[null,null,"税 別 合 計",null,null,null,null,null,null,null,null,null,null,null,null,"消 費 税　（10％）",null,null,null,null,null,null,null,null,null,null,null,null,"税 込 合 計"]
[null,null,{"$f":"SUM(AH1167:AL1188)","v":0},null,null,null,null,null,null,null,null,null,null,null,null,{"$f":"AC1188*0.1","v":0},null,null,null,null,null,null,null,null,null,null,null,null,{"$f":"C1158+P1158","v":0}]
[]
[]
[null,null,"現 場 名",null,null,null,null,null,null,null,null,null,null,null,null,null,null,null,null,"埼玉小島建設　現場担当者名"]
[]
[]
[]
[]
[null,"月日",null,null,"工事内容・納品名",null,null,null,null,null,null,null,null,null,null,null,null,null,null,null,null,"数量",null,null,null,"単位",null,null,"単価",null,null,null,null,"金額",null,null,null,null,"課税","備考",null,null,"1ページ目"]
[null,null,null,null,null,null,null,null,null,null,null,null,null,null,null,null,null,null,null,null,null,null,null,null,null,null,null,null,null,null,null,null,null,{"$f":"V1167*AC1167","v":0},null,null,null,null,"課税",null,null,null,"2ページ目"]
[null,null,null,null,null,null,null,null,null,null,null,null,null,null,null,null,null,null,null,null,null,null,null,null,null,null,null,null,null,null,null,null,null,0,null,null,null,null,"課税",null,null,null,"3ページ目"]
[null,null,null,null,null,null,null,null,null,null,null,null,null,null,null,null,null,null,null,null,null,null,null,null,null,null,null,null,null,null,null,null,null,0,null,null,null,null,"課税",null,null,null,"4ページ目"]
[null,null,null,null,null,null,null,null,null,null,null,null,null,null,null,null,null,null,null,null,null,null,null,null,null,null,null,null,null,null,null,null,null,0,null,null,null,null,"課税",null,null,null,"5ページ目"]
[null,null,null,null,null,null,null,null,null,null,null,null,null,null,null,null,null,null,null,null,null,null,null,null,null,null,null,null,null,null,null,null,null,0,null,null,null,null,"課税",null,null,null,"6ページ目",null,null,null,null,null,null,null,null,null,null,null,null,null,"普通"]
[null,null,null,null,null,null,null,null,null,null,null,null,null,null,null,null,null,null,null,null,null,null,null,null,null,null,null,null,null,null,null,null,null,0,null,null,null,null,"課税",null,null,null,"7ページ目",null,null,null,null,null,null,null,null,null,null,null,null,null,"当座"]
[null,null,null,null,null,null,null,null,null,null,null,null,null,null,null,null,null,null,null,null,null,null,null,null,null,null,null,null,null,null,null,null,null,0,null,null,null,null,"課税",null,null,null,"8ページ目"]
[null,null,null,null,null,null,null,null,null,null,null,null,null,null,null,null,null,null,null,null,null,null,null,null,null,null,null,null,null,null,null,null,null,0,null,null,null,null,"課税",null,null,null,"9ページ目"]
[null,null,null,null,null,null,null,null,null,null,null,null,null,null,null,null,null,null,null,null,null,null,null,null,null,null,null,null,null,null,null,null,null,0,null,null,null,null,"課税",null,null,null,"10ページ目"]
[null,null,null,null,null,null,null,null,null,null,null,null,null,null,null,null,null,null,null,null,null,null,null,null,null,null,null,null,null,null,null,null,null,0,null,null,null,null,"課税",null,null,null,"11ページ目"]
[null,null,null,null,null,null,null,null,null,null,null,null,null,null,null,null,null,null,null,null,null,null,null,null,null,null,null,null,null,null,null,null,null,0,null,null,null,null,"課税",null,null,null,"12ページ目"]
[null,null,null,null,null,null,null,null,null,null,null,null,null,null,null,null,null,null,null,null,null,null,null,null,null,null,null,null,null,null,null,null,null,0,null,null,null,null,"課税",null,null,null,"13ページ目"]
[null,null,null,null,null,null,null,null,null,null,null,null,null,null,null,null,null,null,null,null,null,null,null,null,null,null,null,null,null,null,null,null,null,0,null,null,null,null,"課税",null,null,null,"14ページ目"]
[null,null,null,null,null,null,null,null,null,null,null,null,null,null,null,null,null,null,null,null,null,null,null,null,null,null,null,null,null,null,null,null,null,0,null,null,null,null,"課税",null,null,null,"15ページ目"]
[null,null,null,null,null,null,null,null,null,null,null,null,null,null,null,null,null,null,null,null,null,null,null,null,null,null,null,null,null,null,null,null,null,0,null,null,null,null,"課税",null,null,null,"16ページ目"]
[null,null,null,null,null,null,null,null,null,null,null,null,null,null,null,null,null,null,null,null,null,null,null,null,null,null,null,null,null,null,null,null,null,0,null,null,null,null,"課税",null,null,null,"17ページ目"]
[null,null,null,null,null,null,null,null,null,null,null,null,null,null,null,null,null,null,null,null,null,null,null,null,null,null,null,null,null,null,null,null,null,0,null,null,null,null,"課税",null,null,null,"18ページ目"]
[null,null,null,null,null,null,null,null,null,null,null,null,null,null,null,null,null,null,null,null,null,null,null,null,null,null,null,null,null,null,null,null,null,0,null,null,null,null,"課税",null,null,null,"19ページ目"]
[null,null,null,null,null,null,null,null,null,null,null,null,null,null,null,null,null,null,null,null,null,null,null,null,null,null,null,null,null,null,null,null,null,0,null,null,null,null,"課税",null,null,null,"20ページ目"]
[null,null,null,null,null,null,null,null,null,null,null,null,null,null,null,null,null,null,null,null,null,null,null,null,null,null,null,null,null,null,null,null,null,0,null,null,null,null,"課税"]
[null,null,null,null,null,null,null,null,null,null,null,null,null,null,null,null,null,null,null,null,null,null,null,null,null,null,null,null,null,null,null,null,null,0,null,null,null,null,"課税"]
[null,"消費税対象額",null,null,null,null,null,null,null,null,null,null,null,null,null,null,null,null,null,null,null,null,null,null,null,null,null,null,{"$f":"SUMIF(AM1167:AM1187,\"課税\",AH1167:AL1187)","v":0}]
[null,null,"※","毎月20日締切り、25日郵送必着でお願いします。翌々月5日支払いとなります。"]
[null,"銀行名"]
[]
[]
[null,"支店名"]
[]
[]
[null,"口座番号",null,null,null,null,null,"普通"]
[null,"口座名義人"]

{"sheet":"請求書(出来高で請求がある場合はこちらです）","index":3,"n_rows":162,"n_cols":40,"rows_kept":162,"cut":false,"hidden":false,"merged":[[89,0,96,16],[0,51,0,52],[1,12,3,29],[6,27,6,30],[6,31,6,40],[89,31,89,40],[5,27,5,30],[5,31,5,40],[83,34,86,40],[0,34,3,40],[83,51,83,52],[84,12,86,29],[88,27,88,30],[89,27,89,30],[88,31,88,40],[45,27,48,29],[145,5,148,19],[145,20,148,35],[154,1,156,6],[154,7,156,21],[157,1,159,6],[157,7,159,21],[160,1,160,6],[160,7,160,10],[160,11,160,21],[161,1,163,6],[161,7,163,21],[141,5,144,19],[141,20,144,35],[128,5,131,8],[128,9,131,17],[128,27,131,29],[128,30,131,32],[128,33,131,35],[133,5,136,19],[133,20,136,35],[137,5,140,19],[137,20,140,35],[111,19,114,22],[112,1,117,6],[112,7,117,17],[118,1,121,6],[118,7,121,17],[97,1,99,12],[97,13,99,17],[98,24,108,39],[100,6,102,15],[100,16,102,17],[105,2,106,11],[107,1,109,17],[91,33,96,38],[93,22,96,23],[95,24,96,25],[95,26,96,32],[95,39,96,39],[45,33,48,35],[28,19,31,22],[71,1,73,6],[58,20,61,35],[71,7,73,21],[50,20,53,35],[54,20,57,35],[29,1,34,6],[29,7,34,17],[45,30,48,32],[8,33,13,38],[12,39,13,39],[17,16,19,17],[15,24,25,39],[24,1,26,17],[22,2,23,11],[12,26,13,32],[14,1,16,12],[14,13,16,17],[12,24,13,25],[17,6,19,15],[10,22,13,23],[5,0,12,16],[78,7,80,21],[45,9,48,17],[35,7,38,17],[35,1,38,6],[74,7,76,21],[74,1,76,6],[77,1,77,6],[78,1,80,6],[45,5,48,8],[50,5,53,19],[54,5,57,19],[62,5,65,19],[77,7,77,10],[77,11,77,21],[62,20,65,35],[58,5,61,19]]}
[null,null,null,null,null,null,null,null,null,null,null,null,null,null,null,null,null,null,null,null,null,null,null,null,null,null,null,null,null,null,null,null,null,null,"1"]
[null,null,null,null,null,null,null,null,null,null,null,null,"請　　求　　書（出来高用）"]
[]
[]
[]
["〒359-1111\n埼玉県所沢市緑町2-1-20　合田ビル2階\n\n",null,null,null,null,null,null,null,null,null,null,null,null,null,null,null,null,null,null,null,null,null,null,null,null,null,null,"請求年月日"]
[null,null,null,null,null,null,null,null,null,null,null,null,null,null,null,null,null,null,null,null,null,null,null,null,null,null,null,"登 録 番 号"]
[]
[]
[]
[]
[]
[null,null,null,null,null,null,null,null,null,null,null,null,null,null,null,null,null,null,null,null,null,null,null,null,"月分",null,"出来高内訳書　　計",null,null,null,null,null,null,null,null,null,null,null,null,"枚"]
[]
[null,"有限会社　埼玉小島建設",null,null,null,null,null,null,null,null,null,null,null,"御中"]
[]
[]
[null,null,null,null,null,null,null,null,null,null,null,null,null,null,null,null,"宛"]
[]
[]
[]
[]
[null,null,"下記の通り請求いたします。"]
[]
[]
[]
[]
[]
[]
[null,"請求金額(税込)",null,null,null,null,null,{"$f":"U59+H36","v":0}]
[]
[]
[]
[]
[]
[null,0.1,null,null,null,null,null,{"$f":"U59*B36","v":0}]
[]
[]
[]
[]
[]
[]
[]
[]
[]
[null,null,null,null,null,"工事番号",null,null,null,null,null,null,null,null,null,null,null,null,null,null,null,null,null,null,null,null,null,"第",null,null,null,null,null,"回請求"]
[]
[]
[]
[]
[null,null,null,null,null,"取 決 め 金 額 （税抜）"]
[]
[]
[]
[null,null,null,null,null,"前回までの請求額"]
[]
[]
[]
[null,null,null,null,null,"今回請求額"]
[]
[]
[]
[null,null,null,null,null,"取決め残額",null,null,null,null,null,null,null,null,null,null,null,null,null,null,{"$f":"U51-U55-U59","v":0}]
[]
[]
[]
[]
[]
[]
[]
[]
[null,"銀行名"]
[]
[]
[null,"支店名"]
[]
[]
[null,"口座番号",null,null,null,null,null,{"$f":"'100％請求用(通常はこちらを使用してください）'!$H$56","v":"普通"}]
[null,"口座名義人"]
[]
[]
[]
[]
[null,null,null,null,null,null,null,null,null,null,null,null,null,null,null,null,null,null,null,null,null,null,null,null,null,null,null,null,null,null,null,null,null,null,"2"]
[null,null,null,null,null,null,null,null,null,null,null,null,"請　　求　　書（出来高用）"]
[]
[]
[]
[null,null,null,null,null,null,null,null,null,null,null,null,null,null,null,null,null,null,null,null,null,null,null,null,null,null,null,"請求年月日",null,null,null,{"$f":"IF(AF6=\"\", \"\", AF6)","v":""}]
["〒359-1111\n埼玉県所沢市緑町2-1-20　合田ビル2階\n\n",null,null,null,null,null,null,null,null,null,null,null,null,null,null,null,null,null,null,null,null,null,null,null,null,null,null,"登 録 番 号",null,null,null,{"$f":"IF(AF7=\"\", \"\", AF7)","v":""}]
[]
[]
[]
[]
[]
[null,null,null,null,null,null,null,null,null,null,null,null,null,null,null,null,null,null,null,null,null,null,null,null,"月分",null,"出来高内訳書　　計",null,null,null,null,null,null,null,null,null,null,null,null,"枚"]
[]
[null,"有限会社　埼玉小島建設",null,null,null,null,null,null,null,null,null,null,null,"御中"]
[]
[]
[null,null,null,null,null,null,null,null,null,null,null,null,null,null,null,null,"宛"]
[]
[]
[]
[]
[null,null,"下記の通り請求いたします。"]
[]
[]
[]
[]
[]
[]
[null,"請求金額(税込)",null,null,null,null,null,{"$f":"U142+H119","v":0}]
[]
[]
[]
[]
[]
[null,0.1,null,null,null,null,null,{"$f":"U142*B119","v":0}]
[]
[]
[]
[]
[]
[]
[]
[]
[]
[null,null,null,null,null,"工事番号",null,null,null,null,null,null,null,null,null,null,null,null,null,null,null,null,null,null,null,null,null,"第",null,null,null,null,null,"回請求"]
[]
[]
[]
[]
[null,null,null,null,null,"取 決 め 金 額 （税抜）"]
[]
[]
[]
[null,null,null,null,null,"前回までの請求額"]
[]
[]
[]
[null,null,null,null,null,"今回請求額"]
[]
[]
[]
[null,null,null,null,null,"取決め残額",null,null,null,null,null,null,null,null,null,null,null,null,null,null,{"$f":"U134-U138-U142","v":0}]
[]
[]
[]
[]
[]
[]
[]
[]
[null,"銀行名"]
[]
[]
[null,"支店名"]
[]
[]
[null,"口座番号",null,null,null,null,null,{"$f":"'100％請求用(通常はこちらを使用してください）'!$H$56","v":"普通"}]
[null,"口座名義人"]

{"sheet":"出来高内訳書(出来高請求書に添付してください）","index":4,"n_rows":64,"n_cols":12,"rows_kept":64,"cut":false,"hidden":false,"merged":[[2,11,3,11],[2,0,3,0]]}
["出　　来　　高　　内　　訳　　書"]
[]
["工　事　種　別","契　約　金　額",null,null,null,"累計出来高 ①",null,"前回までの出来高 ②",null,"今回出来高 (①－②)",null,"備　　考"]
[null,"単位","数量","単価","金額","数量","金額","数量","金額","数量","金額"]
[null,null,null,null,{"$f":"IF(AND(C5=\"\",D5=\"\"),\"\",ROUNDDOWN(C5*D5,0))","v":""},null,{"$f":"IF(AND(D5=\"\",F5=\"\"),\"\",ROUNDDOWN(D5*F5,0))","v":""},null,{"$f":"IF(AND(D5=\"\",H5=\"\"),\"\",ROUNDDOWN(D5*H5,0))","v":""},{"$f":"IF(AND(F5=\"\",H5=\"\"),\"\",F5-H5)","v":""},{"$f":"IF(AND(G5=\"\",I5=\"\"),\"\",SUM(G5)-SUM(I5))","v":""}]
[null,null,null,null,{"$f":"IF(AND(C6=\"\",D6=\"\"),\"\",ROUNDDOWN(C6*D6,0))","v":""},null,"",null,"","",""]
[null,null,null,null,{"$f":"IF(AND(C7=\"\",D7=\"\"),\"\",ROUNDDOWN(C7*D7,0))","v":""},null,"",null,"","",""]
[null,null,null,null,"",null,"",null,"","",""]
[null,null,null,null,{"$f":"IF(AND(C9=\"\",D9=\"\"),\"\",ROUNDDOWN(C9*D9,0))","v":""},null,"",null,"","",""]
[null,null,null,null,"",null,"",null,"","",""]
[null,null,null,null,"",null,"",null,"","",""]
[null,null,null,null,"",null,"",null,"","",""]
[null,null,null,null,"",null,"",null,"","",""]
[null,null,null,null,"",null,"",null,"",""]
[null,null,null,null,"",null,"",null,"","",""]
[null,null,null,null,"",null,"",null,"","",""]
[null,null,null,null,"",null,"",null,"","",""]
[null,null,null,null,"",null,"",null,"","",""]
[null,null,null,null,"",null,"",null,"","",""]
[null,null,null,null,"",null,"",null,"","",""]
[null,null,null,null,"",null,"",null,"","",""]
[null,null,null,null,"",null,"",null,"","",""]
[null,null,null,null,"",null,"",null,"","",""]
[null,null,null,null,"",null,"",null,"","",""]
[null,null,null,null,"",null,"",null,"",null,""]
[null,null,null,null,"",null,"",null,"",null,""]
[null,null,null,null,"",null,"",null,"",null,""]
[null,null,null,null,"",null,"",null,"",null,""]
[null,null,null,null,"",null,"",null,"",null,""]
[null,null,null,null,"",null,"",null,"",null,""]
[null,null,null,null,"",null,"",null,"",null,""]
[null,null,null,null,"",null,"",null,"",null,""]
[null,null,null,null,"",null,"",null,"",null,""]
[null,null,null,null,"",null,"",null,"",null,""]
[null,null,null,null,"",null,"",null,"",null,""]
[null,null,null,null,"",null,"",null,"",null,""]
[null,null,null,null,"",null,"",null,"",null,""]
[null,null,null,null,"",null,"",null,"",null,""]
[null,null,null,null,"",null,"",null,"",null,""]
[null,null,null,null,"",null,"",null,"",null,""]
[null,null,null,null,"",null,"",null,"",null,""]
[null,null,null,null,"",null,"",null,"",null,""]
[null,null,null,null,"",null,"",null,"",null,""]
[null,null,null,null,"",null,"",null,"",null,""]
[null,null,null,null,"",null,"",null,"",null,""]
[null,null,null,null,"",null,"",null,"",null,""]
[null,null,null,null,"",null,"",null,"",null,""]
[null,null,null,null,"",null,"",null,"",null,""]
[null,null,null,null,"",null,"",null,"",null,""]
[null,null,null,null,"",null,"",null,"",null,""]
[null,null,null,null,"",null,"",null,"",null,""]
[null,null,null,null,"",null,"",null,"",null,""]
[null,null,null,null,"",null,"",null,"",null,""]
[null,null,null,null,"",null,"",null,"",null,""]
[null,null,null,null,"",null,"",null,{"$f":"IF(AND(D55=\"\",H55=\"\"),\"\",ROUNDDOWN(D55*H55,0))","v":""},null,""]
[null,null,null,null,"",null,"",null,"",null,""]
[null,null,null,null,"",null,"",null,"",null,""]
[null,null,null,null,"",null,"",null,"",null,""]
[null,null,null,null,"",null,"",null,"",null,""]
[null,null,null,null,"",null,"",null,"",null,""]
[null,null,null,null,"",null,"",null,"",null,""]
[null,null,null,null,"",null,"",null,"",null,""]
[null,null,null,null,"",null,"",null,"",null,""]
[null,null,null,null,"",null,"",null,"",null,""]

{"sheet":"出来高内訳書(記入例)","index":5,"n_rows":24,"n_cols":12,"rows_kept":24,"cut":false,"hidden":false,"merged":[[2,11,3,11],[2,0,3,0]]}
["出　　来　　高　　内　　訳　　書"]
[]
["工　事　種　別","契　約　金　額",null,null,null,"累計出来高 ①",null,"前回までの出来高 ②",null,"今回出来高 (①－②)",null,"備　　考"]
[null,"単位","数量","単価","金額","数量","金額","数量","金額","数量","金額"]
["仮設工事",null,null,null,{"$f":"IF(AND(C5=\"\",D5=\"\"),\"\",ROUNDDOWN(C5*D5,0))","v":""},null,{"$f":"IF(AND(D5=\"\",F5=\"\"),\"\",ROUNDDOWN(D5*F5,0))","v":""},null,{"$f":"IF(AND(D5=\"\",H5=\"\"),\"\",ROUNDDOWN(D5*H5,0))","v":""},{"$f":"IF(AND(F5=\"\",H5=\"\"),\"\",F5-H5)","v":""},{"$f":"IF(AND(G5=\"\",I5=\"\"),\"\",SUM(G5)-SUM(I5))","v":""}]
["トップスラブ手摺","ｍ",123,987,{"$f":"IF(AND(C6=\"\",D6=\"\"),\"\",ROUNDDOWN(C6*D6,0))","v":121401},100,98700,50,49350,50,49350]
["・　通常請求の場合は『請求書原本消費税10％』をご利用ください。","ｍ",123,9876,1214748,100,987600,50,493800,50,493800]
["立駐基礎周り足場組払い","式",1,5000000,5000000,0.5,2500000,0.2,1000000,0.3,1500000]
["小計",null,null,null,{"$f":"SUM(E6:E8)","v":6336149},null,{"$f":"SUM(G6:G8)","v":3586300},null,{"$f":"SUM(I6:I8)","v":1543150},"",2043150]
["　　『請求書（出来高用）』をご利用ください。",null,null,null,"",null,"",null,"","",""]
["トップスラブコンクリート打設","㎥",555.5,1234,685487,200,246800,100,123400,100,123400]
["立駐基礎コン打設","㎥",1000,1234,1234000,400,493600,120,148080,280,345520]
["小計",null,null,null,{"$f":"SUM(E11:E12)","v":1919487},null,{"$f":"SUM(G11:G12)","v":740400},null,{"$f":"SUM(I11:I12)","v":271480},"",468920]
["値引","式",1,-55636,-55636,null,-26700,null,-14630,"",{"$f":"IF(AND(G14=\"\",I14=\"\"),\"\",SUM(G14)-SUM(I14))","v":-12070}]
["合計",null,null,null,{"$f":"SUM(E9,E13,E14)","v":8200000},null,{"$f":"SUM(G9,G13,G14)","v":4300000},null,{"$f":"SUM(I9,I13,I14)","v":1800000},"",2500000]
[null,null,null,null,"",null,"",null,"","",""]
[null,null,null,null,"",null,"",null,"","",""]
[null,null,null,null,"",null,"",null,"","",""]
[null,null,null,null,"",null,"",null,"","",""]
[null,null,null,null,"",null,"",null,"","",""]
[null,null,null,null,"",null,"",null,"","",""]
[null,null,null,null,"",null,"",null,"","",""]
[null,null,null,null,"",null,"",null,"","",""]
[null,null,null,null,"",null,"",null,"","",""]